Ref No,Fund Type,Dept,Cost Centre Description    ,Description    ,Creditor Name    ,GL Code Net Amount,Payment date        
,Revenue,CCHD,Supported Living - KD,Private & Voluntary Home Care,3 Trees Community Support Ltd,2116.39, 06-Jan-2011
,Revenue,CCHD,PWLD Home Care - Under 65 - KH,Private & Voluntary Home Care,3 Trees Community Support Ltd,782.25, 19-Jan-2011
,Revenue,CCHD,Supported Living - PS,Private & Voluntary Home Care,3 Trees Community Support Ltd,619.50, 21-Jan-2011
,Revenue,CCHD,Supported Living (S28a),Private & Voluntary Home Care,3 Trees Community Support Ltd,6085.56, 26-Jan-2011
,Revenue,CCHD,Purchase of Non-Res Care - KD,Private & Voluntary Day Care,3 Trees Community Support Ltd,1571.12, 31-Jan-2011
,Revenue,CCHD,PD Direct Payments North,Grants to Voluntary Bodies,A4E Management Limited,22857.93, 20-Jan-2011
,Revenue,CCHD,PD Direct Payments North,Grants to Voluntary Bodies,A4E Management Limited,22857.93, 28-Jan-2011
,Revenue,CCHD,Day Care - North,Private & Voluntary Day Care,Action for Blind People,3724.68, 10-Jan-2011
,Revenue,CCHD,Day Care - North,Private & Voluntary Day Care,Action for Blind People,3552.33, 19-Jan-2011
,Revenue,CCHD,Home Care Purch North,Other Small Contracts,Agincare UK Limited,800.03, 19-Jan-2011
,Revenue,CCHD,Home Care Purch North,Other Small Contracts,Agincare UK Limited,800.03, 19-Jan-2011
,Revenue,CCHD,Home Care Purch North,Other Small Contracts,Agincare UK Limited,1992.78, 21-Jan-2011
,Revenue,CCHD,Home Care Purch North,Other Small Contracts,Agincare UK Limited,800.03, 19-Jan-2011
,Revenue,CCHD,Home Care Purch North,Other Small Contracts,Agincare UK Limited,800.03, 19-Jan-2011
,Revenue,CCHD,Home Care Purch North,Other Small Contracts,Agincare UK Limited,1549.94, 21-Jan-2011
,Revenue,CCHD,Home Care Purch North,Other Small Contracts,Agincare UK Limited,1549.94, 28-Jan-2011
,Revenue,CCHD,Home Care Purch North,Other Small Contracts,Agincare UK Limited,800.03, 28-Jan-2011
,Revenue,CCHD,Home Care Purch North,Other Small Contracts,Agincare UK Limited,800.03, 28-Jan-2011
,Revenue,CCHD,Contracts & Commissioning Team,Other Small Contracts,Agincare UK Limited,3500.00, 07-Jan-2011
,Revenue,CCHD,Contracts & Commissioning Team,Other Small Contracts,Agincare UK Limited,3500.00, 07-Jan-2011
,Revenue,CCHD,Contracts & Commissioning Team,Other Small Contracts,Agincare UK Limited,3500.00, 14-Jan-2011
,Revenue,CCHD,Contracts & Commissioning Team,Other Small Contracts,Agincare UK Limited,3500.00, 21-Jan-2011
,Revenue,CCHD,Contracts & Commissioning Team,Other Small Contracts,Agincare UK Limited,3500.00, 28-Jan-2011
,Revenue,CCHD,Home Care Purch North,Other Small Contracts,Allied  Healthcare Group Limited,1453.63, 21-Jan-2011
,Revenue,CCHD,Home Care Purch North,Other Small Contracts,Allied  Healthcare Group Limited,3454.08, 21-Jan-2011
,Revenue,CCHD,Home Care Purch North,Other Small Contracts,Allied  Healthcare Group Limited,1727.04, 21-Jan-2011
,Revenue,CCHD,Home Care Purch North,Other Small Contracts,Allied  Healthcare Group Limited,1727.04, 21-Jan-2011
,Revenue,CCHD,Contracts & Commissioning Team,Other Small Contracts,Allied Healthcare Group,9500.00, 07-Jan-2011
,Revenue,CCHD,Contracts & Commissioning Team,Other Small Contracts,Allied Healthcare Group,9500.00, 07-Jan-2011
,Revenue,CCHD,Contracts & Commissioning Team,Other Small Contracts,Allied Healthcare Group,9500.00, 14-Jan-2011
,Revenue,CCHD,Contracts & Commissioning Team,Other Small Contracts,Allied Healthcare Group,9500.00, 21-Jan-2011
,Revenue,CCHD,Contracts & Commissioning Team,Other Small Contracts,Allied Healthcare Group,9500.00, 28-Jan-2011
,Revenue,CCHD,Elderly MH non-res purchasing,Private & Voluntary Day Care,Alzheimers Society Bristol Branch,585.36, 12-Jan-2011
,Revenue,CCHD,Elderly MH non-res purchasing,Private & Voluntary Day Care,Alzheimers Society Bristol Branch,845.52, 12-Jan-2011
,Revenue,CCHD,Elderly MH non-res purchasing,Private & Voluntary Day Care,Alzheimers Society Bristol Branch,845.52, 12-Jan-2011
,Revenue,CCHD,Elderly MH non-res purchasing,Private & Voluntary Day Care,Alzheimers Society Bristol Branch,910.56, 12-Jan-2011
,Revenue,CCHD,Elderly MH non-res purchasing,Private & Voluntary Day Care,Alzheimers Society Bristol Branch,585.36, 12-Jan-2011
,Revenue,CCHD,Section 117 Placements,Private & Voluntary Day Care,Alzheimers Society Bristol Branch,520.32, 12-Jan-2011
,Revenue,CCHD,Tenancy Start Up Scheme,Other Supplies & Services,Anne James Estate Agent,1200.00, 21-Jan-2011
,Revenue,CCHD,Bed and Breakfast,Bed & Breakfast,Ashley Guest House Ltd,1224.00, 21-Jan-2011
,Revenue,CCHD,Bed and Breakfast,Bed & Breakfast,Ashley Guest House Ltd,1512.00, 07-Jan-2011
,Revenue,CCHD,Bed and Breakfast,Bed & Breakfast,Ashley Guest House Ltd,1104.00, 28-Jan-2011
,Revenue,CCHD,Bed and Breakfast,Bed & Breakfast,Ashley Guest House Ltd,1512.00, 07-Jan-2011
,Revenue,CCHD,Bed and Breakfast,Bed & Breakfast,Ashley Guest House Ltd,1512.00, 13-Jan-2011
,Revenue,CCHD,Bed and Breakfast,Bed & Breakfast,Ashley Guest House Ltd,1512.00, 20-Jan-2011
,Revenue,CCHD,Supporting People Programme,Grants to Voluntary Bodies,Aspects and Milestones Trust,1426.32, 13-Jan-2011
,Revenue,CCHD,Supporting People Programme,Grants to Voluntary Bodies,Aspects and Milestones Trust,1737.24, 13-Jan-2011
,Revenue,CCHD,Supporting People Programme,Grants to Voluntary Bodies,Aspects and Milestones Trust,2165.04, 13-Jan-2011
,Revenue,CCHD,Supporting People Programme,Grants to Voluntary Bodies,Aspects and Milestones Trust,3996.40, 13-Jan-2011
,Revenue,CCHD,Purchase of Non-Res Care - PS,Private & Voluntary Day Care,Aspects and Milestones Trust,1209.90, 19-Jan-2011
,Revenue,CCHD,Elderly MH non-res purchasing,Private & Voluntary Day Care,Aspects and Milestones Trust,542.28, 28-Jan-2011
,Revenue,CCHD,Elderly MH non-res purchasing,Private & Voluntary Day Care,Aspects and Milestones Trust,613.19, 28-Jan-2011
,Revenue,CCHD,Supported Living (S28a),Private & Voluntary Home Care,Aspects and Milestones Trust,9376.63, 06-Jan-2011
,Revenue,CCHD,Supported Living (S28a),Private & Voluntary Home Care,Aspects and Milestones Trust,4940.70, 12-Jan-2011
,Revenue,CCHD,Supported Living (S28a),Private & Voluntary Home Care,Aspects and Milestones Trust,5417.75, 12-Jan-2011
,Revenue,CCHD,Supported Living (S28a),Private & Voluntary Home Care,Aspects and Milestones Trust,4143.36, 06-Jan-2011
,Revenue,CCHD,Supported Living (S28a),Private & Voluntary Home Care,Aspects and Milestones Trust,4143.36, 06-Jan-2011
,Revenue,CCHD,Supported Living - PS,Private & Voluntary Home Care,Aspects and Milestones Trust,661.62, 17-Jan-2011
,Revenue,CCHD,Supported Living - PS,Private & Voluntary Home Care,Aspects and Milestones Trust,1578.54, 17-Jan-2011
,Revenue,CCHD,Supported Living - PS,Private & Voluntary Home Care,Aspects and Milestones Trust,798.68, 17-Jan-2011
,Revenue,CCHD,Supported Living (S28a),Private & Voluntary Home Care,Aspects and Milestones Trust,616.90, 17-Jan-2011
,Revenue,CCHD,Supported Living (S28a),Private & Voluntary Home Care,Aspects and Milestones Trust,2740.40, 17-Jan-2011
,Revenue,CCHD,Supported Living (S28a),Private & Voluntary Home Care,Aspects and Milestones Trust,3175.09, 17-Jan-2011
,Revenue,CCHD,Supported Living (S28a),Private & Voluntary Home Care,Aspects and Milestones Trust,3004.35, 17-Jan-2011
,Revenue,CCHD,Supported Living - PS,Private & Voluntary Home Care,Aspects and Milestones Trust,1122.33, 17-Jan-2011
,Revenue,CCHD,Supported Living - PS,Private & Voluntary Home Care,Aspects and Milestones Trust,806.00, 17-Jan-2011
,Revenue,CCHD,Supported Living - PS,Private & Voluntary Home Care,Aspects and Milestones Trust,779.22, 17-Jan-2011
,Revenue,CCHD,Supported Living (S28a),Private & Voluntary Home Care,Aspects and Milestones Trust,1317.91, 17-Jan-2011
,Revenue,CCHD,Supported Living (S28a),Private & Voluntary Home Care,Aspects and Milestones Trust,3262.16, 17-Jan-2011
,Revenue,CCHD,Younger MH non-res purchasing,Private & Voluntary Day Care,Aspects and Milestones Trust,654.40, 28-Jan-2011
,Revenue,CCHD,Supported Living (S28a),Private & Voluntary Home Care,Aspects and Milestones Trust,4441.40, 19-Jan-2011
,Revenue,CCHD,Supported Living (S28a),Private & Voluntary Home Care,Aspects and Milestones Trust,1042.52, 19-Jan-2011
,Revenue,CCHD,Purchase of Non-Res Care - PS,Private & Voluntary Day Care,Aspects and Milestones Trust,1213.87, 19-Jan-2011
,Revenue,CCHD,Purchase of Non-Res Care - PS,Private & Voluntary Day Care,Aspects and Milestones Trust,1384.72, 19-Jan-2011
,Revenue,CCHD,Purchase of Non-Res Care - PS,Private & Voluntary Day Care,Aspects and Milestones Trust,879.01, 19-Jan-2011
,Revenue,CCHD,Purchase of Non-Res Care - PS,Private & Voluntary Day Care,Aspects and Milestones Trust,745.82, 19-Jan-2011
,Revenue,CCHD,Purchase of Non-Res Care - PS,Private & Voluntary Day Care,Aspects and Milestones Trust,1135.03, 19-Jan-2011
,Revenue,CCHD,Purchase of Non-Res Care - PS,Private & Voluntary Day Care,Aspects and Milestones Trust,1274.34, 19-Jan-2011
,Revenue,CCHD,Purchase of Non-Res Care - PS,Private & Voluntary Day Care,Aspects and Milestones Trust,1118.88, 19-Jan-2011
,Revenue,CCHD,Supported Living (S28a),Private & Voluntary Home Care,Aspects and Milestones Trust,657.85, 19-Jan-2011
,Revenue,CCHD,Purchase of Non-Res Care - PS,Private & Voluntary Day Care,Aspects and Milestones Trust,1105.62, 19-Jan-2011
,Revenue,CCHD,Supported Living (S28a),Private & Voluntary Home Care,Aspects and Milestones Trust,9343.54, 20-Jan-2011
,Revenue,CCHD,Supported Living (S28a),Private & Voluntary Home Care,Aspects and Milestones Trust,2610.88, 20-Jan-2011
,Revenue,CCHD,Supported Living (S28a),Private & Voluntary Home Care,Aspects and Milestones Trust,3728.92, 20-Jan-2011
,Revenue,CCHD,Stibbs and Fairburn,Private & Voluntary Respite Care,Aspects and Milestones Trust,124605.63, 20-Jan-2011
,Revenue,CCHD,Supported Living (S28a),Private & Voluntary Home Care,Aspects and Milestones Trust,3662.32, 20-Jan-2011
,Revenue,CCHD,Supported Living (S28a),Private & Voluntary Home Care,Aspects and Milestones Trust,3923.91, 20-Jan-2011
,Revenue,CCHD,Supported Living (S28a),Private & Voluntary Home Care,Aspects and Milestones Trust,3662.32, 20-Jan-2011
,Revenue,CCHD,Supported Living (S28a),Private & Voluntary Home Care,Aspects and Milestones Trust,3923.91, 20-Jan-2011
,Revenue,CCHD,Supported Living (S28a),Private & Voluntary Home Care,Aspects and Milestones Trust,3662.32, 20-Jan-2011
,Revenue,CCHD,Supported Living - PS,Private & Voluntary Home Care,Aspects and Milestones Trust,16893.20, 20-Jan-2011
,Revenue,CCHD,Supported Living - PS,Private & Voluntary Home Care,Aspects and Milestones Trust,21116.50, 20-Jan-2011
,Revenue,CCHD,Supported Living - PS,Private & Voluntary Home Care,Aspects and Milestones Trust,16893.20, 20-Jan-2011
,Revenue,CCHD,Training - Adult Services,Training Expenses,Avenues Cafe,1308.70, 10-Jan-2011
,Revenue,CCHD,Assertive In-Reach Project,Commissioned Service (Inc SLA Grants),Avon & Wiltshire Mental Health,13567.00, 21-Jan-2011
,Revenue,CCHD,Purchase of RAC places,Other L.A.'s - General,Bath & North East Somerset Dist Council,19821.98, 25-Jan-2011
,Revenue,CCHD,Purchase of RAC places,Other L.A.'s - General,Bath & North East Somerset Dist Council,2292.86, 25-Jan-2011
,Revenue,CCHD,HRD Grant - Main,Training Expenses,Bawa Healthcare & Leisure,509.87, 10-Jan-2011
,Revenue,CCHD,Tenancy Start Up Scheme,Other Supplies & Services,Individual,1190.00, 19-Jan-2011
,Revenue,CCHD,Training - Adult Services,Training Expenses,Individual,750.00, 20-Jan-2011
,Revenue,CCHD,Home Care Purch South,Other Small Contracts,Bradley House Home Care Services,86.20, 12-Jan-2011
,Revenue,CCHD,Home Care Purch North,Other Small Contracts,Bradley House Home Care Services,2685.13, 12-Jan-2011
,Revenue,CCHD,Day Care - South,Private & Voluntary Day Care,Bradley House Home Care Services,60.34, 12-Jan-2011
,Revenue,CCHD,Day Care - North,Private & Voluntary Day Care,Bradley House Home Care Services,318.94, 12-Jan-2011
,Revenue,CCHD,Elderly MH Home Care,Other Small Contracts,Bradley House Home Care Services,163.78, 12-Jan-2011
,Revenue,CCHD,Home Care Purch South,Other Small Contracts,Bradley House Home Care Services,90.51, 17-Jan-2011
,Revenue,CCHD,Home Care Purch North,Other Small Contracts,Bradley House Home Care Services,2762.71, 17-Jan-2011
,Revenue,CCHD,Day Care - South,Private & Voluntary Day Care,Bradley House Home Care Services,60.34, 17-Jan-2011
,Revenue,CCHD,Day Care - North,Private & Voluntary Day Care,Bradley House Home Care Services,275.84, 17-Jan-2011
,Revenue,CCHD,Elderly MH Home Care,Other Small Contracts,Bradley House Home Care Services,206.88, 17-Jan-2011
,Revenue,CCHD,Home Care Purch South,Other Small Contracts,Bradley House Home Care Services,94.82, 24-Jan-2011
,Revenue,CCHD,Home Care Purch North,Other Small Contracts,Bradley House Home Care Services,2762.71, 24-Jan-2011
,Revenue,CCHD,Day Care - South,Private & Voluntary Day Care,Bradley House Home Care Services,60.34, 24-Jan-2011
,Revenue,CCHD,Day Care - North,Private & Voluntary Day Care,Bradley House Home Care Services,271.53, 24-Jan-2011
,Revenue,CCHD,Elderly MH Home Care,Other Small Contracts,Bradley House Home Care Services,215.50, 24-Jan-2011
,Revenue,CCHD,Home Care Purch South,Other Small Contracts,Bradley House Home Care Services,34.48, 07-Jan-2011
,Revenue,CCHD,Home Care Purch North,Other Small Contracts,Bradley House Home Care Services,2598.93, 07-Jan-2011
,Revenue,CCHD,Day Care - South,Private & Voluntary Day Care,Bradley House Home Care Services,60.34, 07-Jan-2011
,Revenue,CCHD,Day Care - North,Private & Voluntary Day Care,Bradley House Home Care Services,262.91, 07-Jan-2011
,Revenue,CCHD,Elderly MH Home Care,Other Small Contracts,Bradley House Home Care Services,198.26, 07-Jan-2011
,Revenue,CCHD,Home Care Purch South,Other Small Contracts,Bradley House Home Care Services,56.03, 11-Jan-2011
,Revenue,CCHD,Home Care Purch North,Other Small Contracts,Bradley House Home Care Services,2560.14, 11-Jan-2011
,Revenue,CCHD,Day Care - South,Private & Voluntary Day Care,Bradley House Home Care Services,60.34, 11-Jan-2011
,Revenue,CCHD,Day Care - North,Private & Voluntary Day Care,Bradley House Home Care Services,228.43, 11-Jan-2011
,Revenue,CCHD,Elderly MH Home Care,Other Small Contracts,Bradley House Home Care Services,124.99, 11-Jan-2011
,Revenue,CCHD,Woodleaze,"Provisions (Food, etc)",Brake Bros,502.32, 10-Jan-2011
,Revenue,CCHD,Woodleaze,"Provisions (Food, etc)",Brake Bros,505.10, 06-Jan-2011
,Revenue,CCHD,Woodleaze,"Provisions (Food, etc)",Brake Bros,848.27, 06-Jan-2011
,Revenue,CCHD,Charlton,"Provisions (Food, etc)",Brake Bros,533.91, 20-Jan-2011
,Revenue,CCHD,Private Sector Housing,Prop.Serv. General Repairs,Bristol City Council,50000.00, 25-Jan-2011
,Revenue,CCHD,Purchase of RAC places,Other L.A.'s - General,Bristol City Council,11600.54, 12-Jan-2011
,Revenue,CCHD,Purchase of RAC places,Other L.A.'s - General,Bristol City Council,7217.35, 12-Jan-2011
,Revenue,CCHD,Purchase of RAC places,Other L.A.'s - General,Bristol City Council,7036.30, 12-Jan-2011
,Revenue,CCHD,Getting a Life Project,Other Supplies & Services,Bristol City Council,47298.28, 28-Jan-2011
,Revenue,CCHD,Supported Living - KD,Private & Voluntary Home Care,Bristol Houses UK Ltd,1269.10, 06-Jan-2011
,Revenue,CCHD,Supported Living - KD,Private & Voluntary Home Care,Bristol Houses UK Ltd,1029.00, 06-Jan-2011
,Revenue,CCHD,Supported Living - KD,Private & Voluntary Home Care,Bristol Houses UK Ltd,1826.48, 06-Jan-2011
,Revenue,CCHD,Supported Living - KD,Private & Voluntary Home Care,Bristol Houses UK Ltd,938.96, 06-Jan-2011
,Revenue,CCHD,Bed and Breakfast,Bed & Breakfast,Bristol Housing & Support Limited,630.00, 07-Jan-2011
,Revenue,CCHD,Bed and Breakfast,Bed & Breakfast,Bristol Housing & Support Limited,750.00, 07-Jan-2011
,Revenue,CCHD,Bed and Breakfast,Bed & Breakfast,Bristol Housing & Support Limited,798.00, 13-Jan-2011
,Revenue,CCHD,Bed and Breakfast,Bed & Breakfast,Bristol Housing & Support Limited,798.00, 20-Jan-2011
,Revenue,CCHD,Bed and Breakfast,Bed & Breakfast,Bristol Housing & Support Limited,798.00, 20-Jan-2011
,Revenue,CCHD,Bed and Breakfast,Bed & Breakfast,Bristol Housing & Support Limited,798.00, 24-Jan-2011
,Revenue,CCHD,Wapley Court,Water Charges,Bristol Wessex Billing Services Limited,2315.56, 11-Jan-2011
,Revenue,CCHD,Blackhorse RAC,Water Charges,Bristol Wessex Billing Services Limited,1419.31, 20-Jan-2011
,Revenue,CCHD,Chipping Sodbury Memorial Day,Gas,British Gas Business,820.72, 14-Jan-2011
,Revenue,CCHD,Elderly Purchasing - South,Nursing Homes,Brunelcare,12421.19, 21-Jan-2011
,Revenue,CCHD,Elderly Purchasing - North,Nursing Homes,Brunelcare,3187.71, 21-Jan-2011
,Revenue,CCHD,Frenchay Hospital Purchasing,Nursing Homes,Brunelcare,4546.12, 21-Jan-2011
,Revenue,CCHD,South Glos Users in South Glos Homes,Nursing Homes,Brunelcare,11879.37, 21-Jan-2011
,Revenue,CCHD,Elderly Mental Health,Nursing Homes,Brunelcare,19985.41, 21-Jan-2011
,Revenue,CCHD,Section 117 Placements,Nursing Homes,Brunelcare,4011.02, 21-Jan-2011
,Revenue,CCHD,Elderly MH non-res purchasing,Private & Voluntary Day Care,Brunelcare,712.40, 12-Jan-2011
,Revenue,CCHD,Contracts & Commissioning Team,Other Small Contracts,Brunelcare,13500.00, 07-Jan-2011
,Revenue,CCHD,Contracts & Commissioning Team,Other Small Contracts,Brunelcare,13500.00, 07-Jan-2011
,Revenue,CCHD,Contracts & Commissioning Team,Other Small Contracts,Brunelcare,13500.00, 14-Jan-2011
,Revenue,CCHD,Contracts & Commissioning Team,Other Small Contracts,Brunelcare,13500.00, 21-Jan-2011
,Revenue,CCHD,Contracts & Commissioning Team,Other Small Contracts,Brunelcare,13500.00, 28-Jan-2011
,Revenue,CCHD,Contracts & Commissioning Team,Other Small Contracts,Brunelcare,5757.92, 06-Jan-2011
,Revenue,CCHD,Information Systems - Software,Computer Equipment - Purchase,BT Global Services Solutions,759.31, 17-Jan-2011
,Revenue,CCHD,Woodleaze,Cleaning & Domestic Supplies,Bunzl Cleaning & Hygiene Supplies,758.16, 11-Jan-2011
,Revenue,CCHD,Woodleaze,"Provisions (Food, etc)",Bunzl Cleaning & Hygiene Supplies,674.87, 20-Jan-2011
,Revenue,CCHD,Minor Adaptations Service,Prop.Serv. General Repairs,C A P Security Limited,1520.98, 25-Jan-2011
,Revenue,CCHD,Charlton,Prop.Serv. General Repairs,Cannon Hygiene Limited,557.43, 26-Jan-2011
,Revenue,CCHD,Newton House,Cleaning & Domestic Supplies,Care Aid,515.12, 19-Jan-2011
,Revenue,CCHD,Supported Living - KD,Private & Voluntary Home Care,Care Horizons Limited,5234.74, 28-Jan-2011
,Revenue,CCHD,Day Care - South,Private & Voluntary Day Care,Care Horizons Limited,553.20, 12-Jan-2011
,Revenue,CCHD,Purchase of Non-Res Care - KD,Private & Voluntary Day Care,Care Horizons Limited,959.47, 06-Jan-2011
,Revenue,CCHD,Supported Living - KD,Private & Voluntary Home Care,Care Horizons Limited,5381.58, 06-Jan-2011
,Revenue,CCHD,Purchase of Non-Res Care - KD,Private & Voluntary Day Care,Care Horizons Limited,1359.77, 07-Jan-2011
,Revenue,CCHD,Purchase of Non-Res Care - KD,Private & Voluntary Day Care,Care Horizons Limited,1597.52, 07-Jan-2011
,Revenue,CCHD,Purchase of Non-Res Care - KD,Private & Voluntary Day Care,Care Horizons Limited,1130.85, 06-Jan-2011
,Revenue,CCHD,Purchase of Non-Res Care - KD,Private & Voluntary Day Care,Care Horizons Limited,1204.55, 06-Jan-2011
,Revenue,CCHD,Day Care - South,Private & Voluntary Day Care,Care Horizons Limited,610.48, 12-Jan-2011
,Revenue,CCHD,Day Care - South,Private & Voluntary Day Care,Care Horizons Limited,701.72, 12-Jan-2011
,Revenue,CCHD,Supported Living - KD,Private & Voluntary Home Care,Care Horizons Limited,5234.74, 06-Jan-2011
,Revenue,CCHD,Purchase of Non-Res Care - PS,Private & Voluntary Day Care,Care Horizons Limited,1439.40, 21-Jan-2011
,Revenue,CCHD,Electronic Home Care Monitoring,Other Supplies & Services,Care monitoring 2000 Ltd,6090.00, 26-Jan-2011
,Revenue,CCHD,Home Care - General,Other Supplies & Services,Care monitoring 2000 Ltd,3300.00, 26-Jan-2011
,Revenue,CCHD,Electronic Home Care Monitoring,Other Supplies & Services,Care monitoring 2000 Ltd,5295.20, 28-Jan-2011
,Revenue,CCHD,Home Care - General,Other Supplies & Services,Care monitoring 2000 Ltd,7204.89, 28-Jan-2011
,Revenue,CCHD,Charlton,Membership Fees,Care Quality Commission,3168.00, 19-Jan-2011
,Revenue,CCHD,Charlton,Furniture & Fittings Loose,Care Shop Limited,645.00, 27-Jan-2011
,Revenue,CCHD,Contracts & Commissioning Team,Other Small Contracts,Care UK Homecare,20000.00, 07-Jan-2011
,Revenue,CCHD,Contracts & Commissioning Team,Other Small Contracts,Care UK Homecare,20000.00, 07-Jan-2011
,Revenue,CCHD,Contracts & Commissioning Team,Other Small Contracts,Care UK Homecare,20000.00, 14-Jan-2011
,Revenue,CCHD,Contracts & Commissioning Team,Other Small Contracts,Care UK Homecare,20000.00, 21-Jan-2011
,Revenue,CCHD,Contracts & Commissioning Team,Other Small Contracts,Care UK Homecare,20000.00, 28-Jan-2011
,Revenue,CCHD,Home Care Purch South,Other Small Contracts,Care UK Homecare,1155.44, 10-Jan-2011
,Revenue,CCHD,Elderly MH Home Care,Other Small Contracts,Care UK Homecare,557.52, 10-Jan-2011
,Revenue,CCHD,Home Care Purch South,Other Small Contracts,Care UK Homecare,1254.42, 10-Jan-2011
,Revenue,CCHD,Home Care Purch South,Other Small Contracts,Care UK Homecare,2119.68, 10-Jan-2011
,Revenue,CCHD,Home Care Purch South,Other Small Contracts,Care UK Homecare,2119.68, 10-Jan-2011
,Revenue,CCHD,Home Care Purch South,Other Small Contracts,Care UK Homecare,687.24, 10-Jan-2011
,Revenue,CCHD,Home Care Purch South,Other Small Contracts,Care UK Homecare,1526.14, 10-Jan-2011
,Revenue,CCHD,Home Care Purch South,Other Small Contracts,Care UK Homecare,1173.48, 10-Jan-2011
,Revenue,CCHD,Home Care Purch South,Other Small Contracts,Care UK Homecare,687.58, 10-Jan-2011
,Revenue,CCHD,Day Care - South,Private & Voluntary Day Care,Care UK Homecare,134.16, 10-Jan-2011
,Revenue,CCHD,Home Care Purch North,Other Small Contracts,Careforce Group,2292.42, 07-Jan-2011
,Revenue,CCHD,Contracts & Commissioning Team,Other Small Contracts,Carewatch (Bristol),2500.00, 07-Jan-2011
,Revenue,CCHD,Contracts & Commissioning Team,Other Small Contracts,Carewatch (Bristol),2500.00, 07-Jan-2011
,Revenue,CCHD,Contracts & Commissioning Team,Other Small Contracts,Carewatch (Bristol),2500.00, 14-Jan-2011
,Revenue,CCHD,Contracts & Commissioning Team,Other Small Contracts,Carewatch (Bristol),2500.00, 21-Jan-2011
,Revenue,CCHD,Contracts & Commissioning Team,Other Small Contracts,Carewatch (Bristol),2500.00, 28-Jan-2011
,Revenue,CCHD,Detained,Nursing Homes,Castlebeck Care (Teesdale) Limited,14649.40, 25-Jan-2011
,Revenue,CCHD,Detained,Nursing Homes,Castlebeck Care (Teesdale) Limited,15088.88, 25-Jan-2011
,Revenue,CCHD,Community Support - MH Under 6,Preventative Assistance,Cedar Lodge Kennels,695.22, 20-Jan-2011
,Revenue,CCHD,Home Care Purch South,Other Small Contracts,Chrysalis Community Care Group Ltd,367.20, 17-Jan-2011
,Revenue,CCHD,Home Care Purch North,Other Small Contracts,Chrysalis Community Care Group Ltd,1931.20, 17-Jan-2011
,Revenue,CCHD,Day Care - North,Private & Voluntary Day Care,Chrysalis Community Care Group Ltd,81.60, 17-Jan-2011
,Revenue,CCHD,Elderly MH Home Care,Other Small Contracts,Chrysalis Community Care Group Ltd,207.40, 17-Jan-2011
,Revenue,CCHD,Elderly MH non-res purchasing,Private & Voluntary Day Care,Chrysalis Community Care Group Ltd,34.00, 17-Jan-2011
,Revenue,CCHD,Home Care Purch South,Other Small Contracts,Chrysalis Community Care Group Ltd,360.40, 21-Jan-2011
,Revenue,CCHD,Home Care Purch North,Other Small Contracts,Chrysalis Community Care Group Ltd,1873.40, 21-Jan-2011
,Revenue,CCHD,Day Care - North,Private & Voluntary Day Care,Chrysalis Community Care Group Ltd,57.80, 21-Jan-2011
,Revenue,CCHD,Elderly MH Home Care,Other Small Contracts,Chrysalis Community Care Group Ltd,214.20, 21-Jan-2011
,Revenue,CCHD,Elderly MH non-res purchasing,Private & Voluntary Day Care,Chrysalis Community Care Group Ltd,68.00, 21-Jan-2011
,Revenue,CCHD,Supported Living - KD,Private & Voluntary Home Care,Cintre Community,714.23, 06-Jan-2011
,Revenue,CCHD,Training - Adult Services,Training Expenses,City & Guilds,613.80, 20-Jan-2011
,Revenue,CCHD,Training - Adult Services,Training Expenses,Cleve Rugby Football Club Limited,892.00, 20-Jan-2011
,Revenue,CCHD,Woodleaze,Membership Fees,Commission for Social Care Inspection,3366.00, 12-Jan-2011
,Revenue,CCHD,Wapley Court,Membership Fees,Commission for Social Care Inspection,3168.00, 12-Jan-2011
,Revenue,CCHD,Alexandra Way,Membership Fees,Commission for Social Care Inspection,4257.00, 12-Jan-2011
,Revenue,CCHD,Newton House,Membership Fees,Commission for Social Care Inspection,3663.00, 14-Jan-2011
,Revenue,CCHD,Bed and Breakfast,Bed & Breakfast,Connolly & Callaghan Limited,511.00, 13-Jan-2011
,Revenue,CCHD,Bed and Breakfast,Bed & Breakfast,Connolly & Callaghan Limited,511.00, 13-Jan-2011
,Revenue,CCHD,Bed and Breakfast,Bed & Breakfast,Connolly & Callaghan Limited,511.00, 11-Jan-2011
,Revenue,CCHD,Bed and Breakfast,Bed & Breakfast,Connolly & Callaghan Limited,511.00, 13-Jan-2011
,Revenue,CCHD,Bed and Breakfast,Bed & Breakfast,Connolly & Callaghan Limited,511.00, 17-Jan-2011
,Revenue,CCHD,Bed and Breakfast,Bed & Breakfast,Connolly & Callaghan Limited,441.00, 07-Jan-2011
,Revenue,CCHD,Bed and Breakfast,Bed & Breakfast,Connolly & Callaghan Limited,546.00, 07-Jan-2011
,Revenue,CCHD,Bed and Breakfast,Bed & Breakfast,Connolly & Callaghan Limited,498.00, 07-Jan-2011
,Revenue,CCHD,Bed and Breakfast,Bed & Breakfast,Connolly & Callaghan Limited,511.00, 07-Jan-2011
,Revenue,CCHD,Bed and Breakfast,Bed & Breakfast,Connolly & Callaghan Limited,518.00, 07-Jan-2011
,Revenue,CCHD,Bed and Breakfast,Bed & Breakfast,Connolly & Callaghan Limited,511.00, 07-Jan-2011
,Revenue,CCHD,Bed and Breakfast,Bed & Breakfast,Connolly & Callaghan Limited,441.00, 07-Jan-2011
,Revenue,CCHD,Bed and Breakfast,Bed & Breakfast,Connolly & Callaghan Limited,441.00, 07-Jan-2011
,Revenue,CCHD,Bed and Breakfast,Bed & Breakfast,Connolly & Callaghan Limited,511.00, 07-Jan-2011
,Revenue,CCHD,Bed and Breakfast,Bed & Breakfast,Connolly & Callaghan Limited,441.00, 07-Jan-2011
,Revenue,CCHD,Bed and Breakfast,Bed & Breakfast,Connolly & Callaghan Limited,476.00, 07-Jan-2011
,Revenue,CCHD,Bed and Breakfast,Bed & Breakfast,Connolly & Callaghan Limited,441.00, 07-Jan-2011
,Revenue,CCHD,Bed and Breakfast,Bed & Breakfast,Connolly & Callaghan Limited,441.00, 10-Jan-2011
,Revenue,CCHD,Bed and Breakfast,Bed & Breakfast,Connolly & Callaghan Limited,546.00, 10-Jan-2011
,Revenue,CCHD,Bed and Breakfast,Bed & Breakfast,Connolly & Callaghan Limited,581.00, 10-Jan-2011
,Revenue,CCHD,Bed and Breakfast,Bed & Breakfast,Connolly & Callaghan Limited,618.00, 10-Jan-2011
,Revenue,CCHD,Bed and Breakfast,Bed & Breakfast,Connolly & Callaghan Limited,511.00, 11-Jan-2011
,Revenue,CCHD,Bed and Breakfast,Bed & Breakfast,Connolly & Callaghan Limited,518.00, 20-Jan-2011
,Revenue,CCHD,Bed and Breakfast,Bed & Breakfast,Connolly & Callaghan Limited,511.00, 10-Jan-2011
,Revenue,CCHD,Bed and Breakfast,Bed & Breakfast,Connolly & Callaghan Limited,441.00, 10-Jan-2011
,Revenue,CCHD,Bed and Breakfast,Bed & Breakfast,Connolly & Callaghan Limited,511.00, 10-Jan-2011
,Revenue,CCHD,Bed and Breakfast,Bed & Breakfast,Connolly & Callaghan Limited,441.00, 10-Jan-2011
,Revenue,CCHD,Bed and Breakfast,Bed & Breakfast,Connolly & Callaghan Limited,476.00, 10-Jan-2011
,Revenue,CCHD,Bed and Breakfast,Bed & Breakfast,Connolly & Callaghan Limited,441.00, 10-Jan-2011
,Revenue,CCHD,Bed and Breakfast,Bed & Breakfast,Connolly & Callaghan Limited,441.00, 21-Jan-2011
,Revenue,CCHD,Bed and Breakfast,Bed & Breakfast,Connolly & Callaghan Limited,546.00, 21-Jan-2011
,Revenue,CCHD,Bed and Breakfast,Bed & Breakfast,Connolly & Callaghan Limited,581.00, 21-Jan-2011
,Revenue,CCHD,Bed and Breakfast,Bed & Breakfast,Connolly & Callaghan Limited,721.00, 21-Jan-2011
,Revenue,CCHD,Bed and Breakfast,Bed & Breakfast,Connolly & Callaghan Limited,511.00, 21-Jan-2011
,Revenue,CCHD,Bed and Breakfast,Bed & Breakfast,Connolly & Callaghan Limited,511.00, 24-Jan-2011
,Revenue,CCHD,Bed and Breakfast,Bed & Breakfast,Connolly & Callaghan Limited,441.00, 21-Jan-2011
,Revenue,CCHD,Bed and Breakfast,Bed & Breakfast,Connolly & Callaghan Limited,546.00, 21-Jan-2011
,Revenue,CCHD,Bed and Breakfast,Bed & Breakfast,Connolly & Callaghan Limited,511.00, 21-Jan-2011
,Revenue,CCHD,Bed and Breakfast,Bed & Breakfast,Connolly & Callaghan Limited,476.00, 21-Jan-2011
,Revenue,CCHD,Bed and Breakfast,Bed & Breakfast,Connolly & Callaghan Limited,441.00, 21-Jan-2011
,Revenue,CCHD,Bed and Breakfast,Bed & Breakfast,Connolly & Callaghan Limited,476.00, 21-Jan-2011
,Revenue,CCHD,Bed and Breakfast,Bed & Breakfast,Connolly & Callaghan Limited,441.00, 21-Jan-2011
,Revenue,CCHD,Bed and Breakfast,Bed & Breakfast,Connolly & Callaghan Limited,441.00, 27-Jan-2011
,Revenue,CCHD,Bed and Breakfast,Bed & Breakfast,Connolly & Callaghan Limited,546.00, 28-Jan-2011
,Revenue,CCHD,Bed and Breakfast,Bed & Breakfast,Connolly & Callaghan Limited,721.00, 27-Jan-2011
,Revenue,CCHD,Bed and Breakfast,Bed & Breakfast,Connolly & Callaghan Limited,511.00, 27-Jan-2011
,Revenue,CCHD,Bed and Breakfast,Bed & Breakfast,Connolly & Callaghan Limited,441.00, 27-Jan-2011
,Revenue,CCHD,Bed and Breakfast,Bed & Breakfast,Connolly & Callaghan Limited,511.00, 27-Jan-2011
,Revenue,CCHD,Bed and Breakfast,Bed & Breakfast,Connolly & Callaghan Limited,476.00, 27-Jan-2011
,Revenue,CCHD,Bed and Breakfast,Bed & Breakfast,Connolly & Callaghan Limited,476.00, 27-Jan-2011
,Revenue,CCHD,Bed and Breakfast,Bed & Breakfast,Connolly & Callaghan Limited,441.00, 27-Jan-2011
,Revenue,CCHD,Bed and Breakfast,Bed & Breakfast,Connolly & Callaghan Limited,441.00, 27-Jan-2011
,Revenue,CCHD,Wapley Court,Gas,Corona Energy Retail 3 Limited,790.62, 06-Jan-2011
,Revenue,CCHD,Kingswood District Office,Gas,Corona Energy Retail 3 Limited,560.68, 06-Jan-2011
,Revenue,CCHD,Blackhorse RAC,Gas,Corona Energy Retail 3 Limited,1122.67, 06-Jan-2011
,Revenue,CCHD,Downend Day Centre,Gas,Corona Energy Retail 3 Limited,2571.16, 06-Jan-2011
,Revenue,CCHD,Newton House,Gas,Corona Energy Retail 3 Limited,2375.55, 06-Jan-2011
,Revenue,CCHD,Frome House,Gas,Corona Energy Retail 3 Limited,1542.78, 06-Jan-2011
,Revenue,CCHD,Kerr House,Gas,Corona Energy Retail 3 Limited,1381.56, 06-Jan-2011
,Revenue,CCHD,Woodleaze,Gas,Corona Energy Retail 3 Limited,1535.19, 06-Jan-2011
,Revenue,CCHD,Alexandra Way,Gas,Corona Energy Retail 3 Limited,1919.69, 06-Jan-2011
,Revenue,CCHD,Charlton,Gas,Corona Energy Retail 3 Limited,1357.25, 06-Jan-2011
,Revenue,CCHD,Wapley Court,Gas,Corona Energy Retail 3 Limited,1050.05, 17-Jan-2011
,Revenue,CCHD,Emersons Green Offices,Gas,Corona Energy Retail 3 Limited,556.72, 17-Jan-2011
,Revenue,CCHD,Kingswood District Office,Gas,Corona Energy Retail 3 Limited,883.01, 17-Jan-2011
,Revenue,CCHD,Blackhorse RAC,Gas,Corona Energy Retail 3 Limited,1767.72, 17-Jan-2011
,Revenue,CCHD,Downend Day Centre,Gas,Corona Energy Retail 3 Limited,3395.69, 17-Jan-2011
,Revenue,CCHD,Newton House,Gas,Corona Energy Retail 3 Limited,2313.74, 17-Jan-2011
,Revenue,CCHD,Frome House,Gas,Corona Energy Retail 3 Limited,2090.24, 17-Jan-2011
,Revenue,CCHD,Kerr House,Gas,Corona Energy Retail 3 Limited,1349.82, 17-Jan-2011
,Revenue,CCHD,Woodleaze,Gas,Corona Energy Retail 3 Limited,1949.89, 17-Jan-2011
,Revenue,CCHD,Alexandra Way,Gas,Corona Energy Retail 3 Limited,2776.42, 17-Jan-2011
,Revenue,CCHD,Charlton,Gas,Corona Energy Retail 3 Limited,1789.78, 17-Jan-2011
,Revenue,CCHD,Detained,Nursing Homes,Craegmoor Facilities Company Ltd,13573.66, 21-Jan-2011
,Revenue,CCHD,Learning Difficulties PSL,Rent,Individual,1800.00, 21-Jan-2011
,Revenue,CCHD,S28a Day Care,Private & Voluntary Day Care,DCF Premier Workshops Trust,1538.86, 25-Jan-2011
,Revenue,CCHD,Day Care - North,Private & Voluntary Day Care,Deafblind UK,1265.92, 10-Jan-2011
,Revenue,CCHD,Day Care - North,Private & Voluntary Day Care,Deafblind UK,1261.26, 13-Jan-2011
,Revenue,CCHD,Learning Difficulties Development Fund,Printing & Stationery,Digital Print Specialists,2126.00, 24-Jan-2011
,Revenue,CCHD,Home Care Purch South,Other Small Contracts,DoCare Ltd,2106.45, 19-Jan-2011
,Revenue,CCHD,Home Care Purch North,Other Small Contracts,DoCare Ltd,3510.75, 19-Jan-2011
,Revenue,CCHD,Day Care - South,Private & Voluntary Day Care,DoCare Ltd,204.60, 19-Jan-2011
,Revenue,CCHD,Day Care - North,Private & Voluntary Day Care,DoCare Ltd,478.95, 19-Jan-2011
,Revenue,CCHD,Elderly MH Home Care,Other Small Contracts,DoCare Ltd,539.40, 19-Jan-2011
,Revenue,CCHD,Elderly MH non-res purchasing,Private & Voluntary Day Care,DoCare Ltd,74.40, 19-Jan-2011
,Revenue,CCHD,Home Care Purch South,Other Small Contracts,DoCare Ltd,2059.95, 27-Jan-2011
,Revenue,CCHD,Home Care Purch North,Other Small Contracts,DoCare Ltd,3496.80, 27-Jan-2011
,Revenue,CCHD,Day Care - South,Private & Voluntary Day Care,DoCare Ltd,116.25, 27-Jan-2011
,Revenue,CCHD,Day Care - North,Private & Voluntary Day Care,DoCare Ltd,437.10, 27-Jan-2011
,Revenue,CCHD,Elderly MH Home Care,Other Small Contracts,DoCare Ltd,418.50, 27-Jan-2011
,Revenue,CCHD,Elderly MH non-res purchasing,Private & Voluntary Day Care,DoCare Ltd,74.40, 27-Jan-2011
,Revenue,CCHD,Home Care Purch South,Other Small Contracts,DoCare Ltd,1915.80, 28-Jan-2011
,Revenue,CCHD,Home Care Purch North,Other Small Contracts,DoCare Ltd,3385.20, 28-Jan-2011
,Revenue,CCHD,Day Care - South,Private & Voluntary Day Care,DoCare Ltd,213.90, 28-Jan-2011
,Revenue,CCHD,Day Care - North,Private & Voluntary Day Care,DoCare Ltd,446.40, 28-Jan-2011
,Revenue,CCHD,Elderly MH Home Care,Other Small Contracts,DoCare Ltd,534.75, 28-Jan-2011
,Revenue,CCHD,Elderly MH non-res purchasing,Private & Voluntary Day Care,DoCare Ltd,74.40, 28-Jan-2011
,Revenue,CCHD,Home Care Purch South,Other Small Contracts,DoCare Ltd,2162.25, 28-Jan-2011
,Revenue,CCHD,Home Care Purch North,Other Small Contracts,DoCare Ltd,3645.60, 28-Jan-2011
,Revenue,CCHD,Day Care - South,Private & Voluntary Day Care,DoCare Ltd,111.60, 28-Jan-2011
,Revenue,CCHD,Day Care - North,Private & Voluntary Day Care,DoCare Ltd,441.75, 28-Jan-2011
,Revenue,CCHD,Elderly MH Home Care,Other Small Contracts,DoCare Ltd,506.85, 28-Jan-2011
,Revenue,CCHD,Elderly MH non-res purchasing,Private & Voluntary Day Care,DoCare Ltd,167.40, 28-Jan-2011
,Revenue,CCHD,Home Care Purch South,Other Small Contracts,DoCare Ltd,2148.30, 28-Jan-2011
,Revenue,CCHD,Home Care Purch North,Other Small Contracts,DoCare Ltd,3515.40, 28-Jan-2011
,Revenue,CCHD,Day Care - South,Private & Voluntary Day Care,DoCare Ltd,111.60, 28-Jan-2011
,Revenue,CCHD,Day Care - North,Private & Voluntary Day Care,DoCare Ltd,483.60, 28-Jan-2011
,Revenue,CCHD,Elderly MH Home Care,Other Small Contracts,DoCare Ltd,539.40, 28-Jan-2011
,Revenue,CCHD,Elderly MH non-res purchasing,Private & Voluntary Day Care,DoCare Ltd,74.40, 28-Jan-2011
,Revenue,CCHD,Home Care Purch South,Other Small Contracts,DoCare Ltd,2069.25, 28-Jan-2011
,Revenue,CCHD,Home Care Purch North,Other Small Contracts,DoCare Ltd,3510.75, 28-Jan-2011
,Revenue,CCHD,Day Care - South,Private & Voluntary Day Care,DoCare Ltd,120.90, 28-Jan-2011
,Revenue,CCHD,Day Care - North,Private & Voluntary Day Care,DoCare Ltd,478.95, 28-Jan-2011
,Revenue,CCHD,Elderly MH Home Care,Other Small Contracts,DoCare Ltd,492.90, 28-Jan-2011
,Revenue,CCHD,Elderly MH non-res purchasing,Private & Voluntary Day Care,DoCare Ltd,74.40, 28-Jan-2011
,Revenue,CCHD,Home Care Purch South,Other Small Contracts,DoCare Ltd,1990.20, 28-Jan-2011
,Revenue,CCHD,Home Care Purch North,Other Small Contracts,DoCare Ltd,3045.75, 28-Jan-2011
,Revenue,CCHD,Day Care - South,Private & Voluntary Day Care,DoCare Ltd,111.60, 28-Jan-2011
,Revenue,CCHD,Day Care - North,Private & Voluntary Day Care,DoCare Ltd,395.25, 28-Jan-2011
,Revenue,CCHD,Elderly MH Home Care,Other Small Contracts,DoCare Ltd,297.60, 28-Jan-2011
,Revenue,CCHD,Elderly MH non-res purchasing,Private & Voluntary Day Care,DoCare Ltd,74.40, 28-Jan-2011
,Revenue,CCHD,Home Care Purch South,Other Small Contracts,DoCare Ltd,2041.35, 28-Jan-2011
,Revenue,CCHD,Home Care Purch North,Other Small Contracts,DoCare Ltd,3273.60, 28-Jan-2011
,Revenue,CCHD,Day Care - South,Private & Voluntary Day Care,DoCare Ltd,102.30, 28-Jan-2011
,Revenue,CCHD,Day Care - North,Private & Voluntary Day Care,DoCare Ltd,381.30, 28-Jan-2011
,Revenue,CCHD,Elderly MH Home Care,Other Small Contracts,DoCare Ltd,339.45, 28-Jan-2011
,Revenue,CCHD,Elderly MH non-res purchasing,Private & Voluntary Day Care,DoCare Ltd,74.40, 28-Jan-2011
,Revenue,CCHD,Brokerage and Information Service,Grants to Voluntary Bodies,Drugs & Homeless Initiative,9210.09, 27-Jan-2011
,Revenue,CCHD,Supporting People Programme,Grants to Voluntary Bodies,Drugs & Homeless Initiative,30000.00, 28-Jan-2011
,Revenue,CCHD,Management & Support costs,Other Supplies & Services,Due North Ltd,675.00, 21-Jan-2011
,Revenue,CCHD,Bed and Breakfast,Bed & Breakfast,E J Bartlett,546.00, 07-Jan-2011
,Revenue,CCHD,Bed and Breakfast,Bed & Breakfast,E J Bartlett,546.00, 07-Jan-2011
,Revenue,CCHD,Bed and Breakfast,Bed & Breakfast,E J Bartlett,455.00, 07-Jan-2011
,Revenue,CCHD,Bed and Breakfast,Bed & Breakfast,E J Bartlett,546.00, 07-Jan-2011
,Revenue,CCHD,Bed and Breakfast,Bed & Breakfast,E J Bartlett,546.00, 12-Jan-2011
,Revenue,CCHD,Bed and Breakfast,Bed & Breakfast,E J Bartlett,546.00, 17-Jan-2011
,Revenue,CCHD,Bed and Breakfast,Bed & Breakfast,E J Bartlett,455.00, 12-Jan-2011
,Revenue,CCHD,Bed and Breakfast,Bed & Breakfast,E J Bartlett,546.00, 12-Jan-2011
,Revenue,CCHD,Bed and Breakfast,Bed & Breakfast,E J Bartlett,546.00, 17-Jan-2011
,Revenue,CCHD,Bed and Breakfast,Bed & Breakfast,E J Bartlett,468.00, 19-Jan-2011
,Revenue,CCHD,Bed and Breakfast,Bed & Breakfast,E J Bartlett,455.00, 17-Jan-2011
,Revenue,CCHD,Bed and Breakfast,Bed & Breakfast,E J Bartlett,546.00, 17-Jan-2011
,Revenue,CCHD,Bed and Breakfast,Bed & Breakfast,E J Bartlett,546.00, 21-Jan-2011
,Revenue,CCHD,Bed and Breakfast,Bed & Breakfast,E J Bartlett,455.00, 21-Jan-2011
,Revenue,CCHD,Bed and Breakfast,Bed & Breakfast,E J Bartlett,546.00, 21-Jan-2011
,Revenue,CCHD,Bed and Breakfast,Bed & Breakfast,E J Bartlett,546.00, 28-Jan-2011
,Revenue,CCHD,Bed and Breakfast,Bed & Breakfast,E J Bartlett,455.00, 28-Jan-2011
,Revenue,CCHD,Bed and Breakfast,Bed & Breakfast,E J Bartlett,546.00, 28-Jan-2011
,Revenue,CCHD,Blackhorse RAC,Electricity,EDF Energy 1 Limited,663.30, 14-Jan-2011
,Revenue,CCHD,Newton House,Electricity,EDF Energy 1 Limited,1015.91, 14-Jan-2011
,Revenue,CCHD,Downend Day Centre,Electricity,EDF Energy 1 Limited,827.07, 14-Jan-2011
,Revenue,CCHD,Downend Day Centre,Electricity,EDF Energy 1 Limited,712.47, 14-Jan-2011
,Revenue,CCHD,Alexandra Way,Electricity,EDF Energy 1 Limited,1352.98, 17-Jan-2011
,Revenue,CCHD,Wapley Court,Electricity,EDF Energy 1 Limited,1302.79, 17-Jan-2011
,Revenue,CCHD,Woodleaze,Electricity,EDF Energy 1 Limited,1192.56, 17-Jan-2011
,Revenue,CCHD,Detained,Nursing Homes,Erminecare Limited,13392.00, 12-Jan-2011
,Revenue,CCHD,Detained,Nursing Homes,Erminecare Limited,12096.00, 25-Jan-2011
,Revenue,CCHD,Freeways,Residential Homes,Freeways Trust Limited,42697.29, 20-Jan-2011
,Revenue,CCHD,Supported Living - PS,Private & Voluntary Home Care,Freeways Trust Limited,2178.53, 14-Jan-2011
,Revenue,CCHD,Supported Living - KD,Private & Voluntary Home Care,Freeways Trust Limited,3079.50, 06-Jan-2011
,Revenue,CCHD,Home Care Purch South,Other Small Contracts,Greenbanks Homecare (Western) Limited,5133.80, 24-Jan-2011
,Revenue,CCHD,Home Care Purch North,Other Small Contracts,Greenbanks Homecare (Western) Limited,312.66, 24-Jan-2011
,Revenue,CCHD,Day Care - South,Private & Voluntary Day Care,Greenbanks Homecare (Western) Limited,281.78, 24-Jan-2011
,Revenue,CCHD,Carer`s Grant - South,Carers Breaks & Services,Greenbanks Homecare (Western) Limited,111.94, 24-Jan-2011
,Revenue,CCHD,Under 65s -MH  Home Care Purch,Other Small Contracts,Greenbanks Homecare (Western) Limited,177.56, 24-Jan-2011
,Revenue,CCHD,Elderly MH Home Care,Other Small Contracts,Greenbanks Homecare (Western) Limited,378.28, 24-Jan-2011
,Revenue,CCHD,Home Care Purch South,Other Small Contracts,Greenbanks Homecare (Western) Limited,4500.76, 24-Jan-2011
,Revenue,CCHD,Home Care Purch North,Other Small Contracts,Greenbanks Homecare (Western) Limited,563.56, 24-Jan-2011
,Revenue,CCHD,Day Care - South,Private & Voluntary Day Care,Greenbanks Homecare (Western) Limited,281.78, 24-Jan-2011
,Revenue,CCHD,Carer`s Grant - South,Carers Breaks & Services,Greenbanks Homecare (Western) Limited,61.76, 24-Jan-2011
,Revenue,CCHD,Under 65s -MH  Home Care Purch,Other Small Contracts,Greenbanks Homecare (Western) Limited,165.98, 24-Jan-2011
,Revenue,CCHD,Elderly MH Home Care,Other Small Contracts,Greenbanks Homecare (Western) Limited,328.10, 24-Jan-2011
,Revenue,CCHD,Home Care Purch South,Other Small Contracts,Guardian Homecare (Bristol & Avon) Ltd,2889.48, 11-Jan-2011
,Revenue,CCHD,Home Care Purch North,Other Small Contracts,Guardian Homecare (Bristol & Avon) Ltd,4159.10, 11-Jan-2011
,Revenue,CCHD,Day Care - South,Private & Voluntary Day Care,Guardian Homecare (Bristol & Avon) Ltd,257.20, 11-Jan-2011
,Revenue,CCHD,Day Care - North,Private & Voluntary Day Care,Guardian Homecare (Bristol & Avon) Ltd,788.04, 11-Jan-2011
,Revenue,CCHD,Elderly MH Home Care,Other Small Contracts,Guardian Homecare (Bristol & Avon) Ltd,362.18, 11-Jan-2011
,Revenue,CCHD,Elderly MH non-res purchasing,Private & Voluntary Day Care,Guardian Homecare (Bristol & Avon) Ltd,47.76, 11-Jan-2011
,Revenue,CCHD,PWLD Home Care - Under 65 - PS,Private & Voluntary Home Care,Guardian Homecare (Bristol & Avon) Ltd,31.84, 11-Jan-2011
,Revenue,CCHD,PWLD Home Care - Under 65 - KH,Private & Voluntary Home Care,Guardian Homecare (Bristol & Avon) Ltd,71.64, 11-Jan-2011
,Revenue,CCHD,Home Care Purch South,Other Small Contracts,Guardian Homecare (Bristol & Avon) Ltd,2809.88, 17-Jan-2011
,Revenue,CCHD,Home Care Purch North,Other Small Contracts,Guardian Homecare (Bristol & Avon) Ltd,3605.88, 17-Jan-2011
,Revenue,CCHD,Day Care - South,Private & Voluntary Day Care,Guardian Homecare (Bristol & Avon) Ltd,264.04, 17-Jan-2011
,Revenue,CCHD,Day Care - North,Private & Voluntary Day Care,Guardian Homecare (Bristol & Avon) Ltd,680.58, 17-Jan-2011
,Revenue,CCHD,Elderly MH Home Care,Other Small Contracts,Guardian Homecare (Bristol & Avon) Ltd,370.14, 17-Jan-2011
,Revenue,CCHD,Elderly MH non-res purchasing,Private & Voluntary Day Care,Guardian Homecare (Bristol & Avon) Ltd,88.80, 17-Jan-2011
,Revenue,CCHD,PWLD Home Care - Under 65 - PS,Private & Voluntary Home Care,Guardian Homecare (Bristol & Avon) Ltd,31.84, 17-Jan-2011
,Revenue,CCHD,PWLD Home Care - Under 65 - KD,Private & Voluntary Home Care,Guardian Homecare (Bristol & Avon) Ltd,15.92, 17-Jan-2011
,Revenue,CCHD,PWLD Home Care - Under 65 - KH,Private & Voluntary Home Care,Guardian Homecare (Bristol & Avon) Ltd,147.26, 17-Jan-2011
,Revenue,CCHD,Home Care Purch South,Other Small Contracts,Guardian Homecare (Bristol & Avon) Ltd,2728.60, 17-Jan-2011
,Revenue,CCHD,Home Care Purch North,Other Small Contracts,Guardian Homecare (Bristol & Avon) Ltd,3318.20, 17-Jan-2011
,Revenue,CCHD,Day Care - South,Private & Voluntary Day Care,Guardian Homecare (Bristol & Avon) Ltd,243.52, 17-Jan-2011
,Revenue,CCHD,Day Care - North,Private & Voluntary Day Care,Guardian Homecare (Bristol & Avon) Ltd,680.58, 17-Jan-2011
,Revenue,CCHD,Elderly MH Home Care,Other Small Contracts,Guardian Homecare (Bristol & Avon) Ltd,370.14, 17-Jan-2011
,Revenue,CCHD,Elderly MH non-res purchasing,Private & Voluntary Day Care,Guardian Homecare (Bristol & Avon) Ltd,88.80, 17-Jan-2011
,Revenue,CCHD,PWLD Home Care - Under 65 - PS,Private & Voluntary Home Care,Guardian Homecare (Bristol & Avon) Ltd,31.84, 17-Jan-2011
,Revenue,CCHD,PWLD Home Care - Under 65 - KD,Private & Voluntary Home Care,Guardian Homecare (Bristol & Avon) Ltd,15.92, 17-Jan-2011
,Revenue,CCHD,PWLD Home Care - Under 65 - KH,Private & Voluntary Home Care,Guardian Homecare (Bristol & Avon) Ltd,159.20, 17-Jan-2011
,Revenue,CCHD,Home Care Purch South,Other Small Contracts,Guardian Homecare (Bristol & Avon) Ltd,2774.06, 24-Jan-2011
,Revenue,CCHD,Home Care Purch North,Other Small Contracts,Guardian Homecare (Bristol & Avon) Ltd,3255.64, 24-Jan-2011
,Revenue,CCHD,Day Care - South,Private & Voluntary Day Care,Guardian Homecare (Bristol & Avon) Ltd,241.28, 24-Jan-2011
,Revenue,CCHD,Day Care - North,Private & Voluntary Day Care,Guardian Homecare (Bristol & Avon) Ltd,720.38, 24-Jan-2011
,Revenue,CCHD,Elderly MH Home Care,Other Small Contracts,Guardian Homecare (Bristol & Avon) Ltd,302.48, 24-Jan-2011
,Revenue,CCHD,Elderly MH non-res purchasing,Private & Voluntary Day Care,Guardian Homecare (Bristol & Avon) Ltd,81.40, 24-Jan-2011
,Revenue,CCHD,PWLD Home Care - Under 65 - KD,Private & Voluntary Home Care,Guardian Homecare (Bristol & Avon) Ltd,15.92, 24-Jan-2011
,Revenue,CCHD,PWLD Home Care - Under 65 - KH,Private & Voluntary Home Care,Guardian Homecare (Bristol & Avon) Ltd,75.62, 24-Jan-2011
,Revenue,CCHD,Home Care Purch South,Other Small Contracts,Guardian Homecare (Bristol & Avon) Ltd,2590.98, 27-Jan-2011
,Revenue,CCHD,Home Care Purch North,Other Small Contracts,Guardian Homecare (Bristol & Avon) Ltd,3426.78, 27-Jan-2011
,Revenue,CCHD,Day Care - South,Private & Voluntary Day Care,Guardian Homecare (Bristol & Avon) Ltd,261.18, 27-Jan-2011
,Revenue,CCHD,Day Care - North,Private & Voluntary Day Care,Guardian Homecare (Bristol & Avon) Ltd,620.88, 27-Jan-2011
,Revenue,CCHD,Elderly MH Home Care,Other Small Contracts,Guardian Homecare (Bristol & Avon) Ltd,374.12, 27-Jan-2011
,Revenue,CCHD,Elderly MH non-res purchasing,Private & Voluntary Day Care,Guardian Homecare (Bristol & Avon) Ltd,84.82, 27-Jan-2011
,Revenue,CCHD,PWLD Home Care - Under 65 - PS,Private & Voluntary Home Care,Guardian Homecare (Bristol & Avon) Ltd,31.84, 27-Jan-2011
,Revenue,CCHD,PWLD Home Care - Under 65 - KD,Private & Voluntary Home Care,Guardian Homecare (Bristol & Avon) Ltd,15.92, 27-Jan-2011
,Revenue,CCHD,PWLD Home Care - Under 65 - KH,Private & Voluntary Home Care,Guardian Homecare (Bristol & Avon) Ltd,167.16, 27-Jan-2011
,Revenue,CCHD,Home Care Purch South,Other Small Contracts,Guardian Homecare (Bristol & Avon) Ltd,2825.80, 27-Jan-2011
,Revenue,CCHD,Home Care Purch North,Other Small Contracts,Guardian Homecare (Bristol & Avon) Ltd,3303.40, 27-Jan-2011
,Revenue,CCHD,Day Care - South,Private & Voluntary Day Care,Guardian Homecare (Bristol & Avon) Ltd,220.14, 27-Jan-2011
,Revenue,CCHD,Day Care - North,Private & Voluntary Day Care,Guardian Homecare (Bristol & Avon) Ltd,768.14, 27-Jan-2011
,Revenue,CCHD,Elderly MH Home Care,Other Small Contracts,Guardian Homecare (Bristol & Avon) Ltd,318.40, 27-Jan-2011
,Revenue,CCHD,Elderly MH non-res purchasing,Private & Voluntary Day Care,Guardian Homecare (Bristol & Avon) Ltd,119.02, 27-Jan-2011
,Revenue,CCHD,PWLD Home Care - Under 65 - PS,Private & Voluntary Home Care,Guardian Homecare (Bristol & Avon) Ltd,27.86, 27-Jan-2011
,Revenue,CCHD,PWLD Home Care - Under 65 - KD,Private & Voluntary Home Care,Guardian Homecare (Bristol & Avon) Ltd,15.92, 27-Jan-2011
,Revenue,CCHD,PWLD Home Care - Under 65 - KH,Private & Voluntary Home Care,Guardian Homecare (Bristol & Avon) Ltd,167.16, 27-Jan-2011
,Revenue,CCHD,Homelessness Grant,Agency Staff (Admin/Support Staff) Pay,Hays Specialist Recruitment,745.33, 21-Jan-2011
,Revenue,CCHD,Homelessness Grant,Agency Staff (Admin/Support Staff) Pay,Hays Specialist Recruitment,686.83, 21-Jan-2011
,Revenue,CCHD,Homelessness Grant,Agency Staff (Admin/Support Staff) Pay,Hays Specialist Recruitment,647.52, 21-Jan-2011
,Revenue,CCHD,Homelessness Grant,Agency Staff (Admin/Support Staff) Pay,Hays Specialist Recruitment,678.14, 21-Jan-2011
,Revenue,CCHD,Homelessness Grant,Agency Staff (Admin/Support Staff) Pay,Hays Specialist Recruitment,682.52, 21-Jan-2011
,Revenue,CCHD,Southmead Hospital Team,Agency Staff (Operational)/PCT Pay,Hays Specialist Recruitment,1099.48, 13-Jan-2011
,Revenue,CCHD,Southmead Hospital Team,Agency Staff (Operational)/PCT Pay,Hays Specialist Recruitment,667.27, 21-Jan-2011
,Revenue,CCHD,Getting a Life Project,Other Supplies & Services,Helen Sanderson Associates Limited,16100.00, 28-Jan-2011
,Revenue,CCHD,Elderly Purchasing - North,Nursing Homes,Horfield Care Limited,4174.25, 26-Jan-2011
,Revenue,CCHD,Frenchay Hospital Purchasing,Nursing Homes,Horfield Care Limited,9315.83, 26-Jan-2011
,Revenue,CCHD,Southmead Hospital Purchasing,Nursing Homes,Horfield Care Limited,1615.71, 26-Jan-2011
,Revenue,CCHD,S28A - Over 65,Nursing Homes,Horfield Care Limited,1687.28, 26-Jan-2011
,Revenue,CCHD,Supporting People Programme,Grants to Voluntary Bodies,Keyring Living Support Networks,2577.60, 14-Jan-2011
,Revenue,CCHD,LD - Kingswood PCT,Other Transport Costs,Kingswood Congregational Church,560.00, 25-Jan-2011
,Revenue,CCHD,Supporting People Programme,Grants to Voluntary Bodies,Knightstone Housing Association Ltd,8228.49, 06-Jan-2011
,Revenue,CCHD,Contracts & Commissioning Team,Other Small Contracts,Kumari Care Limited,7500.00, 07-Jan-2011
,Revenue,CCHD,Contracts & Commissioning Team,Other Small Contracts,Kumari Care Limited,7500.00, 07-Jan-2011
,Revenue,CCHD,Contracts & Commissioning Team,Other Small Contracts,Kumari Care Limited,7500.00, 14-Jan-2011
,Revenue,CCHD,Contracts & Commissioning Team,Other Small Contracts,Kumari Care Limited,7500.00, 21-Jan-2011
,Revenue,CCHD,Contracts & Commissioning Team,Other Small Contracts,Kumari Care Limited,7500.00, 28-Jan-2011
,Revenue,CCHD,Home Care Purch North,Other Small Contracts,Kumari Care Limited,809.87, 19-Jan-2011
,Revenue,CCHD,Home Care Purch North,Other Small Contracts,Kumari Care Limited,809.87, 19-Jan-2011
,Revenue,CCHD,Better Support for Older People,Other Supplies & Services,Lloyds TSB Commercial Finance Limited,588.44, 20-Jan-2011
,Revenue,CCHD,Supported Living - KH,Private & Voluntary Home Care,Lloyds TSB Commercial Finance Limited,5805.87, 27-Jan-2011
,Revenue,CCHD,Supported Living - PS,Private & Voluntary Home Care,Lloyds TSB Commercial Finance Limited,7277.34, 11-Jan-2011
,Revenue,CCHD,Supported Living - KD,Private & Voluntary Home Care,Lloyds TSB Commercial Finance Limited,1125.60, 27-Jan-2011
,Revenue,CCHD,Supported Living - PS,Private & Voluntary Home Care,Lloyds TSB Commercial Finance Limited,4052.28, 11-Jan-2011
,Revenue,CCHD,Home Care Purch South,Other Small Contracts,Lloyds TSB Commercial Finance Limited,68.94, 19-Jan-2011
,Revenue,CCHD,Home Care Purch North,Other Small Contracts,Lloyds TSB Commercial Finance Limited,3263.16, 19-Jan-2011
,Revenue,CCHD,Day Care - North,Private & Voluntary Day Care,Lloyds TSB Commercial Finance Limited,513.22, 19-Jan-2011
,Revenue,CCHD,Elderly MH Home Care,Other Small Contracts,Lloyds TSB Commercial Finance Limited,65.11, 19-Jan-2011
,Revenue,CCHD,Elderly MH non-res purchasing,Private & Voluntary Day Care,Lloyds TSB Commercial Finance Limited,30.64, 19-Jan-2011
,Revenue,CCHD,Supported Living - PS,Private & Voluntary Day Care,Lloyds TSB Commercial Finance Limited,742.35, 12-Jan-2011
,Revenue,CCHD,Charlton,Cleaning & Domestic Supplies,Medaco,432.90, 14-Jan-2011
,Revenue,CCHD,NRS Contract,Daily Living Equipment,Medequip Assistive Technology Ltd,41313.54, 27-Jan-2011
,Revenue,CCHD,NRS Contract,Daily Living Equipment,Medequip Assistive Technology Ltd,35521.01, 27-Jan-2011
,Revenue,CCHD,NRS Contract,Other Supplies & Services,Medequip Assistive Technology Ltd,4283.20, 27-Jan-2011
,Revenue,CCHD,Contracts & Commissioning Team,Other Small Contracts,Medico Nursing & Homecare Ltd,18000.00, 07-Jan-2011
,Revenue,CCHD,Contracts & Commissioning Team,Other Small Contracts,Medico Nursing & Homecare Ltd,18000.00, 07-Jan-2011
,Revenue,CCHD,Contracts & Commissioning Team,Other Small Contracts,Medico Nursing & Homecare Ltd,18000.00, 14-Jan-2011
,Revenue,CCHD,Contracts & Commissioning Team,Other Small Contracts,Medico Nursing & Homecare Ltd,18000.00, 21-Jan-2011
,Revenue,CCHD,Contracts & Commissioning Team,Other Small Contracts,Medico Nursing & Homecare Ltd,18000.00, 28-Jan-2011
,Revenue,CCHD,Home Care Purch North,Other Small Contracts,Medico Nursing & Homecare Ltd,1927.73, 06-Jan-2011
,Revenue,CCHD,Home Care Purch North,Other Small Contracts,Medico Nursing & Homecare Ltd,1927.73, 07-Jan-2011
,Revenue,CCHD,Home Care Purch North,Other Small Contracts,Medico Nursing & Homecare Ltd,1927.73, 14-Jan-2011
,Revenue,CCHD,Home Care Purch North,Other Small Contracts,Medico Nursing & Homecare Ltd,1927.73, 21-Jan-2011
,Revenue,CCHD,Home Care Purch North,Other Small Contracts,Medico Nursing & Homecare Ltd,1927.73, 28-Jan-2011
,Revenue,CCHD,Wapley Court,Prop.Serv. General Repairs,Merlin Housing Society,401.25, 25-Jan-2011
,Revenue,CCHD,Intermediate Care Accommodation,Other Supplies & Services,Merlin Housing Society,880.79, 21-Jan-2011
,Revenue,CCHD,Elderly Mental Health,Residential Homes,Mid Lothian Council,8670.45, 28-Jan-2011
,Revenue,CCHD,Contracts & Commissioning Team,Other Small Contracts,Milestones Outreach Dementia Services,2000.00, 07-Jan-2011
,Revenue,CCHD,Contracts & Commissioning Team,Other Small Contracts,Milestones Outreach Dementia Services,2000.00, 07-Jan-2011
,Revenue,CCHD,Contracts & Commissioning Team,Other Small Contracts,Milestones Outreach Dementia Services,2000.00, 14-Jan-2011
,Revenue,CCHD,Contracts & Commissioning Team,Other Small Contracts,Milestones Outreach Dementia Services,2000.00, 21-Jan-2011
,Revenue,CCHD,Contracts & Commissioning Team,Other Small Contracts,Milestones Outreach Dementia Services,2000.00, 28-Jan-2011
,Revenue,CCHD,Supported Living - PS,Private & Voluntary Home Care,Moving On,6440.99, 21-Jan-2011
,Revenue,CCHD,Day Care - North,Private & Voluntary Day Care,Mrs B Kimber,696.82, 10-Jan-2011
,Revenue,CCHD,Day Care - North,Private & Voluntary Day Care,Mrs B Kimber,1127.00, 10-Jan-2011
,Revenue,CCHD,Day Care - South,Private & Voluntary Day Care,Mrs B Kimber,853.97, 12-Jan-2011
,Revenue,CCHD,Elderly MH non-res purchasing,Private & Voluntary Day Care,Mrs B Kimber,763.14, 12-Jan-2011
,Revenue,CCHD,Elderly MH non-res purchasing,Private & Voluntary Day Care,Mrs B Kimber,699.55, 12-Jan-2011
,Revenue,CCHD,Day Care - South,Private & Voluntary Day Care,Mrs B Kimber,805.82, 12-Jan-2011
,Revenue,CCHD,Elderly MH non-res purchasing,Private & Voluntary Day Care,Mrs B Kimber,616.98, 12-Jan-2011
,Revenue,CCHD,Elderly MH non-res purchasing,Private & Voluntary Day Care,Mrs B Kimber,781.31, 12-Jan-2011
,Revenue,CCHD,Day Care - South,Private & Voluntary Day Care,Mrs B Kimber,759.27, 12-Jan-2011
,Revenue,CCHD,Elderly MH non-res purchasing,Private & Voluntary Day Care,Mrs B Kimber,759.27, 12-Jan-2011
,Revenue,CCHD,Day Care - North,Private & Voluntary Day Care,Mrs B Kimber,2143.61, 14-Jan-2011
,Revenue,CCHD,Supported Living - PS,Private & Voluntary Home Care,Mrs B Kimber,8588.07, 17-Jan-2011
,Revenue,CCHD,Supported Living - PS,Private & Voluntary Home Care,Mrs B Kimber,11259.10, 21-Jan-2011
,Revenue,CCHD,Supported Living - KD,Private & Voluntary Home Care,Mrs B Kimber,3734.49, 27-Jan-2011
,Revenue,CCHD,Supported Living - PS,Private & Voluntary Home Care,Mrs B Kimber,2282.14, 21-Jan-2011
,Revenue,CCHD,Purchase of Non-Res Care - KD,Private & Voluntary Day Care,Mrs B Kimber,572.36, 27-Jan-2011
,Revenue,CCHD,Purchase of Non-Res Care - KD,Private & Voluntary Day Care,Mrs B Kimber,639.54, 27-Jan-2011
,Revenue,CCHD,Supported Living - KD,Private & Voluntary Home Care,Mrs B Kimber,1162.90, 27-Jan-2011
,Revenue,CCHD,Contracts & Commissioning Team,Other Small Contracts,Mrs B Kimber,8000.00, 07-Jan-2011
,Revenue,CCHD,Contracts & Commissioning Team,Other Small Contracts,Mrs B Kimber,8000.00, 07-Jan-2011
,Revenue,CCHD,Contracts & Commissioning Team,Other Small Contracts,Mrs B Kimber,8000.00, 14-Jan-2011
,Revenue,CCHD,Contracts & Commissioning Team,Other Small Contracts,Mrs B Kimber,8000.00, 21-Jan-2011
,Revenue,CCHD,Contracts & Commissioning Team,Other Small Contracts,Mrs B Kimber,8000.00, 28-Jan-2011
,Revenue,CCHD,Younger MH non-res purchasing,Private & Voluntary Home Care,Mrs Felicity Cooksley,1676.00, 17-Jan-2011
,Revenue,CCHD,Purchase of Non-Res Care - KD,Private & Voluntary Day Care,Individual,1460.00, 28-Jan-2011
,Revenue,CCHD,Old Long Stay Deaths,Legal Fees,Individual,1325.00, 25-Jan-2011
,Revenue,CCHD,Wapley Court,Cleaning & Domestic Supplies,Muzzell Healthcare,550.30, 11-Jan-2011
,Revenue,CCHD,Alexandra Way,Cleaning & Domestic Supplies,Muzzell Healthcare,744.57, 19-Jan-2011
,Revenue,CCHD,Younger MH non-res purchasing,Private & Voluntary Day Care,NAS Services Limited,504.48, 06-Jan-2011
,Revenue,CCHD,Purchase of Non-Res Care - KD,Private & Voluntary Day Care,Natureworks Training Community Interest,2192.49, 06-Jan-2011
,Revenue,CCHD,Contracts & Commissioning Team,Other Small Contracts,Network Health & Social Care,2500.00, 07-Jan-2011
,Revenue,CCHD,Contracts & Commissioning Team,Other Small Contracts,Network Health & Social Care,2500.00, 07-Jan-2011
,Revenue,CCHD,Contracts & Commissioning Team,Other Small Contracts,Network Health & Social Care,2500.00, 14-Jan-2011
,Revenue,CCHD,Contracts & Commissioning Team,Other Small Contracts,Network Health & Social Care,2500.00, 21-Jan-2011
,Revenue,CCHD,Contracts & Commissioning Team,Other Small Contracts,Network Health & Social Care,2500.00, 28-Jan-2011
,Revenue,CCHD,Mental Health Grant Training,Training Expenses,North Somerset Council,5900.00, 17-Jan-2011
,Revenue,CCHD,Information Systems - Software,Software Support & Maintenance,Northgate Information Solutions,2000.00, 10-Jan-2011
,Revenue,CCHD,Home Care Purch South,Other Small Contracts,Nursing Solutions Limited,988.20, 07-Jan-2011
,Revenue,CCHD,Elderly MH Home Care,Other Small Contracts,Nursing Solutions Limited,441.45, 07-Jan-2011
,Revenue,CCHD,Elderly MH non-res purchasing,Private & Voluntary Day Care,Nursing Solutions Limited,234.90, 07-Jan-2011
,Revenue,CCHD,Home Care Purch South,Other Small Contracts,Nursing Solutions Limited,939.60, 07-Jan-2011
,Revenue,CCHD,Elderly MH Home Care,Other Small Contracts,Nursing Solutions Limited,409.05, 07-Jan-2011
,Revenue,CCHD,Elderly MH non-res purchasing,Private & Voluntary Day Care,Nursing Solutions Limited,194.40, 07-Jan-2011
,Revenue,CCHD,Home Care Purch South,Other Small Contracts,Nursing Solutions Limited,996.30, 27-Jan-2011
,Revenue,CCHD,Elderly MH Home Care,Other Small Contracts,Nursing Solutions Limited,441.45, 27-Jan-2011
,Revenue,CCHD,Elderly MH non-res purchasing,Private & Voluntary Day Care,Nursing Solutions Limited,214.65, 27-Jan-2011
,Revenue,CCHD,Home Care Purch South,Other Small Contracts,Nursing Solutions Limited,1008.45, 07-Jan-2011
,Revenue,CCHD,Elderly MH Home Care,Other Small Contracts,Nursing Solutions Limited,425.25, 07-Jan-2011
,Revenue,CCHD,Elderly MH non-res purchasing,Private & Voluntary Day Care,Nursing Solutions Limited,255.15, 07-Jan-2011
,Revenue,CCHD,Home Care Purch South,Other Small Contracts,Nursing Solutions Limited,996.30, 07-Jan-2011
,Revenue,CCHD,Elderly MH Home Care,Other Small Contracts,Nursing Solutions Limited,441.45, 07-Jan-2011
,Revenue,CCHD,Elderly MH non-res purchasing,Private & Voluntary Day Care,Nursing Solutions Limited,234.90, 07-Jan-2011
,Revenue,CCHD,Home Care Purch South,Other Small Contracts,Nursing Solutions Limited,1004.40, 07-Jan-2011
,Revenue,CCHD,Elderly MH Home Care,Other Small Contracts,Nursing Solutions Limited,396.90, 07-Jan-2011
,Revenue,CCHD,Elderly MH non-res purchasing,Private & Voluntary Day Care,Nursing Solutions Limited,145.80, 07-Jan-2011
,Revenue,CCHD,Home Care Purch South,Other Small Contracts,Nursing Solutions Limited,741.15, 07-Jan-2011
,Revenue,CCHD,Elderly MH Home Care,Other Small Contracts,Nursing Solutions Limited,291.60, 07-Jan-2011
,Revenue,CCHD,Elderly MH non-res purchasing,Private & Voluntary Day Care,Nursing Solutions Limited,93.15, 07-Jan-2011
,Revenue,CCHD,Downend Day Centre,Cleaning & Domestic Supplies,PHS Group Plc,1085.39, 27-Jan-2011
,Revenue,CCHD,Home Care Purch North,Other Small Contracts,Premier Homecare Limited,9590.64, 06-Jan-2011
,Revenue,CCHD,Day Care - South,Private & Voluntary Day Care,Premier Homecare Limited,87.04, 06-Jan-2011
,Revenue,CCHD,Day Care - North,Private & Voluntary Day Care,Premier Homecare Limited,1060.80, 06-Jan-2011
,Revenue,CCHD,Elderly MH Home Care,Other Small Contracts,Premier Homecare Limited,184.96, 06-Jan-2011
,Revenue,CCHD,Elderly MH non-res purchasing,Private & Voluntary Day Care,Premier Homecare Limited,250.24, 06-Jan-2011
,Revenue,CCHD,Home Care Purch North,Other Small Contracts,Premier Homecare Limited,9215.28, 11-Jan-2011
,Revenue,CCHD,Day Care - North,Private & Voluntary Day Care,Premier Homecare Limited,772.48, 11-Jan-2011
,Revenue,CCHD,Elderly MH Home Care,Other Small Contracts,Premier Homecare Limited,146.88, 11-Jan-2011
,Revenue,CCHD,Elderly MH non-res purchasing,Private & Voluntary Day Care,Premier Homecare Limited,337.28, 11-Jan-2011
,Revenue,CCHD,Home Care Purch South,Other Small Contracts,Premier Homecare Limited,21.76, 12-Jan-2011
,Revenue,CCHD,Home Care Purch North,Other Small Contracts,Premier Homecare Limited,8205.04, 12-Jan-2011
,Revenue,CCHD,Day Care - North,Private & Voluntary Day Care,Premier Homecare Limited,701.76, 12-Jan-2011
,Revenue,CCHD,Elderly MH Home Care,Other Small Contracts,Premier Homecare Limited,157.76, 12-Jan-2011
,Revenue,CCHD,Elderly MH non-res purchasing,Private & Voluntary Day Care,Premier Homecare Limited,337.28, 12-Jan-2011
,Revenue,CCHD,Home Care Purch North,Other Small Contracts,Premier Homecare Limited,9035.84, 20-Jan-2011
,Revenue,CCHD,Day Care - North,Private & Voluntary Day Care,Premier Homecare Limited,1028.16, 20-Jan-2011
,Revenue,CCHD,Elderly MH Home Care,Other Small Contracts,Premier Homecare Limited,157.76, 20-Jan-2011
,Revenue,CCHD,Elderly MH non-res purchasing,Private & Voluntary Day Care,Premier Homecare Limited,250.24, 20-Jan-2011
,Revenue,CCHD,Contracts & Commissioning Team,Other Small Contracts,Prestige Nursing,4500.00, 07-Jan-2011
,Revenue,CCHD,Contracts & Commissioning Team,Other Small Contracts,Prestige Nursing,4500.00, 07-Jan-2011
,Revenue,CCHD,Contracts & Commissioning Team,Other Small Contracts,Prestige Nursing,4500.00, 14-Jan-2011
,Revenue,CCHD,Contracts & Commissioning Team,Other Small Contracts,Prestige Nursing,4500.00, 21-Jan-2011
,Revenue,CCHD,Blackhorse RAC,Operational Equipment,Professional Hygiene Ltd,486.25, 31-Jan-2011
,Revenue,CCHD,Kingswood District Office,Postages,Purchase Power,513.00, 21-Jan-2011
,Revenue,CCHD,Younger Adult Mental Health,Agency Staff (Admin/Support Staff) Pay,Randstad Care Ltd,3023.04, 27-Jan-2011
,Revenue,CCHD,Care Management Team - South,Agency Staff (Operational)/PCT Pay,Randstad Care Ltd,1221.37, 10-Jan-2011
,Revenue,CCHD,Care Management Team - South,Agency Staff (Operational)/PCT Pay,Randstad Care Ltd,544.67, 20-Jan-2011
,Revenue,CCHD,Community Support ACM - North,Preventative Assistance,Royal National Institute For Deaf People,547.80, 10-Jan-2011
,Revenue,CCHD,Woodleaze,"Provisions (Food, etc)",School Milk Services Limited,754.81, 06-Jan-2011
,Revenue,CCHD,Charlton,"Provisions (Food, etc)",School Milk Services Limited,677.94, 07-Jan-2011
,Revenue,CCHD,Woodleaze,"Provisions (Food, etc)",School Milk Services Limited,861.12, 28-Jan-2011
,Revenue,CCHD,Charlton,"Provisions (Food, etc)",School Milk Services Limited,810.48, 28-Jan-2011
,Revenue,CCHD,Homelessness Grant,Computer Services,Scout Solutions Software Limited,2205.00, 28-Jan-2011
,Revenue,CCHD,Supported Living - PS,Private & Voluntary Home Care,Selborne Care Ltd,4997.44, 07-Jan-2011
,Revenue,CCHD,Supported Living - PS,Private & Voluntary Home Care,Selborne Care Ltd,2164.80, 13-Jan-2011
,Revenue,CCHD,Supported Living - PS,Private & Voluntary Home Care,Selborne Care Ltd,1379.84, 13-Jan-2011
,Revenue,CCHD,Supported Living - PS,Private & Voluntary Home Care,Selborne Care Ltd,4768.30, 13-Jan-2011
,Revenue,CCHD,Supported Living - PS,Private & Voluntary Home Care,Selborne Care Ltd,4997.44, 13-Jan-2011
,Revenue,CCHD,Supported Living - PS,Private & Voluntary Home Care,Selborne Care Ltd,564.48, 13-Jan-2011
,Revenue,CCHD,Supported Living - PS,Private & Voluntary Home Care,Selborne Care Ltd,4713.80, 13-Jan-2011
,Revenue,CCHD,Supported Living - PS,Private & Voluntary Home Care,Selborne Care Ltd,1929.20, 13-Jan-2011
,Revenue,CCHD,Purchase of Non-Res Care - KH,Private & Voluntary Day Care,Servoca Nursing & Care,1332.26, 07-Jan-2011
,Revenue,CCHD,Purchase of Non-Res Care - KH,Private & Voluntary Day Care,Servoca Nursing & Care,742.33, 07-Jan-2011
,Revenue,CCHD,Purchase of Non-Res Care - KD,Private & Voluntary Day Care,Shaw Healthcare Specialist Services Ltd,1334.75, 06-Jan-2011
,Revenue,CCHD,Purchase of Non-Res Care - KD,Private & Voluntary Day Care,Smile Independent Living Support Limited,626.10, 24-Jan-2011
,Revenue,CCHD,Purchase of Non-Res Care - KD,Private & Voluntary Day Care,Smile Independent Living Support Limited,682.48, 07-Jan-2011
,Revenue,CCHD,Purchase of Non-Res Care - PS,Private & Voluntary Day Care,Smile Independent Living Support Limited,697.33, 21-Jan-2011
,Revenue,CCHD,Supported Living - KD,Private & Voluntary Home Care,Smile Independent Living Support Limited,4156.91, 28-Jan-2011
,Revenue,CCHD,Contracts & Commissioning Team,Other Small Contracts,South Gloucestershire Crossroads,5000.00, 07-Jan-2011
,Revenue,CCHD,Contracts & Commissioning Team,Other Small Contracts,South Gloucestershire Crossroads,5000.00, 07-Jan-2011
,Revenue,CCHD,Contracts & Commissioning Team,Other Small Contracts,South Gloucestershire Crossroads,5000.00, 14-Jan-2011
,Revenue,CCHD,Contracts & Commissioning Team,Other Small Contracts,South Gloucestershire Crossroads,5000.00, 21-Jan-2011
,Revenue,CCHD,Contracts & Commissioning Team,Other Small Contracts,South Gloucestershire Crossroads,5000.00, 28-Jan-2011
,Revenue,CCHD,Elderly Mental Health,Residential Homes,South Gloucestershire Primary Care Trust,7204.34, 26-Jan-2011
,Revenue,CCHD,Chipping Sodbury Memorial Day,Agency Staff (Operational)/PCT Pay,South Gloucestershire Primary Care Trust,14767.25, 28-Jan-2011
,Revenue,CCHD,Hydrotherapy,Agency Staff (Operational)/PCT Pay,South Gloucestershire Primary Care Trust,7517.71, 28-Jan-2011
,Revenue,CCHD,LD - Kingswood PCT,Agency Staff (Operational)/PCT Pay,South Gloucestershire Primary Care Trust,19211.72, 28-Jan-2011
,Revenue,CCHD,Adult LD - Thornbury PCT,Agency Staff (Operational)/PCT Pay,South Gloucestershire Primary Care Trust,14042.27, 28-Jan-2011
,Revenue,CCHD,Adult LD - Fiveways PCT,Agency Staff (Operational)/PCT Pay,South Gloucestershire Primary Care Trust,46925.82, 28-Jan-2011
,Revenue,CCHD,Chipping Sodbury Memorial Day,Agency Staff (Operational)/PCT Pay,South Gloucestershire Primary Care Trust,14768.45, 26-Jan-2011
,Revenue,CCHD,Hydrotherapy,Agency Staff (Operational)/PCT Pay,South Gloucestershire Primary Care Trust,7453.28, 26-Jan-2011
,Revenue,CCHD,LD - Kingswood PCT,Agency Staff (Operational)/PCT Pay,South Gloucestershire Primary Care Trust,18894.07, 26-Jan-2011
,Revenue,CCHD,Adult LD - Thornbury PCT,Agency Staff (Operational)/PCT Pay,South Gloucestershire Primary Care Trust,18478.72, 26-Jan-2011
,Revenue,CCHD,Adult LD - Fiveways PCT,Agency Staff (Operational)/PCT Pay,South Gloucestershire Primary Care Trust,46852.37, 26-Jan-2011
,Revenue,CCHD,Mental Health Grant Training,Training Expenses,South London and South West ASW,1910.00, 20-Jan-2011
,Revenue,CCHD,Wapley Court,Cleaning & Domestic Supplies,Spot On Supplies (Hygiene) Limited,778.21, 11-Jan-2011
,Revenue,CCHD,Community Support ACM - South,Preventative Assistance,St Roses School,1812.00, 12-Jan-2011
,Revenue,CCHD,Community Support ACM - South,Preventative Assistance,St Roses School,1568.00, 12-Jan-2011
,Revenue,CCHD,Blackhorse RAC,Commissioned Service (Inc SLA Grants),St Werburghs City Farm,517.00, 27-Jan-2011
,Revenue,CCHD,Enabling Activities,Fees - General,Stuart Larkin & Associates Limited,500.00, 25-Jan-2011
,Revenue,CCHD,Supporting People Programme,Grants to Voluntary Bodies,Supported Independance Ltd,5538.40, 14-Jan-2011
,Revenue,CCHD,Supported Living - PS,Private & Voluntary Home Care,Supported Independent Living Schemes,624.84, 07-Jan-2011
,Revenue,CCHD,Housing Needs,Agency Staff (Admin/Support Staff) Pay,SWIM Recruitment,555.01, 11-Jan-2011
,Revenue,CCHD,Housing Needs,Agency Staff (Admin/Support Staff) Pay,SWIM Recruitment,449.81, 24-Jan-2011
,Revenue,CCHD,Home Care Purch South,Other Small Contracts,Tender Home Care Limited,1417.60, 11-Jan-2011
,Revenue,CCHD,Home Care Purch North,Other Small Contracts,Tender Home Care Limited,3025.69, 11-Jan-2011
,Revenue,CCHD,Day Care - North,Private & Voluntary Day Care,Tender Home Care Limited,194.92, 11-Jan-2011
,Revenue,CCHD,Home Care Purch South,Other Small Contracts,Tender Home Care Limited,1470.76, 12-Jan-2011
,Revenue,CCHD,Home Care Purch North,Other Small Contracts,Tender Home Care Limited,2804.19, 12-Jan-2011
,Revenue,CCHD,Day Care - South,Private & Voluntary Day Care,Tender Home Care Limited,35.44, 12-Jan-2011
,Revenue,CCHD,Day Care - North,Private & Voluntary Day Care,Tender Home Care Limited,163.91, 12-Jan-2011
,Revenue,CCHD,Home Care Purch South,Other Small Contracts,Tender Home Care Limited,1333.94, 17-Jan-2011
,Revenue,CCHD,Home Care Purch North,Other Small Contracts,Tender Home Care Limited,2746.60, 17-Jan-2011
,Revenue,CCHD,Day Care - South,Private & Voluntary Day Care,Tender Home Care Limited,35.44, 17-Jan-2011
,Revenue,CCHD,Day Care - North,Private & Voluntary Day Care,Tender Home Care Limited,155.05, 17-Jan-2011
,Revenue,CCHD,Home Care Purch South,Other Small Contracts,Tender Home Care Limited,1413.17, 27-Jan-2011
,Revenue,CCHD,Home Care Purch North,Other Small Contracts,Tender Home Care Limited,2471.94, 27-Jan-2011
,Revenue,CCHD,Day Care - South,Private & Voluntary Day Care,Tender Home Care Limited,31.01, 27-Jan-2011
,Revenue,CCHD,Day Care - North,Private & Voluntary Day Care,Tender Home Care Limited,88.60, 27-Jan-2011
,Revenue,CCHD,Home Care Purch South,Other Small Contracts,Tender Home Care Limited,1366.86, 26-Jan-2011
,Revenue,CCHD,Home Care Purch North,Other Small Contracts,Tender Home Care Limited,2106.72, 26-Jan-2011
,Revenue,CCHD,Day Care - South,Private & Voluntary Day Care,Tender Home Care Limited,25.08, 26-Jan-2011
,Revenue,CCHD,Day Care - North,Private & Voluntary Day Care,Tender Home Care Limited,54.34, 26-Jan-2011
,Revenue,CCHD,Day Care - North,Private & Voluntary Day Care,The Brandon Trust,567.00, 10-Jan-2011
,Revenue,CCHD,Day Care - South,Private & Voluntary Day Care,The Brandon Trust,622.20, 12-Jan-2011
,Revenue,CCHD,Supported Living - PS,Private & Voluntary Home Care,The Brandon Trust,792.82, 07-Jan-2011
,Revenue,CCHD,Day Care - North,Private & Voluntary Day Care,The Brandon Trust,711.21, 19-Jan-2011
,Revenue,CCHD,Purchase of Non-Res Care - PS,Private & Voluntary Day Care,The Brandon Trust,622.20, 17-Jan-2011
,Revenue,CCHD,Purchase of Non-Res Care - PS,Private & Voluntary Day Care,The Brandon Trust,994.25, 17-Jan-2011
,Revenue,CCHD,Younger MH non-res purchasing,Private & Voluntary Day Care,The Brandon Trust,614.40, 19-Jan-2011
,Revenue,CCHD,Purchase of Non-Res Care - PS,Private & Voluntary Day Care,The Brandon Trust,642.60, 17-Jan-2011
,Revenue,CCHD,Purchase of Non-Res Care - PS,Private & Voluntary Day Care,The Brandon Trust,717.50, 17-Jan-2011
,Revenue,CCHD,Purchase of Non-Res Care - PS,Private & Voluntary Day Care,The Brandon Trust,1209.36, 17-Jan-2011
,Revenue,CCHD,Younger MH non-res purchasing,Private & Voluntary Day Care,The Brandon Trust,1866.60, 19-Jan-2011
,Revenue,CCHD,Purchase of Non-Res Care - PS,Private & Voluntary Day Care,The Brandon Trust,684.42, 17-Jan-2011
,Revenue,CCHD,Supported Living - PS,Private & Voluntary Home Care,The Brandon Trust,819.25, 21-Jan-2011
,Revenue,CCHD,S28A - Under 65,Residential Homes,The Brandon Trust,46677.47, 25-Jan-2011
,Revenue,CCHD,Brandon Day Care,Private & Voluntary Day Care,The Brandon Trust,28031.00, 28-Jan-2011
,Revenue,CCHD,Contracts & Commissioning Team,Other Small Contracts,The Royal Bank of Scotland Commercial,5000.00, 07-Jan-2011
,Revenue,CCHD,Contracts & Commissioning Team,Other Small Contracts,The Royal Bank of Scotland Commercial,5000.00, 07-Jan-2011
,Revenue,CCHD,Contracts & Commissioning Team,Other Small Contracts,The Royal Bank of Scotland Commercial,5000.00, 14-Jan-2011
,Revenue,CCHD,Contracts & Commissioning Team,Other Small Contracts,The Royal Bank of Scotland Commercial,5000.00, 21-Jan-2011
,Revenue,CCHD,Contracts & Commissioning Team,Other Small Contracts,The Royal Bank of Scotland Commercial,5000.00, 28-Jan-2011
,Revenue,CCHD,Turnberries,Rent,Thornbury Community Building Trust,16447.00, 28-Jan-2011
,Revenue,CCHD,Tenancy Start Up Scheme,Other Supplies & Services,Thornbury Properties,1000.00, 18-Jan-2011
,Revenue,CCHD,Learning Difficulties PSL,Rent,Individual,650.00, 21-Jan-2011
,Revenue,CCHD,Learning Difficulties PSL,Rent,Individual,750.00, 21-Jan-2011
,Revenue,CCHD,Learning Difficulties PSL,Rent,Individual,488.00, 21-Jan-2011
,Revenue,CCHD,Emersons Green Offices,Rent,Trustees Of The Thorner 1990 Settlement,946.25, 12-Jan-2011
,Revenue,CCHD,Minor Adaptations Service,Daily Living Equipment,TVM Cheltenham Limited,1550.75, 25-Jan-2011
,Revenue,CCHD,Minor Adaptations Service,Daily Living Equipment,TVM Cheltenham Limited,909.00, 25-Jan-2011
,Revenue,CCHD,Minor Adaptations Service,Prop.Serv. General Repairs,TVM Cheltenham Limited,1108.00, 06-Jan-2011
,Revenue,CCHD,Minor Adaptations Service,Daily Living Equipment,TVM Cheltenham Limited,808.50, 06-Jan-2011
,Revenue,CCHD,Minor Adaptations Service,Educational Supplies & Equipment,TVM Cheltenham Limited,580.00, 06-Jan-2011
,Revenue,CCHD,Minor Adaptations Service,Daily Living Equipment,TVM Cheltenham Limited,883.50, 06-Jan-2011
,Revenue,CCHD,Minor Adaptations Service,Daily Living Equipment,TVM Cheltenham Limited,1431.50, 06-Jan-2011
,Revenue,CCHD,Minor Adaptations Service,Maintenance by Contractor,TVM Cheltenham Limited,927.36, 20-Jan-2011
,Revenue,CCHD,Minor Adaptations Service,Daily Living Equipment,TVM Cheltenham Limited,1697.00, 26-Jan-2011
,Revenue,CCHD,Minor Adaptations Service,Daily Living Equipment,TVM Cheltenham Limited,1294.37, 21-Jan-2011
,Revenue,CCHD,Minor Adaptations Service,Daily Living Equipment,TVM Cheltenham Limited,1705.49, 20-Jan-2011
,Revenue,CCHD,Minor Adaptations Service,Daily Living Equipment,TVM Cheltenham Limited,803.50, 25-Jan-2011
,Revenue,CCHD,Minor Adaptations Service,Daily Living Equipment,TVM Cheltenham Limited,2057.75, 20-Jan-2011
,Revenue,CCHD,Minor Adaptations Service,Maintenance by Contractor,TVM Cheltenham Limited,1024.36, 28-Jan-2011
,Revenue,CCHD,Minor Adaptations Service,Maintenance by Contractor,TVM Cheltenham Limited,819.22, 28-Jan-2011
,Revenue,CCHD,Minor Adaptations Service,Maintenance by Contractor,TVM Cheltenham Limited,623.55, 28-Jan-2011
,Revenue,CCHD,Minor Adaptations Service,Daily Living Equipment,TVM Cheltenham Limited,688.50, 28-Jan-2011
,Revenue,CCHD,S28A - Under 65,Residential Homes,United Response,2488.80, 19-Jan-2011
,Revenue,CCHD,Purchase of Non-Res Care - KH,Private & Voluntary Day Care,United Response,2992.86, 27-Jan-2011
,Revenue,CCHD,Purchase of Non-Res Care - KH,Private & Voluntary Day Care,United Response,2021.03, 28-Jan-2011
,Revenue,CCHD,Homelessness Grant,Agency Staff (Admin/Support Staff) Pay,Venn Group Limited,669.33, 06-Jan-2011
,Revenue,CCHD,Homelessness Grant,Agency Staff (Admin/Support Staff) Pay,Venn Group Limited,596.97, 19-Jan-2011
,Revenue,CCHD,Homelessness Grant,Agency Staff (Admin/Support Staff) Pay,Venn Group Limited,533.66, 19-Jan-2011
,Revenue,CCHD,Charlton,Furniture & Fittings Loose,Viking Direct Limited,435.21, 20-Jan-2011
,Revenue,CCHD,Supported Living - KD,Private & Voluntary Home Care,Willowbank Care Limited,2092.30, 31-Jan-2011
,Revenue,CCHD,Supported Living - KD,Private & Voluntary Home Care,Willowbank Care Limited,4523.08, 31-Jan-2011
,Revenue,CCHD,Supported Living (S28a),Private & Voluntary Home Care,Willowbank Care Limited,4371.02, 12-Jan-2011
,Revenue,CCHD,Supported Living (S28a),Private & Voluntary Home Care,Willowbank Care Limited,4371.02, 25-Jan-2011
,Revenue,CCHD,Supported Living (S28a),Private & Voluntary Home Care,Willowbank Care Limited,4371.02, 25-Jan-2011
,Revenue,CCHD,Supported Living (S28a),Private & Voluntary Home Care,Willowbank Care Limited,4616.50, 12-Jan-2011
,Revenue,CCHD,Supported Living (S28a),Private & Voluntary Home Care,Willowbank Care Limited,4616.50, 25-Jan-2011
,Revenue,CCHD,Supported Living (S28a),Private & Voluntary Home Care,Willowbank Care Limited,4616.50, 25-Jan-2011
,Revenue,CCHD,Supported Living - KD,Private & Voluntary Home Care,Willowbank Care Limited,3024.78, 31-Jan-2011
,Revenue,CCHD,Supported Living - KD,Private & Voluntary Home Care,Willowbank Care Limited,2251.48, 31-Jan-2011
,Revenue,CCHD,Day Care - North,Private & Voluntary Day Care,Windmill Care Limited,840.00, 14-Jan-2011
,Revenue,CCHD,Elderly MH non-res purchasing,Private & Voluntary Day Care,Windmill Care Limited,614.25, 12-Jan-2011
,Revenue,CCHD,Adult Placement Scheme,Adults - Family Support,Mrs I M Bowerman,1056.00, 07-Jan-2011
,Revenue,CCHD,Day Care - North,Private & Voluntary Day Care,Silva Care Limited,1129.65, 14-Jan-2011
,Revenue,CCHD,Home Care Purch South,Other Small Contracts,Mears Care,2368.80, 07-Jan-2011
,Revenue,CCHD,Home Care Purch North,Other Small Contracts,Mears Care,11308.20, 07-Jan-2011
,Revenue,CCHD,Day Care - South,Private & Voluntary Day Care,Mears Care,173.90, 07-Jan-2011
,Revenue,CCHD,Day Care - North,Private & Voluntary Day Care,Mears Care,493.50, 07-Jan-2011
,Revenue,CCHD,Carer`s Grant - North,Carers Breaks & Services,Mears Care,37.60, 07-Jan-2011
,Revenue,CCHD,Under 65s -MH  Home Care Purch,Other Small Contracts,Mears Care,141.00, 07-Jan-2011
,Revenue,CCHD,Elderly MH Home Care,Other Small Contracts,Mears Care,968.20, 07-Jan-2011
,Revenue,CCHD,Elderly MH non-res purchasing,Private & Voluntary Day Care,Mears Care,112.80, 07-Jan-2011
,Revenue,CCHD,Home Care - Elderly LD - KH,Private & Voluntary Home Care,Mears Care,65.80, 07-Jan-2011
,Revenue,CCHD,Home Care Purch South,Other Small Contracts,Mears Care,2213.70, 07-Jan-2011
,Revenue,CCHD,Home Care Purch North,Other Small Contracts,Mears Care,11336.40, 07-Jan-2011
,Revenue,CCHD,Day Care - South,Private & Voluntary Day Care,Mears Care,173.90, 07-Jan-2011
,Revenue,CCHD,Day Care - North,Private & Voluntary Day Care,Mears Care,432.40, 07-Jan-2011
,Revenue,CCHD,Carer`s Grant - North,Carers Breaks & Services,Mears Care,37.60, 07-Jan-2011
,Revenue,CCHD,Under 65s -MH  Home Care Purch,Other Small Contracts,Mears Care,141.00, 07-Jan-2011
,Revenue,CCHD,Elderly MH Home Care,Other Small Contracts,Mears Care,982.30, 07-Jan-2011
,Revenue,CCHD,Elderly MH non-res purchasing,Private & Voluntary Day Care,Mears Care,112.80, 07-Jan-2011
,Revenue,CCHD,Home Care - Elderly LD - KH,Private & Voluntary Home Care,Mears Care,65.80, 07-Jan-2011
,Revenue,CCHD,Home Care Purch South,Other Small Contracts,Mears Care,2180.80, 07-Jan-2011
,Revenue,CCHD,Home Care Purch North,Other Small Contracts,Mears Care,10941.60, 07-Jan-2011
,Revenue,CCHD,Day Care - South,Private & Voluntary Day Care,Mears Care,173.90, 07-Jan-2011
,Revenue,CCHD,Day Care - North,Private & Voluntary Day Care,Mears Care,418.30, 07-Jan-2011
,Revenue,CCHD,Carer`s Grant - North,Carers Breaks & Services,Mears Care,37.60, 07-Jan-2011
,Revenue,CCHD,Under 65s -MH  Home Care Purch,Other Small Contracts,Mears Care,141.00, 07-Jan-2011
,Revenue,CCHD,Elderly MH Home Care,Other Small Contracts,Mears Care,982.30, 07-Jan-2011
,Revenue,CCHD,Elderly MH non-res purchasing,Private & Voluntary Day Care,Mears Care,112.80, 07-Jan-2011
,Revenue,CCHD,Home Care - Elderly LD - KH,Private & Voluntary Home Care,Mears Care,65.80, 07-Jan-2011
,Revenue,CCHD,Home Care Purch South,Other Small Contracts,Mears Care,2133.80, 11-Jan-2011
,Revenue,CCHD,Home Care Purch North,Other Small Contracts,Mears Care,11468.00, 11-Jan-2011
,Revenue,CCHD,Day Care - South,Private & Voluntary Day Care,Mears Care,173.90, 11-Jan-2011
,Revenue,CCHD,Day Care - North,Private & Voluntary Day Care,Mears Care,376.00, 11-Jan-2011
,Revenue,CCHD,Carer`s Grant - North,Carers Breaks & Services,Mears Care,37.60, 11-Jan-2011
,Revenue,CCHD,Under 65s -MH  Home Care Purch,Other Small Contracts,Mears Care,141.00, 11-Jan-2011
,Revenue,CCHD,Elderly MH Home Care,Other Small Contracts,Mears Care,977.60, 11-Jan-2011
,Revenue,CCHD,Elderly MH non-res purchasing,Private & Voluntary Day Care,Mears Care,112.80, 11-Jan-2011
,Revenue,CCHD,Home Care - Elderly LD - KH,Private & Voluntary Home Care,Mears Care,65.80, 11-Jan-2011
,Revenue,CCHD,Home Care Purch South,Other Small Contracts,Mears Care,2185.50, 11-Jan-2011
,Revenue,CCHD,Home Care Purch North,Other Small Contracts,Mears Care,11698.30, 11-Jan-2011
,Revenue,CCHD,Day Care - South,Private & Voluntary Day Care,Mears Care,173.90, 11-Jan-2011
,Revenue,CCHD,Day Care - North,Private & Voluntary Day Care,Mears Care,488.80, 11-Jan-2011
,Revenue,CCHD,Carer`s Grant - North,Carers Breaks & Services,Mears Care,37.60, 11-Jan-2011
,Revenue,CCHD,Under 65s -MH  Home Care Purch,Other Small Contracts,Mears Care,141.00, 11-Jan-2011
,Revenue,CCHD,Elderly MH Home Care,Other Small Contracts,Mears Care,987.00, 11-Jan-2011
,Revenue,CCHD,Elderly MH non-res purchasing,Private & Voluntary Day Care,Mears Care,112.80, 11-Jan-2011
,Revenue,CCHD,Home Care - Elderly LD - KH,Private & Voluntary Home Care,Mears Care,65.80, 11-Jan-2011
,Revenue,CCHD,Home Care Purch South,Other Small Contracts,Mears Care,2025.70, 17-Jan-2011
,Revenue,CCHD,Home Care Purch North,Other Small Contracts,Mears Care,10532.70, 17-Jan-2011
,Revenue,CCHD,Day Care - South,Private & Voluntary Day Care,Mears Care,173.90, 17-Jan-2011
,Revenue,CCHD,Day Care - North,Private & Voluntary Day Care,Mears Care,394.80, 17-Jan-2011
,Revenue,CCHD,Carer`s Grant - North,Carers Breaks & Services,Mears Care,37.60, 17-Jan-2011
,Revenue,CCHD,Under 65s -MH  Home Care Purch,Other Small Contracts,Mears Care,141.00, 17-Jan-2011
,Revenue,CCHD,Elderly MH Home Care,Other Small Contracts,Mears Care,911.80, 17-Jan-2011
,Revenue,CCHD,Elderly MH non-res purchasing,Private & Voluntary Day Care,Mears Care,112.80, 17-Jan-2011
,Revenue,CCHD,Home Care - Elderly LD - KH,Private & Voluntary Home Care,Mears Care,75.20, 17-Jan-2011
,Revenue,CCHD,Home Care Purch South,Other Small Contracts,Mears Care,2147.90, 17-Jan-2011
,Revenue,CCHD,Home Care Purch North,Other Small Contracts,Mears Care,10659.60, 17-Jan-2011
,Revenue,CCHD,Day Care - South,Private & Voluntary Day Care,Mears Care,173.90, 17-Jan-2011
,Revenue,CCHD,Day Care - North,Private & Voluntary Day Care,Mears Care,352.50, 17-Jan-2011
,Revenue,CCHD,Under 65s -MH  Home Care Purch,Other Small Contracts,Mears Care,141.00, 17-Jan-2011
,Revenue,CCHD,Elderly MH Home Care,Other Small Contracts,Mears Care,930.60, 17-Jan-2011
,Revenue,CCHD,Elderly MH non-res purchasing,Private & Voluntary Day Care,Mears Care,117.50, 17-Jan-2011
,Revenue,CCHD,Home Care Purch South,Other Small Contracts,Mears Care,2119.70, 24-Jan-2011
,Revenue,CCHD,Home Care Purch North,Other Small Contracts,Mears Care,11237.70, 24-Jan-2011
,Revenue,CCHD,Day Care - South,Private & Voluntary Day Care,Mears Care,173.90, 24-Jan-2011
,Revenue,CCHD,Day Care - North,Private & Voluntary Day Care,Mears Care,394.80, 24-Jan-2011
,Revenue,CCHD,Carer`s Grant - North,Carers Breaks & Services,Mears Care,37.60, 24-Jan-2011
,Revenue,CCHD,Under 65s -MH  Home Care Purch,Other Small Contracts,Mears Care,136.30, 24-Jan-2011
,Revenue,CCHD,Elderly MH Home Care,Other Small Contracts,Mears Care,987.00, 24-Jan-2011
,Revenue,CCHD,Elderly MH non-res purchasing,Private & Voluntary Day Care,Mears Care,112.80, 24-Jan-2011
,Revenue,CCHD,PD Direct Payments North,Commissioned Service (Inc SLA Grants),A4E Management Ltd,592.22, 07-Jan-2011
,Revenue,CCHD,PD Direct Payments North,Commissioned Service (Inc SLA Grants),A4E Management Ltd,592.22, 21-Jan-2011
,Revenue,CCHD,PD Direct Payments North,Commissioned Service (Inc SLA Grants),A4E Management Ltd,1488.30, 07-Jan-2011
,Revenue,CCHD,PD Direct Payments North,Commissioned Service (Inc SLA Grants),A4E Management Ltd,1488.30, 21-Jan-2011
,Revenue,CCHD,PD Direct Payments North,Commissioned Service (Inc SLA Grants),A4E Management Ltd,815.40, 07-Jan-2011
,Revenue,CCHD,PD Direct Payments North,Commissioned Service (Inc SLA Grants),A4E Management Ltd,815.40, 21-Jan-2011
,Revenue,CCHD,PD Direct Payments North,Commissioned Service (Inc SLA Grants),A4E Management Ltd,808.00, 07-Jan-2011
,Revenue,CCHD,PD Direct Payments North,Commissioned Service (Inc SLA Grants),A4E Management Ltd,808.00, 21-Jan-2011
,Revenue,CCHD,Elderly Direct Payments South,Commissioned Service (Inc SLA Grants),A4E Management Ltd,1355.40, 07-Jan-2011
,Revenue,CCHD,Elderly Direct Payments South,Commissioned Service (Inc SLA Grants),A4E Management Ltd,1355.40, 21-Jan-2011
,Revenue,CCHD,Direct Payments - Option 1 & 2 (South),Commissioned Service (Inc SLA Grants),A4E Management Ltd,3124.20, 07-Jan-2011
,Revenue,CCHD,Direct Payments - Option 1 & 2 (South),Commissioned Service (Inc SLA Grants),A4E Management Ltd,3124.20, 21-Jan-2011
,Revenue,CCHD,Younger MH non-res purchasing,Commissioned Service (Inc SLA Grants),A4E Management Ltd,536.74, 07-Jan-2011
,Revenue,CCHD,Younger MH non-res purchasing,Commissioned Service (Inc SLA Grants),A4E Management Ltd,536.74, 21-Jan-2011
,Revenue,CCHD,PD Direct Payments North,Commissioned Service (Inc SLA Grants),A4E Management Ltd,669.60, 07-Jan-2011
,Revenue,CCHD,PD Direct Payments North,Commissioned Service (Inc SLA Grants),A4E Management Ltd,669.60, 21-Jan-2011
,Revenue,CCHD,PD Direct Payments North,Commissioned Service (Inc SLA Grants),A4E Management Ltd,4097.40, 07-Jan-2011
,Revenue,CCHD,PD Direct Payments North,Commissioned Service (Inc SLA Grants),A4E Management Ltd,4097.40, 21-Jan-2011
,Revenue,CCHD,Under 65s PWLD - KD,Residential Homes,Camphill Devon Community,3154.28, 25-Jan-2011
,Revenue,CCHD,Under 65s PWLD - KD,Residential Homes,Camphill Devon Community,2218.84, 25-Jan-2011
,Revenue,CCHD,Under 65s PWLD - KD,Residential Homes,Ty Hafod Tudor,3797.56, 25-Jan-2011
,Revenue,CCHD,Frenchay Hospital Purchasing,Nursing Homes,St George Nursing Home,1302.80, 25-Jan-2011
,Revenue,CCHD,Elderly Mental Health,Nursing Homes,St George Nursing Home,1117.43, 25-Jan-2011
,Revenue,CCHD,Elderly Mental Health,Nursing Homes,St George Nursing Home,1314.80, 25-Jan-2011
,Revenue,CCHD,Elderly Mental Health,Nursing Homes,St George Nursing Home,1221.48, 25-Jan-2011
,Revenue,CCHD,Elderly Purchasing - South,Nursing Homes,St George Nursing Home,1150.80, 25-Jan-2011
,Revenue,CCHD,Elderly Mental Health,Nursing Homes,St George Nursing Home,1302.80, 25-Jan-2011
,Revenue,CCHD,Southmead Hospital Purchasing,Nursing Homes,St George Nursing Home,1413.20, 25-Jan-2011
,Revenue,CCHD,Elderly Purchasing - South,Nursing Homes,Riversway Nursing Home,837.51, 25-Jan-2011
,Revenue,CCHD,Elderly Purchasing - South,Nursing Homes,Riversway Nursing Home,1168.96, 25-Jan-2011
,Revenue,CCHD,Southmead Hospital Purchasing,Nursing Homes,Riversway Nursing Home,1362.52, 25-Jan-2011
,Revenue,CCHD,Elderly Purchasing - South,Nursing Homes,Riversway Nursing Home,720.00, 25-Jan-2011
,Revenue,CCHD,Southmead Hospital Purchasing,Nursing Homes,Riversway Nursing Home,1708.00, 25-Jan-2011
,Revenue,CCHD,Frenchay Hospital Purchasing,Residential Homes,The Worthies,606.92, 25-Jan-2011
,Revenue,CCHD,Elderly Mental Health,Residential Homes,The Worthies,1406.80, 25-Jan-2011
,Revenue,CCHD,Elderly Purchasing - South,Nursing Homes,Sunnymede Nursing Home,1155.20, 25-Jan-2011
,Revenue,CCHD,Southmead Hospital Purchasing,Nursing Homes,Sunnymede Nursing Home,1302.80, 25-Jan-2011
,Revenue,CCHD,Section 117 Placements,Nursing Homes,Pennwood Lodge Nursing Home,1911.96, 25-Jan-2011
,Revenue,CCHD,Section 117 Placements,Nursing Homes,Pennwood Lodge Nursing Home,1921.08, 25-Jan-2011
,Revenue,CCHD,Elderly Mental Health,Nursing Homes,Pennwood Lodge Nursing Home,1401.20, 25-Jan-2011
,Revenue,CCHD,Elderly Purchasing - North,Residential Homes,Pennwood Lodge Nursing Home,1481.12, 25-Jan-2011
,Revenue,CCHD,Elderly Mental Health,Nursing Homes,Pennwood Lodge Nursing Home,1470.80, 25-Jan-2011
,Revenue,CCHD,Elderly Mental Health,Nursing Homes,Pennwood Lodge Nursing Home,1289.24, 25-Jan-2011
,Revenue,CCHD,Elderly Mental Health,Nursing Homes,Pennwood Lodge Nursing Home,1470.80, 25-Jan-2011
,Revenue,CCHD,Elderly Mental Health,Nursing Homes,Pennwood Lodge Nursing Home,905.48, 25-Jan-2011
,Revenue,CCHD,Elderly Purchasing - South,Nursing Homes,Dunkirk Memorial House,1201.44, 25-Jan-2011
,Revenue,CCHD,MH Purchasing - Younger,Residential Homes,Dunraven House,1802.00, 25-Jan-2011
,Revenue,CCHD,Frenchay Hospital Purchasing,Nursing Homes,Sedbury Park Care Centre,1301.88, 25-Jan-2011
,Revenue,CCHD,Under 65s PWLD - KD,Residential Homes,Forge House,3633.56, 25-Jan-2011
,Revenue,CCHD,Elderly Purchasing - North,Residential Homes,Faith House,928.40, 25-Jan-2011
,Revenue,CCHD,Elderly Purchasing - North,Nursing Homes,Faith House,2449.08, 25-Jan-2011
,Revenue,CCHD,Frenchay Hospital Purchasing,Residential Homes,Faith House,1302.84, 25-Jan-2011
,Revenue,CCHD,Elderly Purchasing - South,Residential Homes,The Gables Residential Home,1221.00, 25-Jan-2011
,Revenue,CCHD,Frenchay Hospital Purchasing,Residential Homes,The Gables Residential Home,1246.80, 25-Jan-2011
,Revenue,CCHD,Elderly Purchasing - South,Residential Homes,The Gables Residential Home,1118.84, 25-Jan-2011
,Revenue,CCHD,Elderly Mental Health,Residential Homes,The Gables Residential Home,1187.64, 25-Jan-2011
,Revenue,CCHD,Section 117 Placements,Residential Homes,The Gables Residential Home,2156.84, 25-Jan-2011
,Revenue,CCHD,Frenchay Hospital Purchasing,Nursing Homes,Beech House,1132.80, 25-Jan-2011
,Revenue,CCHD,Elderly Purchasing - North,Nursing Homes,Beech House,1077.44, 25-Jan-2011
,Revenue,CCHD,Elderly Purchasing - North,Nursing Homes,Beech House,21865.07, 25-Jan-2011
,Revenue,CCHD,Southmead Hospital Purchasing,Nursing Homes,Beech House,1954.20, 25-Jan-2011
,Revenue,CCHD,Southmead Hospital Purchasing,Nursing Homes,Beech House,1302.80, 25-Jan-2011
,Revenue,CCHD,Elderly Mental Health,Residential Homes,Beech House,922.63, 25-Jan-2011
,Revenue,CCHD,Elderly Purchasing - North,Nursing Homes,Beech House,1970.64, 25-Jan-2011
,Revenue,CCHD,Frenchay Hospital Purchasing,Nursing Homes,Beech House,1563.12, 25-Jan-2011
,Revenue,CCHD,Elderly Purchasing - North,Nursing Homes,Beech House,1515.24, 25-Jan-2011
,Revenue,CCHD,Elderly Purchasing - North,Nursing Homes,Beech House,1915.84, 25-Jan-2011
,Revenue,CCHD,Elderly Purchasing - North,Nursing Homes,Beech House,1403.20, 25-Jan-2011
,Revenue,CCHD,Elderly Purchasing - North,Nursing Homes,Beech House,628.12, 25-Jan-2011
,Revenue,CCHD,Southmead Hospital Purchasing,Nursing Homes,Beech House,1593.20, 25-Jan-2011
,Revenue,CCHD,Elderly Purchasing - North,Nursing Homes,Beech House,1220.00, 25-Jan-2011
,Revenue,CCHD,Under 65s PWLD - PS,Residential Homes,The Turrets,892.80, 25-Jan-2011
,Revenue,CCHD,Under 65s PWLD - PS,Residential Homes,The Turrets,3152.36, 25-Jan-2011
,Revenue,CCHD,Elderly PWLD - KH,Residential Homes,The Turrets,1499.20, 25-Jan-2011
,Revenue,CCHD,Elderly Purchasing - North,Residential Homes,St Davids Lodge,3010.60, 25-Jan-2011
,Revenue,CCHD,Elderly PWLD - PS,Residential Homes,St Davids Lodge,2545.68, 25-Jan-2011
,Revenue,CCHD,S28A - Over 65,Residential Homes,St Davids Lodge,3092.28, 25-Jan-2011
,Revenue,CCHD,S28A - Over 65,Residential Homes,St Davids Lodge,3042.56, 25-Jan-2011
,Revenue,CCHD,S28A - Over 65,Residential Homes,St Davids Lodge,2003.00, 25-Jan-2011
,Revenue,CCHD,Elderly PWLD - PS,Residential Homes,St Davids Lodge,3669.00, 25-Jan-2011
,Revenue,CCHD,Under 65s PWLD - KH,Residential Homes,Bedrock Lodge,2839.08, 25-Jan-2011
,Revenue,CCHD,Section 117 Placements MH Younger,Residential Homes,Bedrock Lodge,1790.12, 25-Jan-2011
,Revenue,CCHD,Elderly Purchasing - North,Nursing Homes,Glebe House Nursing Home,1284.16, 25-Jan-2011
,Revenue,CCHD,Southmead Hospital Purchasing,Nursing Homes,Glebe House Nursing Home,1392.29, 25-Jan-2011
,Revenue,CCHD,Southmead Hospital Purchasing,Nursing Homes,Glebe House Nursing Home,886.00, 25-Jan-2011
,Revenue,CCHD,Elderly Purchasing - North,Nursing Homes,Glebe House Nursing Home,1334.80, 25-Jan-2011
,Revenue,CCHD,Southmead Hospital Purchasing,Nursing Homes,Glebe House Nursing Home,1664.84, 25-Jan-2011
,Revenue,CCHD,Under 65s PWLD - KH,Residential Homes,Penleigh House Care Home,4399.72, 25-Jan-2011
,Revenue,CCHD,S28A - Under 65,Residential Homes,Penleigh House Care Home,5299.32, 25-Jan-2011
,Revenue,CCHD,Under 65s PWLD - KH,Residential Homes,Penleigh House Care Home,5495.76, 25-Jan-2011
,Revenue,CCHD,Under 65s PWLD - PS,Residential Homes,Ridgeway House,3383.72, 25-Jan-2011
,Revenue,CCHD,Elderly Mental Health,Residential Homes,Park Farm House,1265.88, 25-Jan-2011
,Revenue,CCHD,Elderly Purchasing - South,Residential Homes,Park Farm House,1487.24, 25-Jan-2011
,Revenue,CCHD,Southmead Hospital Purchasing,Residential Homes,Park Farm House,1584.20, 25-Jan-2011
,Revenue,CCHD,Elderly Mental Health,Residential Homes,Park Farm House,1584.20, 25-Jan-2011
,Revenue,CCHD,Elderly Mental Health,Residential Homes,Park Farm House,1144.32, 25-Jan-2011
,Revenue,CCHD,Under 65s PWLD - KH,Residential Homes,Nightingale Nursing Home,3047.48, 25-Jan-2011
,Revenue,CCHD,Elderly Purchasing - North,Residential Homes,Cleeve Lodge,1575.56, 25-Jan-2011
,Revenue,CCHD,Southmead Hospital Purchasing,Residential Homes,Cleeve Lodge,1169.56, 25-Jan-2011
,Revenue,CCHD,Frenchay Hospital Purchasing,Residential Homes,Cleeve Lodge,1830.60, 25-Jan-2011
,Revenue,CCHD,Elderly Purchasing - South,Residential Homes,Cleeve Lodge,1290.08, 25-Jan-2011
,Revenue,CCHD,Elderly Purchasing - South,Residential Homes,Cleeve Lodge,1326.68, 25-Jan-2011
,Revenue,CCHD,Elderly Purchasing - South,Residential Homes,Cleeve Lodge,2175.22, 25-Jan-2011
,Revenue,CCHD,Elderly Purchasing - North,Residential Homes,Cleeve Lodge,1497.32, 25-Jan-2011
,Revenue,CCHD,Elderly Purchasing - North,Residential Homes,Cleeve Lodge,1706.12, 25-Jan-2011
,Revenue,CCHD,Elderly PWLD - PS,Residential Homes,Charlton House,1966.36, 25-Jan-2011
,Revenue,CCHD,Elderly Mental Health,Residential Homes,Osborne House,1423.68, 25-Jan-2011
,Revenue,CCHD,Under 65s PWLD - KH,Residential Homes,St Brigas,2024.80, 25-Jan-2011
,Revenue,CCHD,Under 65s PWLD - PS,Residential Homes,St Brigas,2917.64, 25-Jan-2011
,Revenue,CCHD,Under 65s PWLD - KH,Residential Homes,St Brigas,1973.92, 25-Jan-2011
,Revenue,CCHD,Elderly PWLD - PS,Residential Homes,Rockleaze,2151.96, 25-Jan-2011
,Revenue,CCHD,Elderly PWLD - PS,Residential Homes,Rockleaze,1404.36, 25-Jan-2011
,Revenue,CCHD,S28A - Over 65,Residential Homes,Rockleaze,2033.32, 25-Jan-2011
,Revenue,CCHD,Under 65s PWLD - PS,Residential Homes,Rockleaze,2352.88, 25-Jan-2011
,Revenue,CCHD,Elderly PWLD - PS,Residential Homes,Rockleaze,1404.36, 25-Jan-2011
,Revenue,CCHD,Elderly Mental Health,Residential Homes,Beaufort House,1391.04, 25-Jan-2011
,Revenue,CCHD,Frenchay Hospital Purchasing,Residential Homes,Beaufort House,739.52, 25-Jan-2011
,Revenue,CCHD,Elderly Mental Health,Residential Homes,Beaufort House,1430.68, 25-Jan-2011
,Revenue,CCHD,Section 117 Placements,Residential Homes,Beaufort House,2080.00, 25-Jan-2011
,Revenue,CCHD,Frenchay Hospital Purchasing,Residential Homes,Beaufort House,1290.72, 25-Jan-2011
,Revenue,CCHD,Elderly Mental Health,Residential Homes,Beaufort House,3007.76, 25-Jan-2011
,Revenue,CCHD,Elderly Mental Health,Residential Homes,Beaufort House,1316.20, 25-Jan-2011
,Revenue,CCHD,Frenchay Hospital Purchasing,Residential Homes,Beaufort House,1296.80, 25-Jan-2011
,Revenue,CCHD,Elderly Mental Health,Residential Homes,Beaufort House,1309.32, 25-Jan-2011
,Revenue,CCHD,Elderly Mental Health,Residential Homes,Beaufort House,1328.76, 25-Jan-2011
,Revenue,CCHD,Elderly Mental Health,Residential Homes,Beaufort House,1339.84, 25-Jan-2011
,Revenue,CCHD,Elderly Purchasing - North,Residential Homes,Beaufort House,1690.44, 25-Jan-2011
,Revenue,CCHD,Southmead Hospital Purchasing,Residential Homes,Beaufort House,1053.44, 25-Jan-2011
,Revenue,CCHD,Frenchay Hospital Purchasing,Residential Homes,Beaufort House,1518.80, 25-Jan-2011
,Revenue,CCHD,Elderly Mental Health,Residential Homes,Beaufort House,1368.80, 25-Jan-2011
,Revenue,CCHD,Elderly PWLD - PS,Residential Homes,Beaufort House,53558.69, 25-Jan-2011
,Revenue,CCHD,Elderly Mental Health,Residential Homes,Beaufort House,955.08, 25-Jan-2011
,Revenue,CCHD,Elderly Mental Health,Residential Homes,Beaufort House,1672.72, 25-Jan-2011
,Revenue,CCHD,Elderly Purchasing - North,Residential Homes,Bridge House Care Home,1254.48, 25-Jan-2011
,Revenue,CCHD,Elderly Purchasing - North,Residential Homes,Bridge House Care Home,1069.00, 25-Jan-2011
,Revenue,CCHD,Elderly Purchasing - South,Residential Homes,Collingwood Residential Home,1023.40, 25-Jan-2011
,Revenue,CCHD,Elderly Purchasing - South,Residential Homes,Collingwood Residential Home,1322.92, 25-Jan-2011
,Revenue,CCHD,Frenchay Hospital Purchasing,Residential Homes,Collingwood Residential Home,1231.88, 25-Jan-2011
,Revenue,CCHD,Elderly Mental Health,Residential Homes,Collingwood Residential Home,1304.68, 25-Jan-2011
,Revenue,CCHD,Elderly Purchasing - North,Residential Homes,Collingwood Residential Home,3832.04, 25-Jan-2011
,Revenue,CCHD,Elderly Purchasing - North,Residential Homes,Collingwood Residential Home,1117.68, 25-Jan-2011
,Revenue,CCHD,Elderly Purchasing - South,Residential Homes,Collingwood Residential Home,1230.00, 25-Jan-2011
,Revenue,CCHD,Elderly Purchasing - South,Residential Homes,Collingwood Residential Home,1405.68, 25-Jan-2011
,Revenue,CCHD,Section 117 Placements,Residential Homes,Edgecumbe Lodge,1879.56, 25-Jan-2011
,Revenue,CCHD,Southmead Hospital Purchasing,Residential Homes,Edgecumbe Lodge,1246.80, 25-Jan-2011
,Revenue,CCHD,Elderly Purchasing - South,Residential Homes,Edgecumbe Lodge,1242.44, 25-Jan-2011
,Revenue,CCHD,Southmead Hospital Purchasing,Residential Homes,Edgecumbe Lodge,2612.63, 25-Jan-2011
,Revenue,CCHD,Southmead Hospital Purchasing,Residential Homes,Edgecumbe Lodge,1406.80, 25-Jan-2011
,Revenue,CCHD,Frenchay Hospital Purchasing,Residential Homes,Edgecumbe Lodge,1246.80, 25-Jan-2011
,Revenue,CCHD,Elderly Mental Health,Residential Homes,Edgecumbe Lodge,1186.92, 25-Jan-2011
,Revenue,CCHD,Elderly Purchasing - South,Residential Homes,Gwendoline House,1167.24, 25-Jan-2011
,Revenue,CCHD,Elderly Purchasing - South,Residential Homes,Gwendoline House,1246.80, 25-Jan-2011
,Revenue,CCHD,Elderly Mental Health,Residential Homes,Gwendoline House,1250.80, 25-Jan-2011
,Revenue,CCHD,Elderly Purchasing - South,Residential Homes,Gwendoline House,1138.12, 25-Jan-2011
,Revenue,CCHD,Elderly Purchasing - South,Residential Homes,Gwendoline House,1025.28, 25-Jan-2011
,Revenue,CCHD,Elderly Purchasing - South,Residential Homes,Harefield Hall,1514.08, 25-Jan-2011
,Revenue,CCHD,Elderly Purchasing - South,Residential Homes,Harefield Hall,1274.56, 25-Jan-2011
,Revenue,CCHD,Elderly Mental Health,Residential Homes,Harefield Hall,1204.12, 25-Jan-2011
,Revenue,CCHD,Southmead Hospital Purchasing,Residential Homes,The Manor Cottage,912.72, 25-Jan-2011
,Revenue,CCHD,Elderly Purchasing - South,Residential Homes,The Manor Cottage,1246.80, 25-Jan-2011
,Revenue,CCHD,Elderly Purchasing - South,Residential Homes,The Manor Cottage,667.46, 25-Jan-2011
,Revenue,CCHD,Elderly Purchasing - North,Residential Homes,The Manor Cottage,1218.40, 25-Jan-2011
,Revenue,CCHD,Elderly Purchasing - South,Residential Homes,The Manor Cottage,1423.08, 25-Jan-2011
,Revenue,CCHD,Elderly Purchasing - South,Residential Homes,The Manor Cottage,928.12, 25-Jan-2011
,Revenue,CCHD,Elderly Mental Health,Residential Homes,The Beeches,1221.92, 25-Jan-2011
,Revenue,CCHD,Elderly Purchasing - South,Residential Homes,The Beeches,1120.64, 25-Jan-2011
,Revenue,CCHD,Elderly Mental Health,Residential Homes,The Beeches,1848.00, 25-Jan-2011
,Revenue,CCHD,Elderly Mental Health,Residential Homes,The Grove,1584.20, 25-Jan-2011
,Revenue,CCHD,Frenchay Hospital Purchasing,Residential Homes,The Grove,1246.48, 25-Jan-2011
,Revenue,CCHD,Elderly Mental Health,Residential Homes,The Grove,1396.44, 25-Jan-2011
,Revenue,CCHD,Elderly Mental Health,Residential Homes,The Grove,1584.20, 25-Jan-2011
,Revenue,CCHD,Elderly Mental Health,Residential Homes,The Grove,612.04, 25-Jan-2011
,Revenue,CCHD,Section 117 Placements,Residential Homes,The Grove,2040.00, 25-Jan-2011
,Revenue,CCHD,Elderly Mental Health,Residential Homes,The Grove,1619.16, 25-Jan-2011
,Revenue,CCHD,Elderly Mental Health,Residential Homes,The Grove,1405.96, 25-Jan-2011
,Revenue,CCHD,Elderly Mental Health,Residential Homes,The Grove,1493.72, 25-Jan-2011
,Revenue,CCHD,Elderly Mental Health,Residential Homes,The Grove,1738.60, 25-Jan-2011
,Revenue,CCHD,Southmead Hospital Purchasing,Residential Homes,The Grove,1339.72, 25-Jan-2011
,Revenue,CCHD,Elderly Mental Health,Residential Homes,The Grove,1499.72, 25-Jan-2011
,Revenue,CCHD,Southmead Hospital Purchasing,Residential Homes,The Grove,1507.29, 25-Jan-2011
,Revenue,CCHD,Frenchay Hospital Purchasing,Nursing Homes,The Grove,847.52, 25-Jan-2011
,Revenue,CCHD,Elderly Mental Health,Residential Homes,Wayside Residential Care Home,1406.80, 25-Jan-2011
,Revenue,CCHD,Elderly Mental Health,Residential Homes,Wayside Residential Care Home,1345.72, 25-Jan-2011
,Revenue,CCHD,Frenchay Hospital Purchasing,Residential Homes,Wayside Residential Care Home,1326.32, 25-Jan-2011
,Revenue,CCHD,Elderly Mental Health,Residential Homes,Wayside Residential Care Home,1203.56, 25-Jan-2011
,Revenue,CCHD,Southmead Hospital Purchasing,Residential Homes,Wayside Residential Care Home,1273.68, 25-Jan-2011
,Revenue,CCHD,Elderly Purchasing - South,Residential Homes,Wayside Residential Care Home,1231.84, 25-Jan-2011
,Revenue,CCHD,Elderly Purchasing - North,Residential Homes,Windmill House,1128.60, 25-Jan-2011
,Revenue,CCHD,Elderly Mental Health,Residential Homes,Windmill House,1259.60, 25-Jan-2011
,Revenue,CCHD,Elderly Purchasing - North,Residential Homes,Windmill House,6878.28, 25-Jan-2011
,Revenue,CCHD,Elderly Mental Health,Residential Homes,Windmill House,1242.80, 25-Jan-2011
,Revenue,CCHD,Elderly Purchasing - North,Residential Homes,Windmill House,941.48, 25-Jan-2011
,Revenue,CCHD,Under 65s PWLD - KH,Residential Homes,Gordena Care Home,2926.92, 25-Jan-2011
,Revenue,CCHD,Under 65s PWLD - KH,Residential Homes,Gordena Care Home,4642.16, 25-Jan-2011
,Revenue,CCHD,Elderly PWLD - KH,Residential Homes,Gordena Care Home,2883.92, 25-Jan-2011
,Revenue,CCHD,Under 65s PWLD - KH,Residential Homes,Gordena Care Home,2047.08, 25-Jan-2011
,Revenue,CCHD,S28A - Under 65,Residential Homes,Chescombe Lodge,8370.44, 25-Jan-2011
,Revenue,CCHD,Under 65s PWLD - KD,Residential Homes,The Thomas Moore Project,1904.72, 25-Jan-2011
,Revenue,CCHD,Southmead Hospital Purchasing,Residential Homes,Chatsworth House,1032.12, 25-Jan-2011
,Revenue,CCHD,Elderly Mental Health,Residential Homes,Brightbow,2487.20, 25-Jan-2011
,Revenue,CCHD,MH Purchasing - Younger,Residential Homes,Brightbow,969.16, 25-Jan-2011
,Revenue,CCHD,Southmead Hospital Purchasing,Residential Homes,Four Seasons Health Care,1129.04, 25-Jan-2011
,Revenue,CCHD,Frenchay Hospital Purchasing,Residential Homes,Four Seasons Health Care,975.60, 25-Jan-2011
,Revenue,CCHD,Elderly Purchasing - South,Residential Homes,Four Seasons Health Care,1183.72, 25-Jan-2011
,Revenue,CCHD,Elderly Purchasing - South,Nursing Homes,Four Seasons Health Care,866.88, 25-Jan-2011
,Revenue,CCHD,Elderly Purchasing - South,Nursing Homes,Four Seasons Health Care,1366.80, 25-Jan-2011
,Revenue,CCHD,Frenchay Hospital Purchasing,Nursing Homes,Four Seasons Health Care,901.92, 25-Jan-2011
,Revenue,CCHD,Frenchay Hospital Purchasing,Nursing Homes,Four Seasons Health Care,1366.80, 25-Jan-2011
,Revenue,CCHD,Elderly Purchasing - South,Nursing Homes,Four Seasons Health Care,865.92, 25-Jan-2011
,Revenue,CCHD,Southmead Hospital Purchasing,Residential Homes,Four Seasons Health Care,1366.80, 25-Jan-2011
,Revenue,CCHD,Elderly Purchasing - North,Nursing Homes,Four Seasons Health Care,866.60, 25-Jan-2011
,Revenue,CCHD,Elderly Purchasing - South,Residential Homes,Four Seasons Health Care,1243.00, 25-Jan-2011
,Revenue,CCHD,Southmead Hospital Purchasing,Nursing Homes,Four Seasons Health Care,1366.80, 25-Jan-2011
,Revenue,CCHD,Cash for Change Discharges,Nursing Homes,Four Seasons Health Care,1366.80, 25-Jan-2011
,Revenue,CCHD,Elderly Purchasing - South,Nursing Homes,Four Seasons Health Care,1394.80, 25-Jan-2011
,Revenue,CCHD,Elderly Purchasing - South,Nursing Homes,Four Seasons Health Care,1366.80, 25-Jan-2011
,Revenue,CCHD,Southmead Hospital Purchasing,Residential Homes,Four Seasons Health Care,629.80, 25-Jan-2011
,Revenue,CCHD,Frenchay Hospital Purchasing,Nursing Homes,Four Seasons Health Care,1366.80, 25-Jan-2011
,Revenue,CCHD,Frenchay Hospital Purchasing,Nursing Homes,Four Seasons Health Care,1166.04, 25-Jan-2011
,Revenue,CCHD,Elderly Purchasing - South,Nursing Homes,Four Seasons Health Care,1116.52, 25-Jan-2011
,Revenue,CCHD,Southmead Hospital Purchasing,Nursing Homes,Four Seasons Health Care,1274.12, 25-Jan-2011
,Revenue,CCHD,Elderly Purchasing - South,Nursing Homes,Four Seasons Health Care,6536.13, 25-Jan-2011
,Revenue,CCHD,Elderly Purchasing - South,Nursing Homes,Four Seasons Health Care,1366.80, 25-Jan-2011
,Revenue,CCHD,Southmead Hospital Purchasing,Nursing Homes,Four Seasons Health Care,1093.96, 25-Jan-2011
,Revenue,CCHD,Elderly Purchasing - South,Nursing Homes,Four Seasons Health Care,1310.12, 25-Jan-2011
,Revenue,CCHD,Frenchay Hospital Purchasing,Nursing Homes,Four Seasons Health Care,1361.00, 25-Jan-2011
,Revenue,CCHD,Elderly Purchasing - South,Residential Homes,Four Seasons Health Care,974.60, 25-Jan-2011
,Revenue,CCHD,Elderly Purchasing - North,Nursing Homes,Four Seasons Health Care,1330.80, 25-Jan-2011
,Revenue,CCHD,Frenchay Hospital Purchasing,Nursing Homes,Four Seasons Health Care,1366.80, 25-Jan-2011
,Revenue,CCHD,Frenchay Hospital Purchasing,Nursing Homes,Four Seasons Health Care,1171.54, 25-Jan-2011
,Revenue,CCHD,Elderly Mental Health,Residential Homes,Four Seasons Health Care,1057.48, 25-Jan-2011
,Revenue,CCHD,Frenchay Hospital Purchasing,Residential Homes,Four Seasons Health Care,1086.84, 25-Jan-2011
,Revenue,CCHD,Elderly Purchasing - South,Nursing Homes,Four Seasons Health Care,1308.56, 25-Jan-2011
,Revenue,CCHD,Elderly Purchasing - South,Nursing Homes,Four Seasons Health Care,1359.48, 25-Jan-2011
,Revenue,CCHD,Elderly Purchasing - South,Residential Homes,Four Seasons Health Care,1129.60, 25-Jan-2011
,Revenue,CCHD,Frenchay Hospital Purchasing,Nursing Homes,Four Seasons Health Care,1374.80, 25-Jan-2011
,Revenue,CCHD,Elderly Mental Health,Nursing Homes,Four Seasons Health Care,1221.80, 25-Jan-2011
,Revenue,CCHD,Southmead Hospital Purchasing,Nursing Homes,Four Seasons Health Care,1012.52, 25-Jan-2011
,Revenue,CCHD,Frenchay Hospital Purchasing,Nursing Homes,Four Seasons Health Care,757.84, 25-Jan-2011
,Revenue,CCHD,South Glos Users in South Glos Homes,Nursing Homes,Four Seasons Health Care,9527.70, 25-Jan-2011
,Revenue,CCHD,Elderly Purchasing - North,Nursing Homes,Four Seasons Health Care,982.40, 25-Jan-2011
,Revenue,CCHD,Frenchay Hospital Purchasing,Nursing Homes,Four Seasons Health Care,1366.80, 25-Jan-2011
,Revenue,CCHD,Elderly Purchasing - North,Residential Homes,Four Seasons Health Care,1015.08, 25-Jan-2011
,Revenue,CCHD,Elderly Mental Health,Residential Homes,Four Seasons Health Care,1073.10, 25-Jan-2011
,Revenue,CCHD,Southmead Hospital Purchasing,Residential Homes,Four Seasons Health Care,1257.60, 25-Jan-2011
,Revenue,CCHD,Elderly Purchasing - South,Nursing Homes,Four Seasons Health Care,1229.20, 25-Jan-2011
,Revenue,CCHD,Elderly Mental Health,Nursing Homes,Four Seasons Health Care,1330.80, 25-Jan-2011
,Revenue,CCHD,Frenchay Hospital Purchasing,Nursing Homes,Four Seasons Health Care,1283.64, 25-Jan-2011
,Revenue,CCHD,Elderly Purchasing - South,Nursing Homes,Four Seasons Health Care,1480.84, 25-Jan-2011
,Revenue,CCHD,Southmead Hospital Purchasing,Nursing Homes,Four Seasons Health Care,1366.80, 25-Jan-2011
,Revenue,CCHD,Elderly Purchasing - South,Nursing Homes,Four Seasons Health Care,1366.80, 25-Jan-2011
,Revenue,CCHD,Elderly Purchasing - South,Nursing Homes,Four Seasons Health Care,1808.00, 25-Jan-2011
,Revenue,CCHD,Southmead Hospital Purchasing,Nursing Homes,Four Seasons Health Care,809.64, 25-Jan-2011
,Revenue,CCHD,Frenchay Hospital Purchasing,Residential Homes,Four Seasons Health Care,1108.40, 25-Jan-2011
,Revenue,CCHD,Elderly Mental Health,Nursing Homes,Four Seasons Health Care,1465.40, 25-Jan-2011
,Revenue,CCHD,South Glos Users in South Glos Homes,Nursing Homes,Four Seasons Health Care,931.71, 25-Jan-2011
,Revenue,CCHD,Elderly Purchasing - North,Nursing Homes,Four Seasons Health Care,1138.20, 25-Jan-2011
,Revenue,CCHD,Southmead Hospital Purchasing,Nursing Homes,Four Seasons Health Care,1534.80, 25-Jan-2011
,Revenue,CCHD,Southmead Hospital Purchasing,Nursing Homes,Four Seasons Health Care,1355.40, 25-Jan-2011
,Revenue,CCHD,Frenchay Hospital Purchasing,Nursing Homes,Four Seasons Health Care,1253.12, 25-Jan-2011
,Revenue,CCHD,Elderly Mental Health,Nursing Homes,Four Seasons Health Care,1534.80, 25-Jan-2011
,Revenue,CCHD,Elderly Purchasing - North,Residential Homes,Four Seasons Health Care,739.32, 25-Jan-2011
,Revenue,CCHD,Elderly Purchasing - North,Nursing Homes,Four Seasons Health Care,757.92, 25-Jan-2011
,Revenue,CCHD,Elderly Mental Health,Residential Homes,Four Seasons Health Care,1333.00, 25-Jan-2011
,Revenue,CCHD,Frenchay Hospital Purchasing,Nursing Homes,Four Seasons Health Care,1343.12, 25-Jan-2011
,Revenue,CCHD,Elderly Purchasing - North,Nursing Homes,Four Seasons Health Care,5081.14, 25-Jan-2011
,Revenue,CCHD,Elderly Purchasing - North,Nursing Homes,Four Seasons Health Care,1498.88, 25-Jan-2011
,Revenue,CCHD,Southmead Hospital Purchasing,Nursing Homes,Four Seasons Health Care,1234.72, 25-Jan-2011
,Revenue,CCHD,Elderly Mental Health,Nursing Homes,Four Seasons Health Care,1449.52, 25-Jan-2011
,Revenue,CCHD,Elderly Purchasing - North,Nursing Homes,Four Seasons Health Care,1205.83, 25-Jan-2011
,Revenue,CCHD,Southmead Hospital Purchasing,Nursing Homes,Four Seasons Health Care,1366.80, 25-Jan-2011
,Revenue,CCHD,Frenchay Hospital Purchasing,Nursing Homes,Four Seasons Health Care,1221.60, 25-Jan-2011
,Revenue,CCHD,Southmead Hospital Purchasing,Nursing Homes,Four Seasons Health Care,1281.64, 25-Jan-2011
,Revenue,CCHD,Elderly Purchasing - North,Nursing Homes,Four Seasons Health Care,921.00, 25-Jan-2011
,Revenue,CCHD,Elderly Purchasing - North,Nursing Homes,Four Seasons Health Care,1478.16, 25-Jan-2011
,Revenue,CCHD,Elderly Purchasing - North,Nursing Homes,Four Seasons Health Care,1080.12, 25-Jan-2011
,Revenue,CCHD,Southmead Hospital Purchasing,Nursing Homes,Four Seasons Health Care,709.60, 25-Jan-2011
,Revenue,CCHD,Elderly Purchasing - South,Nursing Homes,Four Seasons Health Care,1294.92, 25-Jan-2011
,Revenue,CCHD,Frenchay Hospital Purchasing,Nursing Homes,Four Seasons Health Care,1240.96, 25-Jan-2011
,Revenue,CCHD,Elderly Mental Health,Residential Homes,Four Seasons Health Care,1230.28, 25-Jan-2011
,Revenue,CCHD,Southmead Hospital Purchasing,Nursing Homes,Four Seasons Health Care,1366.80, 25-Jan-2011
,Revenue,CCHD,Elderly Mental Health,Nursing Homes,Four Seasons Health Care,1363.56, 25-Jan-2011
,Revenue,CCHD,Elderly Mental Health,Residential Homes,Four Seasons Health Care,1430.80, 25-Jan-2011
,Revenue,CCHD,Southmead Hospital Purchasing,Nursing Homes,Four Seasons Health Care,1212.76, 25-Jan-2011
,Revenue,CCHD,Elderly Mental Health,Residential Homes,Four Seasons Health Care,3883.60, 25-Jan-2011
,Revenue,CCHD,Elderly Mental Health,Nursing Homes,Four Seasons Health Care,1071.92, 25-Jan-2011
,Revenue,CCHD,Frenchay Hospital Purchasing,Residential Homes,Four Seasons Health Care,1227.52, 25-Jan-2011
,Revenue,CCHD,Southmead Hospital Purchasing,Nursing Homes,Four Seasons Health Care,3171.07, 25-Jan-2011
,Revenue,CCHD,Elderly Mental Health,Nursing Homes,Ravenswood,1233.12, 25-Jan-2011
,Revenue,CCHD,Under 65s PWLD - PS,Residential Homes,Voyage Ltd,2931.44, 25-Jan-2011
,Revenue,CCHD,Elderly Mental Health,Nursing Homes,Breadstone House Care Centre,1316.88, 25-Jan-2011
,Revenue,CCHD,South Glos Users in South Glos Homes,Nursing Homes,Holmwood House,931.71, 25-Jan-2011
,Revenue,CCHD,South Glos Users in South Glos Homes,Nursing Homes,Holmwood House,931.71, 25-Jan-2011
,Revenue,CCHD,Frenchay Hospital Purchasing,Nursing Homes,Holmwood House,1314.92, 25-Jan-2011
,Revenue,CCHD,Elderly Purchasing - North,Nursing Homes,Woodlands Manor,1558.92, 25-Jan-2011
,Revenue,CCHD,Elderly Purchasing - North,Nursing Homes,Woodlands Manor,663.57, 25-Jan-2011
,Revenue,CCHD,Elderly Purchasing - North,Nursing Homes,Woodlands Manor,1677.28, 25-Jan-2011
,Revenue,CCHD,Frenchay Hospital Purchasing,Nursing Homes,Four Seasons Health Care,1366.80, 25-Jan-2011
,Revenue,CCHD,Elderly Mental Health,Residential Homes,Four Seasons Health Care,1163.76, 25-Jan-2011
,Revenue,CCHD,South Glos Users in South Glos Homes,Nursing Homes,Four Seasons Health Care,1024.89, 25-Jan-2011
,Revenue,CCHD,Frenchay Hospital Purchasing,Nursing Homes,Four Seasons Health Care,2196.64, 25-Jan-2011
,Revenue,CCHD,Frenchay Hospital Purchasing,Nursing Homes,Four Seasons Health Care,1366.80, 25-Jan-2011
,Revenue,CCHD,Elderly Purchasing - South,Nursing Homes,Four Seasons Health Care,1277.80, 25-Jan-2011
,Revenue,CCHD,Frenchay Hospital Purchasing,Nursing Homes,Four Seasons Health Care,1173.04, 25-Jan-2011
,Revenue,CCHD,Elderly Purchasing - North,Nursing Homes,Four Seasons Health Care,1146.28, 25-Jan-2011
,Revenue,CCHD,Southmead Hospital Purchasing,Nursing Homes,Four Seasons Health Care,1366.80, 25-Jan-2011
,Revenue,CCHD,Elderly Mental Health,Nursing Homes,Four Seasons Health Care,1232.60, 25-Jan-2011
,Revenue,CCHD,Frenchay Hospital Purchasing,Nursing Homes,Four Seasons Health Care,1297.12, 25-Jan-2011
,Revenue,CCHD,Frenchay Hospital Purchasing,Nursing Homes,Four Seasons Health Care,7684.00, 25-Jan-2011
,Revenue,CCHD,Frenchay Hospital Purchasing,Nursing Homes,Four Seasons Health Care,7152.00, 25-Jan-2011
,Revenue,CCHD,Frenchay Hospital Purchasing,Nursing Homes,Four Seasons Health Care,829.88, 25-Jan-2011
,Revenue,CCHD,Frenchay Hospital Purchasing,Nursing Homes,Four Seasons Health Care,1390.80, 25-Jan-2011
,Revenue,CCHD,Frenchay Hospital Purchasing,Nursing Homes,Four Seasons Health Care,1366.80, 25-Jan-2011
,Revenue,CCHD,Southmead Hospital Purchasing,Nursing Homes,Four Seasons Health Care,1126.56, 25-Jan-2011
,Revenue,CCHD,Frenchay Hospital Purchasing,Nursing Homes,Four Seasons Health Care,1366.80, 25-Jan-2011
,Revenue,CCHD,Frenchay Hospital Purchasing,Nursing Homes,Four Seasons Health Care,1022.60, 25-Jan-2011
,Revenue,CCHD,Frenchay Hospital Purchasing,Nursing Homes,Four Seasons Health Care,1382.80, 25-Jan-2011
,Revenue,CCHD,Elderly Purchasing - South,Nursing Homes,Four Seasons Health Care,1036.96, 25-Jan-2011
,Revenue,CCHD,Elderly Purchasing - North,Nursing Homes,Four Seasons Health Care,898.32, 25-Jan-2011
,Revenue,CCHD,Elderly Purchasing - North,Nursing Homes,Four Seasons Health Care,5746.86, 25-Jan-2011
,Revenue,CCHD,Southmead Hospital Purchasing,Nursing Homes,Four Seasons Health Care,1336.64, 25-Jan-2011
,Revenue,CCHD,Purchasing Phys Dis - North,Nursing Homes,Four Seasons Health Care,1372.88, 25-Jan-2011
,Revenue,CCHD,Elderly Mental Health,Nursing Homes,Shaw Healthcare Ltd,1260.20, 25-Jan-2011
,Revenue,CCHD,Elderly Mental Health,Residential Homes,Heather House,1262.80, 25-Jan-2011
,Revenue,CCHD,Southmead Hospital Purchasing,Nursing Homes,The Laurels Nursing Home,1382.28, 25-Jan-2011
,Revenue,CCHD,Frenchay Hospital Purchasing,Nursing Homes,Desai Care Homes  C/O Waltham House,1195.08, 25-Jan-2011
,Revenue,CCHD,Elderly Purchasing - South,Residential Homes,Fairview House,1606.25, 25-Jan-2011
,Revenue,CCHD,Elderly Purchasing - South,Residential Homes,Fairview House,1246.80, 25-Jan-2011
,Revenue,CCHD,Frenchay Hospital Purchasing,Residential Homes,Fairview House,906.60, 25-Jan-2011
,Revenue,CCHD,Section 117 Placements,Residential Homes,Fairview House,1840.00, 25-Jan-2011
,Revenue,CCHD,Elderly Mental Health,Residential Homes,Fairview House,1259.52, 25-Jan-2011
,Revenue,CCHD,Elderly Purchasing - South,Residential Homes,Fairview House,1403.40, 25-Jan-2011
,Revenue,CCHD,Elderly Mental Health,Residential Homes,Fairview House,1105.16, 25-Jan-2011
,Revenue,CCHD,Southmead Hospital Purchasing,Residential Homes,Fairview House,1246.80, 25-Jan-2011
,Revenue,CCHD,Elderly Mental Health,Residential Homes,Fairview House,1083.16, 25-Jan-2011
,Revenue,CCHD,Elderly Mental Health,Residential Homes,Fairview House,1183.68, 25-Jan-2011
,Revenue,CCHD,Frenchay Hospital Purchasing,Residential Homes,Fairview House,1290.72, 25-Jan-2011
,Revenue,CCHD,Elderly Mental Health,Residential Homes,Fairview House,1284.08, 25-Jan-2011
,Revenue,CCHD,Elderly Mental Health,Residential Homes,Fairview House,1084.68, 25-Jan-2011
,Revenue,CCHD,Elderly Mental Health,Residential Homes,Willow Cottage,1363.60, 25-Jan-2011
,Revenue,CCHD,Frenchay Hospital Purchasing,Residential Homes,Willow Cottage,1079.52, 25-Jan-2011
,Revenue,CCHD,Southmead Hospital Purchasing,Residential Homes,Willow Cottage,1403.08, 25-Jan-2011
,Revenue,CCHD,Elderly Mental Health,Residential Homes,Willow Cottage,623.40, 25-Jan-2011
,Revenue,CCHD,Elderly Purchasing - North,Residential Homes,Willow Cottage,1286.08, 25-Jan-2011
,Revenue,CCHD,Elderly Mental Health,Residential Homes,Willow Cottage,3830.64, 25-Jan-2011
,Revenue,CCHD,Southmead Hospital Purchasing,Residential Homes,Willow Cottage,1410.32, 25-Jan-2011
,Revenue,CCHD,Southmead Hospital Purchasing,Residential Homes,Willow Cottage,1482.92, 25-Jan-2011
,Revenue,CCHD,Frenchay Hospital Purchasing,Residential Homes,Willow Cottage,1315.16, 25-Jan-2011
,Revenue,CCHD,Southmead Hospital Purchasing,Residential Homes,Willow Cottage,1115.20, 25-Jan-2011
,Revenue,CCHD,Frenchay Hospital Purchasing,Nursing Homes,Frenchay Park Nursing Home,1222.36, 25-Jan-2011
,Revenue,CCHD,Frenchay Hospital Purchasing,Nursing Homes,The Heathers,1314.80, 25-Jan-2011
,Revenue,CCHD,Elderly Mental Health,Nursing Homes,The Heathers,1284.96, 25-Jan-2011
,Revenue,CCHD,Elderly Purchasing - South,Nursing Homes,The Heathers,1302.80, 25-Jan-2011
,Revenue,CCHD,Frenchay Hospital Purchasing,Nursing Homes,The Heathers,744.76, 25-Jan-2011
,Revenue,CCHD,Southmead Hospital Purchasing,Nursing Homes,The Heathers,1034.68, 25-Jan-2011
,Revenue,CCHD,Frenchay Hospital Purchasing,Nursing Homes,The Heathers,1306.04, 25-Jan-2011
,Revenue,CCHD,Elderly Mental Health,Nursing Homes,The Heathers,1267.12, 25-Jan-2011
,Revenue,CCHD,Elderly Mental Health,Nursing Homes,The Heathers,1131.35, 25-Jan-2011
,Revenue,CCHD,Frenchay Hospital Purchasing,Nursing Homes,The Heathers,1235.88, 25-Jan-2011
,Revenue,CCHD,Elderly Purchasing - North,Nursing Homes,The Heathers,1110.84, 25-Jan-2011
,Revenue,CCHD,Southmead Hospital Purchasing,Nursing Homes,The Heathers,1302.80, 25-Jan-2011
,Revenue,CCHD,Frenchay Hospital Purchasing,Nursing Homes,The Heathers,905.60, 25-Jan-2011
,Revenue,CCHD,Elderly Purchasing - North,Nursing Homes,The Heathers,1169.56, 25-Jan-2011
,Revenue,CCHD,Frenchay Hospital Purchasing,Nursing Homes,Four Seasons Health Care,876.93, 25-Jan-2011
,Revenue,CCHD,Elderly Purchasing - South,Nursing Homes,Four Seasons Health Care,1244.44, 25-Jan-2011
,Revenue,CCHD,Frenchay Hospital Purchasing,Nursing Homes,Four Seasons Health Care,1808.00, 25-Jan-2011
,Revenue,CCHD,Elderly Mental Health,Residential Homes,Four Seasons Health Care,1397.28, 25-Jan-2011
,Revenue,CCHD,Southmead Hospital Purchasing,Residential Homes,Four Seasons Health Care,1170.64, 25-Jan-2011
,Revenue,CCHD,Elderly PWLD - PS,Residential Homes,Four Seasons Health Care,1246.80, 25-Jan-2011
,Revenue,CCHD,Frenchay Hospital Purchasing,Nursing Homes,Four Seasons Health Care,1366.80, 25-Jan-2011
,Revenue,CCHD,Elderly Purchasing - South,Nursing Homes,Four Seasons Health Care,1283.44, 25-Jan-2011
,Revenue,CCHD,Elderly Purchasing - South,Nursing Homes,Four Seasons Health Care,1359.52, 25-Jan-2011
,Revenue,CCHD,Elderly Purchasing - South,Residential Homes,Four Seasons Health Care,894.12, 25-Jan-2011
,Revenue,CCHD,Frenchay Hospital Purchasing,Nursing Homes,Four Seasons Health Care,1398.80, 25-Jan-2011
,Revenue,CCHD,Southmead Hospital Purchasing,Nursing Homes,Four Seasons Health Care,1254.72, 25-Jan-2011
,Revenue,CCHD,Elderly Purchasing - South,Residential Homes,Four Seasons Health Care,999.60, 25-Jan-2011
,Revenue,CCHD,Frenchay Hospital Purchasing,Nursing Homes,Four Seasons Health Care,1336.28, 25-Jan-2011
,Revenue,CCHD,Elderly Purchasing - South,Nursing Homes,Four Seasons Health Care,1245.64, 25-Jan-2011
,Revenue,CCHD,Frenchay Hospital Purchasing,Nursing Homes,Four Seasons Health Care,881.92, 25-Jan-2011
,Revenue,CCHD,Elderly Purchasing - South,Residential Homes,Four Seasons Health Care,610.56, 25-Jan-2011
,Revenue,CCHD,Section 117 Placements,Residential Homes,Four Seasons Health Care,1688.00, 25-Jan-2011
,Revenue,CCHD,Elderly Purchasing - South,Residential Homes,Four Seasons Health Care,834.36, 25-Jan-2011
,Revenue,CCHD,Frenchay Hospital Purchasing,Residential Homes,Four Seasons Health Care,1246.80, 25-Jan-2011
,Revenue,CCHD,Elderly Purchasing - South,Residential Homes,Four Seasons Health Care,1133.92, 25-Jan-2011
,Revenue,CCHD,Elderly Purchasing - South,Nursing Homes,Four Seasons Health Care,987.28, 25-Jan-2011
,Revenue,CCHD,Frenchay Hospital Purchasing,Residential Homes,Four Seasons Health Care,1245.80, 25-Jan-2011
,Revenue,CCHD,Frenchay Hospital Purchasing,Residential Homes,Four Seasons Health Care,1218.32, 25-Jan-2011
,Revenue,CCHD,Frenchay Hospital Purchasing,Nursing Homes,Four Seasons Health Care,3616.00, 25-Jan-2011
,Revenue,CCHD,Elderly Purchasing - South,Nursing Homes,Four Seasons Health Care,1366.80, 25-Jan-2011
,Revenue,CCHD,Section 117 Placements,Residential Homes,Four Seasons Health Care,1688.00, 25-Jan-2011
,Revenue,CCHD,Frenchay Hospital Purchasing,Residential Homes,Four Seasons Health Care,1114.28, 25-Jan-2011
,Revenue,CCHD,Frenchay Hospital Purchasing,Nursing Homes,Four Seasons Health Care,1216.92, 25-Jan-2011
,Revenue,CCHD,Elderly Purchasing - South,Nursing Homes,Four Seasons Health Care,1366.80, 25-Jan-2011
,Revenue,CCHD,Frenchay Hospital Purchasing,Residential Homes,Four Seasons Health Care,1260.64, 25-Jan-2011
,Revenue,CCHD,Elderly Purchasing - South,Residential Homes,Four Seasons Health Care,2716.24, 25-Jan-2011
,Revenue,CCHD,Elderly Purchasing - South,Residential Homes,Four Seasons Health Care,1246.80, 25-Jan-2011
,Revenue,CCHD,Elderly Purchasing - South,Residential Homes,Four Seasons Health Care,667.92, 25-Jan-2011
,Revenue,CCHD,Southmead Hospital Purchasing,Residential Homes,Four Seasons Health Care,3873.98, 25-Jan-2011
,Revenue,CCHD,Southmead Hospital Purchasing,Residential Homes,Four Seasons Health Care,1246.80, 25-Jan-2011
,Revenue,CCHD,Frenchay Hospital Purchasing,Nursing Homes,Four Seasons Health Care,1363.84, 25-Jan-2011
,Revenue,CCHD,Elderly Mental Health,Residential Homes,Four Seasons Health Care,1678.89, 25-Jan-2011
,Revenue,CCHD,Elderly Mental Health,Residential Homes,Four Seasons Health Care,713.51, 25-Jan-2011
,Revenue,CCHD,Elderly Purchasing - North,Residential Homes,Wickwar Nursing Home  Castle House,1143.56, 25-Jan-2011
,Revenue,CCHD,Southmead Hospital Purchasing,Nursing Homes,Wickwar Nursing Home  Castle House,751.52, 25-Jan-2011
,Revenue,CCHD,Elderly Purchasing - North,Residential Homes,Wickwar Nursing Home  Castle House,1207.80, 25-Jan-2011
,Revenue,CCHD,Frenchay Hospital Purchasing,Nursing Homes,Wickwar Nursing Home  Castle House,1000.56, 25-Jan-2011
,Revenue,CCHD,Elderly Purchasing - North,Residential Homes,Wickwar Nursing Home  Castle House,1379.04, 25-Jan-2011
,Revenue,CCHD,Elderly Purchasing - North,Nursing Homes,Wickwar Nursing Home  Castle House,1302.80, 25-Jan-2011
,Revenue,CCHD,Elderly Purchasing - North,Nursing Homes,Wickwar Nursing Home  Castle House,1419.84, 25-Jan-2011
,Revenue,CCHD,Elderly Purchasing - North,Nursing Homes,Wickwar Nursing Home  Castle House,1448.36, 25-Jan-2011
,Revenue,CCHD,Cash for Change Discharges,Nursing Homes,Wickwar Nursing Home  Castle House,1371.72, 25-Jan-2011
,Revenue,CCHD,Elderly Purchasing - North,Residential Homes,Wickwar Nursing Home  Castle House,1229.80, 25-Jan-2011
,Revenue,CCHD,Frenchay Hospital Purchasing,Nursing Homes,Wickwar Nursing Home  Castle House,1539.24, 25-Jan-2011
,Revenue,CCHD,Frenchay Hospital Purchasing,Nursing Homes,Wickwar Nursing Home  Castle House,1442.39, 25-Jan-2011
,Revenue,CCHD,Frenchay Hospital Purchasing,Nursing Homes,Wickwar Nursing Home  Castle House,1302.80, 25-Jan-2011
,Revenue,CCHD,Southmead Hospital Purchasing,Nursing Homes,Wickwar Nursing Home  Castle House,1133.20, 25-Jan-2011
,Revenue,CCHD,Elderly Purchasing - North,Residential Homes,Wickwar Nursing Home  Castle House,1384.52, 25-Jan-2011
,Revenue,CCHD,Elderly Purchasing - North,Nursing Homes,Wickwar Nursing Home  Castle House,1400.08, 25-Jan-2011
,Revenue,CCHD,Purchasing Phys Dis - North,Nursing Homes,Wickwar Nursing Home  Castle House,1104.84, 25-Jan-2011
,Revenue,CCHD,Purchasing Phys Dis - North,Nursing Homes,Wickwar Nursing Home  Castle House,1302.80, 25-Jan-2011
,Revenue,CCHD,Elderly Purchasing - North,Nursing Homes,Willow Cottage,1945.44, 25-Jan-2011
,Revenue,CCHD,Elderly Purchasing - North,Nursing Homes,Willow Cottage,1344.48, 25-Jan-2011
,Revenue,CCHD,Frenchay Hospital Purchasing,Nursing Homes,Willow Cottage,1645.60, 25-Jan-2011
,Revenue,CCHD,Frenchay Hospital Purchasing,Nursing Homes,Willow Cottage,1320.72, 25-Jan-2011
,Revenue,CCHD,Elderly Mental Health,Nursing Homes,Willow Cottage,1478.88, 25-Jan-2011
,Revenue,CCHD,Southmead Hospital Purchasing,Nursing Homes,Willow Cottage,1461.96, 25-Jan-2011
,Revenue,CCHD,Purchasing Phys Dis - North,Nursing Homes,Willow Cottage,1662.48, 25-Jan-2011
,Revenue,CCHD,Elderly Purchasing - North,Nursing Homes,Willow Cottage,1237.68, 25-Jan-2011
,Revenue,CCHD,Southmead Hospital Purchasing,Nursing Homes,Willow Cottage,1476.28, 25-Jan-2011
,Revenue,CCHD,Southmead Hospital Purchasing,Nursing Homes,Willow Cottage,1504.00, 25-Jan-2011
,Revenue,CCHD,Southmead Hospital Purchasing,Nursing Homes,Willow Cottage,1312.76, 25-Jan-2011
,Revenue,CCHD,Purchasing Phys Dis - North,Nursing Homes,Leonard Cheshire  National Account Centr,2588.28, 25-Jan-2011
,Revenue,CCHD,Purchasing Phys Dis - North,Residential Homes,Leonard Cheshire  National Account Centr,2313.76, 25-Jan-2011
,Revenue,CCHD,Under 65s PWLD - KH,Residential Homes,Leonard Cheshire  National Account Centr,2905.32, 25-Jan-2011
,Revenue,CCHD,Purchasing Phys Dis - North,Nursing Homes,Leonard Cheshire  National Account Centr,2698.60, 25-Jan-2011
,Revenue,CCHD,Under 65s PWLD - KH,Residential Homes,East Court,2228.16, 25-Jan-2011
,Revenue,CCHD,Under 65s PWLD - KD,Residential Homes,Three Roses Home,2029.04, 25-Jan-2011
,Revenue,CCHD,Southmead Hospital Purchasing,Nursing Homes,Four Seasons Health Care,760.40, 25-Jan-2011
,Revenue,CCHD,Elderly Mental Health,Nursing Homes,Four Seasons Health Care,1356.84, 25-Jan-2011
,Revenue,CCHD,Elderly Purchasing - North,Nursing Homes,Four Seasons Health Care,1315.28, 25-Jan-2011
,Revenue,CCHD,Elderly Mental Health,Nursing Homes,Four Seasons Health Care,1366.80, 25-Jan-2011
,Revenue,CCHD,Frenchay Hospital Purchasing,Nursing Homes,Four Seasons Health Care,807.52, 25-Jan-2011
,Revenue,CCHD,Elderly Purchasing - North,Nursing Homes,Four Seasons Health Care,1366.80, 25-Jan-2011
,Revenue,CCHD,S28A - Under 65,Nursing Homes,Urmston House,10496.84, 25-Jan-2011
,Revenue,CCHD,S28A - Under 65,Nursing Homes,Urmston House,10496.84, 25-Jan-2011
,Revenue,CCHD,S28A - Under 65,Nursing Homes,Urmston House,10496.84, 25-Jan-2011
,Revenue,CCHD,Under 65s PWLD - KD,Residential Homes,Leonard Cheshire  National Account Centr,5742.64, 25-Jan-2011
,Revenue,CCHD,Under 65s PWLD - KD,Residential Homes,Leonard Cheshire  National Account Centr,5741.12, 25-Jan-2011
,Revenue,CCHD,Under 65s PWLD - PS,Residential Homes,Renaissance,2174.40, 25-Jan-2011
,Revenue,CCHD,Purchasing Phys Dis - North,Nursing Homes,Bupa Care Services  Bridge House,5700.16, 25-Jan-2011
,Revenue,CCHD,South Glos Users in all other LA Homes,Nursing Homes,Bupa Care Services  Bridge House,598.40, 25-Jan-2011
,Revenue,CCHD,Under 65s PWLD - PS,Nursing Homes,Carriage Court,5766.48, 25-Jan-2011
,Revenue,CCHD,S28A - Under 65,Residential Homes,Creedy Court,8952.64, 25-Jan-2011
,Revenue,CCHD,S28A - Under 65,Residential Homes,Creedy Court,7451.92, 25-Jan-2011
,Revenue,CCHD,Frenchay Hospital Purchasing,Residential Homes,Kingswood Care Centre,1121.48, 25-Jan-2011
,Revenue,CCHD,Elderly Purchasing - North,Residential Homes,Kingswood Care Centre,1238.28, 25-Jan-2011
,Revenue,CCHD,Under 65s PWLD - KH,Residential Homes,Autism Specialised Care Homes,5431.16, 25-Jan-2011
,Revenue,CCHD,Under 65s PWLD - PS,Residential Homes,Keepers Cottage,1969.48, 25-Jan-2011
,Revenue,CCHD,Under 65s PWLD - PS,Residential Homes,Cromwell House,7808.64, 25-Jan-2011
,Revenue,CCHD,Purchasing Phys Dis - South,Nursing Homes,Glenside Centre For Brain Injury,6955.52, 25-Jan-2011
,Revenue,CCHD,Frenchay Hospital Purchasing,Residential Homes,St Monicas Trust,1249.96, 25-Jan-2011
,Revenue,CCHD,Under 65s PWLD - KD,Residential Homes,Fernbank,8360.96, 25-Jan-2011
,Revenue,CCHD,Under 65s PWLD - KD,Residential Homes,Kelly House,3492.60, 25-Jan-2011
,Revenue,CCHD,S28A - Under 65,Residential Homes,Kelly House,3376.44, 25-Jan-2011
,Revenue,CCHD,S28A - Over 65,Residential Homes,The Brandon Trust  Olympus House,3555.76, 25-Jan-2011
,Revenue,CCHD,Under 65s PWLD - PS,Residential Homes,The Brandon Trust  Olympus House,11160.28, 25-Jan-2011
,Revenue,CCHD,Under 65s PWLD - KD,Residential Homes,The Brandon Trust  Olympus House,5118.64, 25-Jan-2011
,Revenue,CCHD,Elderly PWLD - PS,Residential Homes,The Brandon Trust  Olympus House,3355.96, 25-Jan-2011
,Revenue,CCHD,Under 65s PWLD - KD,Nursing Homes,The Brandon Trust  Olympus House,5709.36, 25-Jan-2011
,Revenue,CCHD,S28A - Over 65,Residential Homes,The Brandon Trust  Olympus House,2979.48, 25-Jan-2011
,Revenue,CCHD,S28A - Under 65,Residential Homes,The Brandon Trust  Olympus House,3806.52, 25-Jan-2011
,Revenue,CCHD,S28A - Under 65,Residential Homes,The Brandon Trust  Olympus House,5519.68, 25-Jan-2011
,Revenue,CCHD,S28A - Under 65,Residential Homes,The Brandon Trust  Olympus House,4543.48, 25-Jan-2011
,Revenue,CCHD,S28A - Under 65,Residential Homes,The Brandon Trust  Olympus House,5954.92, 25-Jan-2011
,Revenue,CCHD,Under 65s PWLD - KH,Residential Homes,The Brandon Trust  Olympus House,3226.92, 25-Jan-2011
,Revenue,CCHD,S28A - Under 65,Residential Homes,The Brandon Trust  Olympus House,5751.69, 25-Jan-2011
,Revenue,CCHD,S28A - Over 65,Residential Homes,The Brandon Trust  Olympus House,3192.96, 25-Jan-2011
,Revenue,CCHD,S28A - Under 65,Nursing Homes,The Brandon Trust  Olympus House,5386.84, 25-Jan-2011
,Revenue,CCHD,S28A - Under 65,Nursing Homes,The Brandon Trust  Olympus House,5738.56, 25-Jan-2011
,Revenue,CCHD,S28A - Under 65,Residential Homes,The Brandon Trust  Olympus House,4837.24, 25-Jan-2011
,Revenue,CCHD,S28A - Under 65,Residential Homes,The Brandon Trust  Olympus House,4837.24, 25-Jan-2011
,Revenue,CCHD,S28A - Under 65,Residential Homes,The Brandon Trust  Olympus House,7122.16, 25-Jan-2011
,Revenue,CCHD,S28A - Under 65,Residential Homes,The Brandon Trust  Olympus House,5563.68, 25-Jan-2011
,Revenue,CCHD,S28A - Under 65,Residential Homes,The Brandon Trust  Olympus House,5519.68, 25-Jan-2011
,Revenue,CCHD,S28A - Under 65,Residential Homes,The Brandon Trust  Olympus House,3888.08, 25-Jan-2011
,Revenue,CCHD,S28A - Under 65,Residential Homes,The Brandon Trust  Olympus House,4837.24, 25-Jan-2011
,Revenue,CCHD,S28A - Under 65,Residential Homes,The Brandon Trust  Olympus House,4680.64, 25-Jan-2011
,Revenue,CCHD,Under 65s PWLD - PS,Residential Homes,Norwood   Broadway House,4795.12, 25-Jan-2011
,Revenue,CCHD,Frenchay Hospital Purchasing,Nursing Homes,Brunel Care,3033.44, 25-Jan-2011
,Revenue,CCHD,Southmead Hospital Purchasing,Residential Homes,Brunel Care,1263.64, 25-Jan-2011
,Revenue,CCHD,Southmead Hospital Purchasing,Residential Homes,Mostyn Lodge Residential Home,1246.80, 25-Jan-2011
,Revenue,CCHD,Section 117 Placements,Residential Homes,Mostyn Lodge Residential Home,1848.00, 25-Jan-2011
,Revenue,CCHD,Under 65s PWLD - KH,Nursing Homes,Somerset Hca Ltd,9510.28, 25-Jan-2011
,Revenue,CCHD,Frenchay Hospital Purchasing,Nursing Homes,Cedar Care Homes Ltd,1082.68, 25-Jan-2011
,Revenue,CCHD,Elderly Purchasing - South,Residential Homes,Leonard Cheshire  National Account Centr,4353.96, 25-Jan-2011
,Revenue,CCHD,Purchasing Phys Dis - North,Nursing Homes,Leonard Cheshire  National Account Centr,2787.64, 25-Jan-2011
,Revenue,CCHD,Purchasing Phys Dis - North,Nursing Homes,Leonard Cheshire  National Account Centr,3155.80, 25-Jan-2011
,Revenue,CCHD,Purchasing Phys Dis - North,Residential Homes,Leonard Cheshire  National Account Centr,2837.08, 25-Jan-2011
,Revenue,CCHD,Purchasing Phys Dis - South,Nursing Homes,Leonard Cheshire  National Account Centr,3140.40, 25-Jan-2011
,Revenue,CCHD,Purchasing Phys Dis - South,Nursing Homes,Leonard Cheshire  National Account Centr,5956.56, 25-Jan-2011
,Revenue,CCHD,Purchasing Phys Dis - North,Nursing Homes,Leonard Cheshire  National Account Centr,5378.48, 25-Jan-2011
,Revenue,CCHD,Southmead Hospital Purchasing,Nursing Homes,Leonard Cheshire  National Account Centr,2910.28, 25-Jan-2011
,Revenue,CCHD,South Glos Users in all other LA Homes,Nursing Homes,Leonard Cheshire  National Account Centr,598.40, 25-Jan-2011
,Revenue,CCHD,Purchasing Phys Dis - North,Nursing Homes,Leonard Cheshire  National Account Centr,3246.00, 25-Jan-2011
,Revenue,CCHD,Frenchay Hospital Purchasing,Residential Homes,Leonard Cheshire  National Account Centr,3698.20, 25-Jan-2011
,Revenue,CCHD,Elderly Purchasing - North,Nursing Homes,Leonard Cheshire  National Account Centr,4531.24, 25-Jan-2011
,Revenue,CCHD,Frenchay Hospital Purchasing,Residential Homes,Anbridge Care Home,779.88, 25-Jan-2011
,Revenue,CCHD,Elderly PWLD - KH,Residential Homes,Craegmoor Healthcare,4803.28, 25-Jan-2011
,Revenue,CCHD,Under 65s PWLD - KH,Residential Homes,Craegmoor Healthcare,4007.92, 25-Jan-2011
,Revenue,CCHD,Elderly PWLD - KH,Residential Homes,Craegmoor Healthcare,1003.07, 25-Jan-2011
,Revenue,CCHD,Under 65s PWLD - KH,Residential Homes,Craegmoor Healthcare,4835.48, 25-Jan-2011
,Revenue,CCHD,Under 65s PWLD - KH,Residential Homes,Craegmoor Healthcare,13468.64, 25-Jan-2011
,Revenue,CCHD,Under 65s PWLD - PS,Residential Homes,Craegmoor Healthcare,5430.80, 25-Jan-2011
,Revenue,CCHD,Under 65s PWLD - KH,Residential Homes,Craegmoor Healthcare,2487.96, 25-Jan-2011
,Revenue,CCHD,Under 65s PWLD - KD,Residential Homes,Craegmoor Healthcare,2731.20, 25-Jan-2011
,Revenue,CCHD,S28A - Under 65,Residential Homes,Craegmoor Healthcare,4517.20, 25-Jan-2011
,Revenue,CCHD,S28A - Under 65,Residential Homes,Craegmoor Healthcare,5511.52, 25-Jan-2011
,Revenue,CCHD,S28A - Under 65,Residential Homes,Craegmoor Healthcare,5213.52, 25-Jan-2011
,Revenue,CCHD,Under 65s PWLD - KH,Residential Homes,Craegmoor Healthcare,7042.28, 25-Jan-2011
,Revenue,CCHD,Under 65s PWLD - KD,Residential Homes,Craegmoor Healthcare,2159.68, 25-Jan-2011
,Revenue,CCHD,Under 65s PWLD - KH,Residential Homes,Craegmoor Healthcare,4812.36, 25-Jan-2011
,Revenue,CCHD,Under 65s PWLD - KD,Residential Homes,The Red House Residential Home,2018.76, 25-Jan-2011
,Revenue,CCHD,Under 65s PWLD - KD,Residential Homes,The Red House Residential Home,1931.20, 25-Jan-2011
,Revenue,CCHD,Under 65s PWLD - KD,Residential Homes,The Red House Residential Home,1862.16, 25-Jan-2011
,Revenue,CCHD,Under 65s PWLD - KD,Residential Homes,The Red House Residential Home,2018.76, 25-Jan-2011
,Revenue,CCHD,Under 65s PWLD - KD,Residential Homes,The Red House Residential Home,1862.16, 25-Jan-2011
,Revenue,CCHD,Purchasing Phys Dis - North,Residential Homes,Tracs Group Ltd,6112.40, 25-Jan-2011
,Revenue,CCHD,Purchasing Phys Dis - North,Residential Homes,Tracs Group Ltd,4478.08, 25-Jan-2011
,Revenue,CCHD,Under 65s PWLD - PS,Residential Homes,Osprey Court,8057.08, 25-Jan-2011
,Revenue,CCHD,S28A - Under 65,Residential Homes,Osprey Court,4502.16, 25-Jan-2011
,Revenue,CCHD,Elderly Purchasing - South,Residential Homes,Jah-Jireh Charity Homes,1258.80, 25-Jan-2011
,Revenue,CCHD,Under 65s PWLD - KD,Nursing Homes,Holmleigh Care Homes Ltd,3919.08, 25-Jan-2011
,Revenue,CCHD,Under 65s PWLD - KH,Residential Homes,Holmleigh Care Homes Ltd,4920.08, 25-Jan-2011
,Revenue,CCHD,Elderly Mental Health,Residential Homes,The Old Vicarage Residential Home,1536.60, 25-Jan-2011
,Revenue,CCHD,PWLD S 117 Placements,Residential Homes,West Court,7773.44, 25-Jan-2011
,Revenue,CCHD,Under 65s PWLD - PS,Residential Homes,Glasallt Fawr,4452.60, 25-Jan-2011
,Revenue,CCHD,Under 65s PWLD - PS,Residential Homes,Daneswood,10598.40, 25-Jan-2011
,Revenue,CCHD,Under 65s PWLD - KD,Residential Homes,Daneswood,8761.40, 25-Jan-2011
,Revenue,CCHD,Under 65s PWLD - KD,Residential Homes,Cottage & Rural Enterprises,1934.04, 25-Jan-2011
,Revenue,CCHD,Southmead Hospital Purchasing,Residential Homes,Fairview Court,1679.84, 25-Jan-2011
,Revenue,CCHD,Elderly Mental Health,Residential Homes,Fairview Court,1406.80, 25-Jan-2011
,Revenue,CCHD,Elderly Mental Health,Residential Homes,Fairview Court,1250.28, 25-Jan-2011
,Revenue,CCHD,Frenchay Hospital Purchasing,Residential Homes,Fairview Court,1532.48, 25-Jan-2011
,Revenue,CCHD,Under 65s PWLD - KD,Residential Homes,Sense,10341.60, 25-Jan-2011
,Revenue,CCHD,Under 65s PWLD - KD,Residential Homes,Ark Care Homes Ltd,10353.32, 25-Jan-2011
,Revenue,CCHD,Under 65s PWLD - KD,Residential Homes,Hazelhurst,3629.40, 25-Jan-2011
,Revenue,CCHD,Under 65s PWLD - KD,Residential Homes,Hazelhurst,2905.20, 25-Jan-2011
,Revenue,CCHD,Elderly PWLD - KD,Residential Homes,Hazelhurst,3577.44, 25-Jan-2011
,Revenue,CCHD,Under 65s PWLD - KD,Residential Homes,Hazelhurst,3838.72, 25-Jan-2011
,Revenue,CCHD,Under 65s PWLD - KD,Residential Homes,Hazelhurst,2999.76, 25-Jan-2011
,Revenue,CCHD,Section 117 Placements MH Younger,Residential Homes,Manon House,4962.36, 25-Jan-2011
,Revenue,CCHD,Under 65s PWLD - PS,Residential Homes,Victoria Court,11033.76, 25-Jan-2011
,Revenue,CCHD,Under 65s PWLD - KD,Residential Homes,Victoria Court,8553.12, 25-Jan-2011
,Revenue,CCHD,Section 117 Placements,Nursing Homes,Mimosa Healthcare Holdings Ltd,1888.00, 25-Jan-2011
,Revenue,CCHD,Southmead Hospital Purchasing,Nursing Homes,Mimosa Healthcare Holdings Ltd,855.64, 25-Jan-2011
,Revenue,CCHD,Under 65s PWLD - PS,Residential Homes,Rosewood Lodge & Brook House,7848.56, 25-Jan-2011
,Revenue,CCHD,Elderly Purchasing - South,Residential Homes,Ablecare Homes,935.00, 25-Jan-2011
,Revenue,CCHD,Southmead Hospital Purchasing,Residential Homes,Ablecare Homes,578.87, 25-Jan-2011
,Revenue,CCHD,Southmead Hospital Purchasing,Residential Homes,Ablecare Homes,1462.88, 25-Jan-2011
,Revenue,CCHD,Elderly Mental Health,Residential Homes,Ablecare Homes,1406.80, 25-Jan-2011
,Revenue,CCHD,Elderly Purchasing - North,Residential Homes,Ablecare Homes,846.72, 25-Jan-2011
,Revenue,CCHD,Frenchay Hospital Purchasing,Residential Homes,Ablecare Homes,1322.60, 25-Jan-2011
,Revenue,CCHD,Elderly Purchasing - North,Residential Homes,Ablecare Homes,1269.52, 25-Jan-2011
,Revenue,CCHD,Elderly Purchasing - North,Residential Homes,Ablecare Homes,1246.84, 25-Jan-2011
,Revenue,CCHD,Elderly Purchasing - South,Residential Homes,Ablecare Homes,1869.16, 25-Jan-2011
,Revenue,CCHD,Frenchay Hospital Purchasing,Residential Homes,Ablecare Homes,1249.96, 25-Jan-2011
,Revenue,CCHD,Elderly Mental Health,Residential Homes,Ablecare Homes,1289.08, 25-Jan-2011
,Revenue,CCHD,Elderly Mental Health,Residential Homes,Ablecare Homes,1267.64, 25-Jan-2011
,Revenue,CCHD,Elderly Purchasing - South,Residential Homes,Ablecare Homes,1334.12, 25-Jan-2011
,Revenue,CCHD,Frenchay Hospital Purchasing,Residential Homes,Milburn Finance,1052.60, 25-Jan-2011
,Revenue,CCHD,Under 65s PWLD - PS,Residential Homes,Tracs Group Ltd,6424.76, 25-Jan-2011
,Revenue,CCHD,Under 65s PWLD - PS,Residential Homes,Stepping Stones Re-Sett. Unit,8473.28, 25-Jan-2011
,Revenue,CCHD,Under 65s PWLD - KD,Residential Homes,Home Farm,3563.36, 25-Jan-2011
,Revenue,CCHD,S28A - Under 65,Residential Homes,Aspects &  Milestones Trust,3084.91, 25-Jan-2011
,Revenue,CCHD,Elderly Purchasing - South,Residential Homes,Aspects &  Milestones Trust,1397.24, 25-Jan-2011
,Revenue,CCHD,Section 117 Placements,Nursing Homes,Aspects &  Milestones Trust,1381.60, 25-Jan-2011
,Revenue,CCHD,Elderly Mental Health,Residential Homes,Aspects &  Milestones Trust,1246.80, 25-Jan-2011
,Revenue,CCHD,Section 117 Placements,Residential Homes,Aspects &  Milestones Trust,1304.00, 25-Jan-2011
,Revenue,CCHD,Elderly Mental Health,Nursing Homes,Aspects &  Milestones Trust,838.52, 25-Jan-2011
,Revenue,CCHD,Section 117 Placements,Nursing Homes,Aspects &  Milestones Trust,1911.96, 25-Jan-2011
,Revenue,CCHD,Elderly PWLD - KD,Nursing Homes,Aspects &  Milestones Trust,2725.08, 25-Jan-2011
,Revenue,CCHD,Section 117 Placements,Nursing Homes,Aspects &  Milestones Trust,1912.00, 25-Jan-2011
,Revenue,CCHD,Section 117 Placements,Nursing Homes,Aspects &  Milestones Trust,9901.43, 25-Jan-2011
,Revenue,CCHD,Elderly Mental Health,Nursing Homes,Aspects &  Milestones Trust,4724.48, 25-Jan-2011
,Revenue,CCHD,Elderly Mental Health,Nursing Homes,Aspects &  Milestones Trust,1469.84, 25-Jan-2011
,Revenue,CCHD,Elderly PWLD - PS,Residential Homes,Aspects &  Milestones Trust,21953.69, 25-Jan-2011
,Revenue,CCHD,Elderly PWLD - PS,Residential Homes,Aspects &  Milestones Trust,3322.72, 25-Jan-2011
,Revenue,CCHD,Under 65s PWLD - PS,Residential Homes,Aspects &  Milestones Trust,4297.68, 25-Jan-2011
,Revenue,CCHD,S28A - Under 65,Nursing Homes,Aspects &  Milestones Trust,5689.72, 25-Jan-2011
,Revenue,CCHD,S28A - Under 65,Residential Homes,Aspects &  Milestones Trust,5551.68, 25-Jan-2011
,Revenue,CCHD,Under 65s PWLD - KH,Residential Homes,Aspects &  Milestones Trust,3650.92, 25-Jan-2011
,Revenue,CCHD,S28A - Under 65,Residential Homes,Aspects &  Milestones Trust,5251.04, 25-Jan-2011
,Revenue,CCHD,Under 65s PWLD - KD,Residential Homes,Aspects &  Milestones Trust,5935.08, 25-Jan-2011
,Revenue,CCHD,Under 65s PWLD - KH,Residential Homes,Aspects &  Milestones Trust,3782.04, 25-Jan-2011
,Revenue,CCHD,S28A - Under 65,Nursing Homes,Aspects &  Milestones Trust,8022.76, 25-Jan-2011
,Revenue,CCHD,MH Purchasing - Younger,Residential Homes,Aspects &  Milestones Trust,1019.40, 25-Jan-2011
,Revenue,CCHD,Elderly PWLD - PS,Residential Homes,Aspects &  Milestones Trust,5701.72, 25-Jan-2011
,Revenue,CCHD,Elderly PWLD - PS,Residential Homes,Aspects &  Milestones Trust,3835.08, 25-Jan-2011
,Revenue,CCHD,Under 65s PWLD - KH,Residential Homes,Aspects &  Milestones Trust,4909.68, 25-Jan-2011
,Revenue,CCHD,S28A - Under 65,Nursing Homes,Aspects &  Milestones Trust,5485.96, 25-Jan-2011
,Revenue,CCHD,S28A - Under 65,Residential Homes,Aspects &  Milestones Trust,7330.28, 25-Jan-2011
,Revenue,CCHD,S28A - Over 65,Residential Homes,Aspects &  Milestones Trust,3543.56, 25-Jan-2011
,Revenue,CCHD,S28A - Under 65,Nursing Homes,Aspects &  Milestones Trust,6132.88, 25-Jan-2011
,Revenue,CCHD,Section 117 Placements MH Younger,Residential Homes,Aspects &  Milestones Trust,1304.00, 25-Jan-2011
,Revenue,CCHD,Under 65s PWLD - PS,Residential Homes,Aspects &  Milestones Trust,3847.60, 25-Jan-2011
,Revenue,CCHD,S28A - Under 65,Residential Homes,Aspects &  Milestones Trust,7330.28, 25-Jan-2011
,Revenue,CCHD,S28A - Under 65,Residential Homes,Aspects &  Milestones Trust,5041.88, 25-Jan-2011
,Revenue,CCHD,S28A - Under 65,Residential Homes,Aspects &  Milestones Trust,4909.96, 25-Jan-2011
,Revenue,CCHD,S28A - Over 65,Residential Homes,Aspects &  Milestones Trust,4167.44, 25-Jan-2011
,Revenue,CCHD,S28A - Over 65,Residential Homes,Aspects &  Milestones Trust,3266.56, 25-Jan-2011
,Revenue,CCHD,S28A - Under 65,Residential Homes,Aspects &  Milestones Trust,7330.28, 25-Jan-2011
,Revenue,CCHD,S28A - Over 65,Residential Homes,Aspects &  Milestones Trust,4400.96, 25-Jan-2011
,Revenue,CCHD,S28A - Under 65,Residential Homes,Aspects &  Milestones Trust,7330.28, 25-Jan-2011
,Revenue,CCHD,S28A - Under 65,Residential Homes,Aspects &  Milestones Trust,3695.56, 25-Jan-2011
,Revenue,CCHD,S28A - Under 65,Residential Homes,Aspects &  Milestones Trust,5244.04, 25-Jan-2011
,Revenue,CCHD,S28A - Under 65,Residential Homes,Aspects &  Milestones Trust,6533.88, 25-Jan-2011
,Revenue,CCHD,S28A - Under 65,Residential Homes,Aspects &  Milestones Trust,3992.16, 25-Jan-2011
,Revenue,CCHD,S28A - Over 65,Residential Homes,Aspects &  Milestones Trust,5894.72, 25-Jan-2011
,Revenue,CCHD,S28A - Over 65,Residential Homes,Aspects &  Milestones Trust,3355.16, 25-Jan-2011
,Revenue,CCHD,S28A - Over 65,Residential Homes,Aspects &  Milestones Trust,5001.08, 25-Jan-2011
,Revenue,CCHD,S28A - Under 65,Residential Homes,Aspects &  Milestones Trust,5153.96, 25-Jan-2011
,Revenue,CCHD,S28A - Over 65,Residential Homes,Aspects &  Milestones Trust,4797.92, 25-Jan-2011
,Revenue,CCHD,S28A - Over 65,Residential Homes,Aspects &  Milestones Trust,3251.36, 25-Jan-2011
,Revenue,CCHD,S28A - Under 65,Nursing Homes,Aspects &  Milestones Trust,5068.00, 25-Jan-2011
,Revenue,CCHD,S28A - Under 65,Residential Homes,Aspects &  Milestones Trust,4330.64, 25-Jan-2011
,Revenue,CCHD,S28A - Over 65,Residential Homes,Aspects &  Milestones Trust,3603.28, 25-Jan-2011
,Revenue,CCHD,S28A - Under 65,Residential Homes,Aspects &  Milestones Trust,7330.28, 25-Jan-2011
,Revenue,CCHD,Under 65s PWLD - PS,Residential Homes,Aspects &  Milestones Trust,4322.72, 25-Jan-2011
,Revenue,CCHD,S28A - Under 65,Nursing Homes,Aspects &  Milestones Trust,6214.08, 25-Jan-2011
,Revenue,CCHD,S28A - Over 65,Residential Homes,Aspects &  Milestones Trust,3628.36, 25-Jan-2011
,Revenue,CCHD,S28A - Under 65,Residential Homes,Aspects &  Milestones Trust,3209.64, 25-Jan-2011
,Revenue,CCHD,S28A - Over 65,Residential Homes,Aspects &  Milestones Trust,3435.76, 25-Jan-2011
,Revenue,CCHD,S28A - Over 65,Residential Homes,Aspects &  Milestones Trust,4899.16, 25-Jan-2011
,Revenue,CCHD,S28A - Over 65,Residential Homes,Aspects &  Milestones Trust,3251.32, 25-Jan-2011
,Revenue,CCHD,Elderly Mental Health,Residential Homes,Aspects &  Milestones Trust,863.16, 25-Jan-2011
,Revenue,CCHD,S28A - Under 65,Residential Homes,Aspects &  Milestones Trust,4971.64, 25-Jan-2011
,Revenue,CCHD,Elderly PWLD - KD,Residential Homes,Aspects &  Milestones Trust,2875.80, 25-Jan-2011
,Revenue,CCHD,Under 65s PWLD - KH,Residential Homes,Aspects &  Milestones Trust,5627.60, 25-Jan-2011
,Revenue,CCHD,Elderly PWLD - KD,Residential Homes,Aspects &  Milestones Trust,5705.36, 25-Jan-2011
,Revenue,CCHD,Under 65s PWLD - KD,Residential Homes,Aspects &  Milestones Trust,4402.60, 25-Jan-2011
,Revenue,CCHD,Under 65s PWLD - PS,Residential Homes,Aspects &  Milestones Trust,3998.80, 25-Jan-2011
,Revenue,CCHD,S28A - Under 65,Residential Homes,Aspects &  Milestones Trust,5986.84, 25-Jan-2011
,Revenue,CCHD,S28A - Over 65,Residential Homes,Aspects &  Milestones Trust,3312.04, 25-Jan-2011
,Revenue,CCHD,Section 117 Placements MH Younger,Residential Homes,Aspects &  Milestones Trust,1688.00, 25-Jan-2011
,Revenue,CCHD,MH Purchasing - Younger,Residential Homes,Aspects &  Milestones Trust,1019.40, 25-Jan-2011
,Revenue,CCHD,S28A - Under 65,Residential Homes,Aspects &  Milestones Trust,3701.88, 25-Jan-2011
,Revenue,CCHD,S28A - Under 65,Residential Homes,Aspects &  Milestones Trust,5244.04, 25-Jan-2011
,Revenue,CCHD,S28A - Under 65,Residential Homes,Aspects &  Milestones Trust,5936.36, 25-Jan-2011
,Revenue,CCHD,S28A - Over 65,Residential Homes,Aspects &  Milestones Trust,5810.64, 25-Jan-2011
,Revenue,CCHD,S28A - Over 65,Residential Homes,Aspects &  Milestones Trust,4106.08, 25-Jan-2011
,Revenue,CCHD,S28A - Over 65,Residential Homes,Aspects &  Milestones Trust,4899.16, 25-Jan-2011
,Revenue,CCHD,S28A - Under 65,Residential Homes,Aspects &  Milestones Trust,4940.92, 25-Jan-2011
,Revenue,CCHD,S28A - Under 65,Residential Homes,Aspects &  Milestones Trust,5817.60, 25-Jan-2011
,Revenue,CCHD,S28A - Under 65,Residential Homes,Aspects &  Milestones Trust,8022.76, 25-Jan-2011
,Revenue,CCHD,S28A - Under 65,Residential Homes,Aspects &  Milestones Trust,5087.44, 25-Jan-2011
,Revenue,CCHD,S28A - Under 65,Residential Homes,Aspects &  Milestones Trust,4921.56, 25-Jan-2011
,Revenue,CCHD,S28A - Under 65,Residential Homes,Aspects &  Milestones Trust,5395.08, 25-Jan-2011
,Revenue,CCHD,S28A - Under 65,Residential Homes,Aspects &  Milestones Trust,5395.08, 25-Jan-2011
,Revenue,CCHD,S28A - Under 65,Residential Homes,Aspects &  Milestones Trust,4586.64, 25-Jan-2011
,Revenue,CCHD,S28A - Under 65,Residential Homes,Aspects &  Milestones Trust,5395.08, 25-Jan-2011
,Revenue,CCHD,S28A - Under 65,Residential Homes,Aspects &  Milestones Trust,5830.24, 25-Jan-2011
,Revenue,CCHD,S28A - Over 65,Residential Homes,Aspects &  Milestones Trust,5154.00, 25-Jan-2011
,Revenue,CCHD,S28A - Over 65,Residential Homes,Aspects &  Milestones Trust,4913.08, 25-Jan-2011
,Revenue,CCHD,S28A - Under 65,Residential Homes,Aspects &  Milestones Trust,7604.00, 25-Jan-2011
,Revenue,CCHD,S28A - Under 65,Residential Homes,Aspects &  Milestones Trust,5830.24, 25-Jan-2011
,Revenue,CCHD,S28A - Under 65,Residential Homes,Aspects &  Milestones Trust,3355.72, 25-Jan-2011
,Revenue,CCHD,S28A - Over 65,Residential Homes,Aspects &  Milestones Trust,3404.64, 25-Jan-2011
,Revenue,CCHD,S28A - Over 65,Residential Homes,Aspects &  Milestones Trust,5516.72, 25-Jan-2011
,Revenue,CCHD,S28A - Over 65,Residential Homes,Aspects &  Milestones Trust,3329.48, 25-Jan-2011
,Revenue,CCHD,Under 65s PWLD - KH,Residential Homes,Aspects &  Milestones Trust,15139.60, 25-Jan-2011
,Revenue,CCHD,Section 117 Placements,Residential Homes,Aspects &  Milestones Trust,1913.04, 25-Jan-2011
,Revenue,CCHD,Elderly Mental Health,Nursing Homes,Aspects &  Milestones Trust,1344.96, 25-Jan-2011
,Revenue,CCHD,Under 65s PWLD - KD,Residential Homes,Aspects &  Milestones Trust,7196.32, 25-Jan-2011
,Revenue,CCHD,MH Purchasing - Younger,Nursing Homes,Aspects &  Milestones Trust,927.60, 25-Jan-2011
,Revenue,CCHD,MH Purchasing - Younger,Nursing Homes,Aspects &  Milestones Trust,1107.40, 25-Jan-2011
,Revenue,CCHD,MH Purchasing - Younger,Residential Homes,Aspects &  Milestones Trust,1019.40, 25-Jan-2011
,Revenue,CCHD,Under 65s PWLD - PS,Residential Homes,Aspects &  Milestones Trust,3533.64, 25-Jan-2011
,Revenue,CCHD,S28A - Under 65,Residential Homes,Aspects &  Milestones Trust,5012.44, 25-Jan-2011
,Revenue,CCHD,S28A - Under 65,Residential Homes,Aspects &  Milestones Trust,5283.24, 25-Jan-2011
,Revenue,CCHD,S28A - Over 65,Residential Homes,Aspects &  Milestones Trust,4014.68, 25-Jan-2011
,Revenue,CCHD,S28A - Over 65,Residential Homes,Aspects &  Milestones Trust,4804.20, 25-Jan-2011
,Revenue,CCHD,Under 65s PWLD - KH,Residential Homes,Aspects &  Milestones Trust,4115.40, 25-Jan-2011
,Revenue,CCHD,S28A - Over 65,Residential Homes,Aspects &  Milestones Trust,4252.44, 25-Jan-2011
,Revenue,CCHD,S28A - Under 65,Residential Homes,Aspects &  Milestones Trust,23680.80, 25-Jan-2011
,Revenue,CCHD,S28A - Under 65,Residential Homes,Aspects &  Milestones Trust,3946.80, 25-Jan-2011
,Revenue,CCHD,S28A - Over 65,Residential Homes,Aspects &  Milestones Trust,5810.64, 25-Jan-2011
,Revenue,CCHD,S28A - Over 65,Residential Homes,Aspects &  Milestones Trust,4641.36, 25-Jan-2011
,Revenue,CCHD,S28A - Over 65,Residential Homes,Aspects &  Milestones Trust,4123.52, 25-Jan-2011
,Revenue,CCHD,S28A - Over 65,Residential Homes,Aspects &  Milestones Trust,4345.84, 25-Jan-2011
,Revenue,CCHD,S28A - Under 65,Residential Homes,Aspects &  Milestones Trust,5349.96, 25-Jan-2011
,Revenue,CCHD,S28A - Over 65,Residential Homes,Aspects &  Milestones Trust,4946.48, 25-Jan-2011
,Revenue,CCHD,Section 117 Placements,Residential Homes,Aspects &  Milestones Trust,769.94, 25-Jan-2011
,Revenue,CCHD,Section 117 Placements,Nursing Homes,Aspects &  Milestones Trust,769.94, 25-Jan-2011
,Revenue,CCHD,Elderly Mental Health,Residential Homes,Aspects &  Milestones Trust,1185.68, 25-Jan-2011
,Revenue,CCHD,S28A - Over 65,Residential Homes,Aspects &  Milestones Trust,4940.76, 25-Jan-2011
,Revenue,CCHD,S28A - Under 65,Residential Homes,Aspects &  Milestones Trust,5617.04, 25-Jan-2011
,Revenue,CCHD,Section 117 Placements,Nursing Homes,Aspects &  Milestones Trust,1912.00, 25-Jan-2011
,Revenue,CCHD,Under 65s PWLD - KD,Residential Homes,Aspects & Milestones Trust,8720.64, 25-Jan-2011
,Revenue,CCHD,Under 65s PWLD - KD,Residential Homes,Aspects & Milestones Trust,10805.44, 25-Jan-2011
,Revenue,CCHD,Frenchay Hospital Purchasing,Nursing Homes,Elmwood Nursing Home,2332.12, 25-Jan-2011
,Revenue,CCHD,Swift Dump Code,Residential Homes,Voyage Ltd,7102.68, 25-Jan-2011
,Revenue,CCHD,Swift Dump Code,Residential Homes,Voyage Ltd,2029.34, 25-Jan-2011
,Revenue,CCHD,Under 65s PWLD - KD,Residential Homes,Voyage Ltd,6657.80, 25-Jan-2011
,Revenue,CCHD,Under 65s PWLD - KD,Residential Homes,Voyage Ltd,8041.56, 25-Jan-2011
,Revenue,CCHD,S28A - Under 65,Residential Homes,Voyage Ltd,6720.24, 25-Jan-2011
,Revenue,CCHD,Under 65s PWLD - PS,Residential Homes,Voyage Ltd,7259.76, 25-Jan-2011
,Revenue,CCHD,Under 65s PWLD - PS,Residential Homes,Voyage Ltd,5793.04, 25-Jan-2011
,Revenue,CCHD,Under 65s PWLD - PS,Residential Homes,Voyage Ltd,6352.04, 25-Jan-2011
,Revenue,CCHD,Under 65s PWLD - PS,Residential Homes,Voyage Ltd,7510.08, 25-Jan-2011
,Revenue,CCHD,Purchasing Phys Dis - South,Residential Homes,Voyage Ltd,5352.00, 25-Jan-2011
,Revenue,CCHD,Southmead Hospital Purchasing,Nursing Homes,Aabletone Nursing Home,1246.00, 25-Jan-2011
,Revenue,CCHD,Elderly Purchasing - South,Nursing Homes,Aabletone Nursing Home,1211.48, 25-Jan-2011
,Revenue,CCHD,Under 65s PWLD - KD,Residential Homes,Freeways Trust Ltd,2767.40, 25-Jan-2011
,Revenue,CCHD,S28A - Under 65,Residential Homes,Freeways Trust Ltd,2856.60, 25-Jan-2011
,Revenue,CCHD,Under 65s PWLD - KD,Residential Homes,Freeways Trust Ltd,2217.28, 25-Jan-2011
,Revenue,CCHD,Under 65s PWLD - KD,Residential Homes,Freeways Trust Ltd,2217.28, 25-Jan-2011
,Revenue,CCHD,Under 65s PWLD - KD,Residential Homes,Freeways Trust Ltd,2643.88, 25-Jan-2011
,Revenue,CCHD,Elderly PWLD - KD,Residential Homes,Freeways Trust Ltd,2210.28, 25-Jan-2011
,Revenue,CCHD,Elderly PWLD - KH,Residential Homes,Freeways Trust Ltd,2352.92, 25-Jan-2011
,Revenue,CCHD,Under 65s PWLD - PS,Residential Homes,Freeways Trust Ltd,1147.00, 25-Jan-2011
,Revenue,CCHD,Under 65s PWLD - KH,Residential Homes,Freeways Trust Ltd,2643.88, 25-Jan-2011
,Revenue,CCHD,Under 65s PWLD - KD,Residential Homes,Abbeymead Lodge,6781.12, 25-Jan-2011
,Revenue,CCHD,S28A - Under 65,Residential Homes,Orchard End Limited,7476.56, 25-Jan-2011
,Revenue,CCHD,S117 Placements PCT,Residential Homes,Shaw Healthcare Ltd,15925.32, 25-Jan-2011
,Revenue,CCHD,Under 65s PWLD - PS,Nursing Homes,Shaw Healthcare Ltd,9897.24, 25-Jan-2011
,Revenue,CCHD,Under 65s PWLD - KD,Residential Homes,Shaw Healthcare Ltd,10331.76, 25-Jan-2011
,Revenue,CCHD,S28A - Under 65,Residential Homes,Shaw Healthcare Ltd,10955.36, 25-Jan-2011
,Revenue,CCHD,S28A - Under 65,Residential Homes,Shaw Healthcare Ltd,11756.44, 25-Jan-2011
,Revenue,CCHD,S28A - Under 65,Residential Homes,Shaw Healthcare Ltd,4876.20, 25-Jan-2011
,Revenue,CCHD,S28A - Over 65,Residential Homes,Shaw Healthcare Ltd,4876.20, 25-Jan-2011
,Revenue,CCHD,Under 65s PWLD - PS,Nursing Homes,Shaw Healthcare Ltd,9949.24, 25-Jan-2011
,Revenue,CCHD,S28A - Over 65,Residential Homes,Shaw Healthcare Ltd,4876.20, 25-Jan-2011
,Revenue,CCHD,S28A - Over 65,Residential Homes,Shaw Healthcare Ltd,4876.20, 25-Jan-2011
,Revenue,CCHD,S28A - Over 65,Residential Homes,Shaw Healthcare Ltd,4884.20, 25-Jan-2011
,Revenue,CCHD,S28A - Under 65,Residential Homes,Shaw Healthcare Ltd,9131.32, 25-Jan-2011
,Revenue,CCHD,S28A - Over 65,Residential Homes,Shaw Healthcare Ltd,10192.24, 25-Jan-2011
,Revenue,CCHD,Under 65s PWLD - KH,Nursing Homes,The Manor House,4797.04, 25-Jan-2011
,Revenue,CCHD,Under 65s PWLD - KH,Residential Homes,The Manor House,3624.76, 25-Jan-2011
,Revenue,CCHD,Under 65s PWLD - KH,Residential Homes,The Manor House,2780.92, 25-Jan-2011
,Revenue,CCHD,Under 65s PWLD - PS,Residential Homes,The Manor House,3356.24, 25-Jan-2011
,Revenue,CCHD,Under 65s PWLD - KH,Residential Homes,The Manor House,2780.92, 25-Jan-2011
,Revenue,CCHD,Under 65s PWLD - KH,Residential Homes,The Manor House,3103.64, 25-Jan-2011
,Revenue,CCHD,Under 65s PWLD - KH,Residential Homes,The Manor House,6240.72, 25-Jan-2011
,Revenue,CCHD,S28A - Under 65,Residential Homes,The Manor House,4797.04, 25-Jan-2011
,Revenue,CCHD,Under 65s PWLD - KH,Residential Homes,The Manor House,2832.72, 25-Jan-2011
,Revenue,CCHD,Under 65s PWLD - KH,Residential Homes,The Manor House,910.52, 25-Jan-2011
,Revenue,CCHD,Under 65s PWLD - KH,Residential Homes,The Manor House,3536.96, 25-Jan-2011
,Revenue,CCHD,Under 65s PWLD - KH,Residential Homes,The Manor House,3091.56, 25-Jan-2011
,Revenue,CCHD,Under 65s PWLD - KH,Residential Homes,The Manor House,3442.36, 25-Jan-2011
,Revenue,CCHD,Under 65s PWLD - KH,Nursing Homes,The Manor House,4343.64, 25-Jan-2011
,Revenue,CCHD,Under 65s PWLD - KH,Nursing Homes,The Manor House,12231.78, 25-Jan-2011
,Revenue,CCHD,Under 65s PWLD - PS,Residential Homes,The Manor House,3212.52, 25-Jan-2011
,Revenue,CCHD,Under 65s PWLD - PS,Residential Homes,The Manor House,3018.52, 25-Jan-2011
,Revenue,CCHD,Under 65s PWLD - KH,Residential Homes,The Manor House,2832.72, 25-Jan-2011
,Revenue,CCHD,Under 65s PWLD - KH,Residential Homes,The Manor House,4485.20, 25-Jan-2011
,Revenue,CCHD,Under 65s PWLD - KD,Residential Homes,The Manor House,3365.64, 25-Jan-2011
,Revenue,CCHD,Under 65s PWLD - KD,Residential Homes,The Manor House,1248.90, 25-Jan-2011
,Revenue,CCHD,Under 65s PWLD - KH,Residential Homes,The Manor House,2400.04, 25-Jan-2011
,Revenue,CCHD,Under 65s PWLD - PS,Residential Homes,The Manor House,3349.56, 25-Jan-2011
,Revenue,CCHD,Under 65s PWLD - KD,Residential Homes,The Manor House,889.45, 25-Jan-2011
,Revenue,CCHD,Under 65s PWLD - KH,Residential Homes,The Manor House,4998.84, 25-Jan-2011
,Revenue,CCHD,Under 65s PWLD - KH,Residential Homes,The Manor House,2832.72, 25-Jan-2011
,Revenue,CCHD,Under 65s PWLD - KH,Residential Homes,Scope   Accounts Dept,4937.00, 25-Jan-2011
,Revenue,CCHD,Under 65s PWLD - KH,Residential Homes,Scope   Accounts Dept,3026.68, 25-Jan-2011
,Revenue,CCHD,Elderly PWLD - PS,Residential Homes,Visions,3552.96, 25-Jan-2011
,Revenue,CCHD,Under 65s PWLD - KD,Residential Homes,Home Farm Trust Ltd  5-6 Brook Office Pa,2759.76, 25-Jan-2011
,Revenue,CCHD,Under 65s PWLD - KD,Residential Homes,Home Farm Trust Ltd  5-6 Brook Office Pa,2220.28, 25-Jan-2011
,Revenue,CCHD,Under 65s PWLD - PS,Residential Homes,Home Farm Trust Ltd  5-6 Brook Office Pa,2409.20, 25-Jan-2011
,Revenue,CCHD,Under 65s PWLD - PS,Residential Homes,Home Farm Trust Ltd  5-6 Brook Office Pa,3120.12, 25-Jan-2011
,Revenue,CCHD,Under 65s PWLD - KD,Residential Homes,Home Farm Trust Ltd  5-6 Brook Office Pa,3327.88, 25-Jan-2011
,Revenue,CCHD,Under 65s PWLD - PS,Residential Homes,Home Farm Trust Ltd  5-6 Brook Office Pa,4439.04, 25-Jan-2011
,Revenue,CCHD,Under 65s PWLD - KD,Residential Homes,Littlecroft Residential Homes  Longcroft,6438.28, 25-Jan-2011
,Revenue,CCHD,Southmead Hospital Purchasing,Nursing Homes,Southern Cross Healthcare,1604.00, 25-Jan-2011
,Revenue,CCHD,S28A - Under 65,Residential Homes,Cream Ii Ltd,7763.48, 25-Jan-2011
,Revenue,CCHD,Under 65s PWLD - KH,Residential Homes,Dimensions(Uk) Ltd,6050.72, 25-Jan-2011
,Revenue,CCHD,Under 65s PWLD - PS,Residential Homes,Dimensions(Uk) Ltd,1719.32, 25-Jan-2011
,Revenue,CCHD,Under 65s PWLD - PS,Residential Homes,The Stanstead Centre,3488.28, 25-Jan-2011
,Revenue,CCHD,Frenchay Hospital Purchasing,Residential Homes,Walton-On-Thames Charity,1246.80, 25-Jan-2011
,Revenue,CCHD,Elderly Purchasing - North,Residential Homes,Greensleeves,1313.88, 25-Jan-2011
,Revenue,CCHD,Elderly Mental Health,Residential Homes,Gatchell House,1320.56, 25-Jan-2011
,Revenue,CCHD,Elderly Purchasing - North,Residential Homes,Newton House,887.84, 25-Jan-2011
,Revenue,CCHD,Southmead Hospital Purchasing,Nursing Homes,Majestic 3 Limited,1052.32, 25-Jan-2011
,Revenue,CCHD,Elderly Purchasing - North,Residential Homes,Simeon Care For The Elderly,1468.44, 25-Jan-2011
,Revenue,CCHD,Elderly Purchasing - North,Nursing Homes,Regent House,4049.97, 25-Jan-2011
,Revenue,CCHD,Elderly Purchasing - South,Nursing Homes,Regent House,1638.60, 25-Jan-2011
,Revenue,CCHD,Elderly Purchasing - South,Nursing Homes,Regent House,1053.38, 25-Jan-2011
,Revenue,CCHD,Elderly Purchasing - South,Nursing Homes,Regent House,1634.80, 25-Jan-2011
,Revenue,CCHD,Elderly Purchasing - South,Nursing Homes,Regent House,1646.60, 25-Jan-2011
,Revenue,CCHD,Southmead Hospital Purchasing,Nursing Homes,Regent House,1384.80, 25-Jan-2011
,Revenue,CCHD,Elderly Purchasing - South,Nursing Homes,Regent House,1449.88, 25-Jan-2011
,Revenue,CCHD,Elderly Purchasing - South,Nursing Homes,Regent House,1230.20, 25-Jan-2011
,Revenue,CCHD,Elderly Mental Health,Nursing Homes,Regent House,24272.48, 25-Jan-2011
,Revenue,CCHD,Elderly Mental Health,Nursing Homes,Regent House,1434.76, 25-Jan-2011
,Revenue,CCHD,Elderly Mental Health,Nursing Homes,Regent House,1388.80, 25-Jan-2011
,Revenue,CCHD,Elderly Mental Health,Nursing Homes,Regent House,1924.00, 25-Jan-2011
,Revenue,CCHD,Elderly Mental Health,Nursing Homes,Regent House,1302.04, 25-Jan-2011
,Revenue,CCHD,S28A - Under 65,Residential Homes,Compass Care,9452.04, 25-Jan-2011
,Revenue,CCHD,Elderly Purchasing - South,Residential Homes,Quality Care Homes Ltd,1264.60, 25-Jan-2011
,Revenue,CCHD,Elderly Purchasing - South,Residential Homes,Quality Care Homes Ltd,1250.80, 25-Jan-2011
,Revenue,CCHD,Elderly Purchasing - South,Residential Homes,Quality Care Homes Ltd,1423.76, 25-Jan-2011
,Revenue,CCHD,Elderly Purchasing - South,Residential Homes,Quality Care Homes Ltd,1138.56, 25-Jan-2011
,Revenue,CCHD,Elderly Purchasing - South,Residential Homes,Quality Care Homes Ltd,846.04, 25-Jan-2011
,Revenue,CCHD,Elderly Purchasing - South,Residential Homes,Quality Care Homes Ltd,1245.36, 25-Jan-2011
,Revenue,CCHD,Frenchay Hospital Purchasing,Residential Homes,Quality Care Homes Ltd,1036.36, 25-Jan-2011
,Revenue,CCHD,Southmead Hospital Purchasing,Residential Homes,Quality Care Homes Ltd,1220.48, 25-Jan-2011
,Revenue,CCHD,Southmead Hospital Purchasing,Residential Homes,Quality Care Homes Ltd,1249.96, 25-Jan-2011
,Revenue,CCHD,Southmead Hospital Purchasing,Residential Homes,Quality Care Homes Ltd,1094.12, 25-Jan-2011
,Revenue,CCHD,Elderly Mental Health,Residential Homes,Ross Healthcare,1287.44, 25-Jan-2011
,Revenue,CCHD,Elderly Purchasing - South,Residential Homes,Elmbridge Residential Home Ltd,1312.24, 25-Jan-2011
,Revenue,CCHD,S117 Placements PCT,Residential Homes,Alexandra House,6697.76, 25-Jan-2011
,Revenue,CCHD,Under 65s PWLD - KD,Residential Homes,Alexandra House,6342.64, 25-Jan-2011
,Revenue,CCHD,Elderly Mental Health,Nursing Homes,Meadow Care Home,1470.76, 25-Jan-2011
,Revenue,CCHD,Elderly Purchasing - North,Nursing Homes,Meadow Care Home,1404.24, 25-Jan-2011
,Revenue,CCHD,Frenchay Hospital Purchasing,Residential Homes,Roundham Court,1246.80, 25-Jan-2011
,Revenue,CCHD,S28A - Over 65,Residential Homes,Leonard Cheshire  National Account Centr,2859.24, 25-Jan-2011
,Revenue,CCHD,Elderly Purchasing - North,Residential Homes,Westbury Nursing Home,1476.44, 25-Jan-2011
,Revenue,CCHD,Elderly Mental Health,Residential Homes,Westbury Nursing Home,1738.88, 25-Jan-2011
,Revenue,CCHD,Under 65s PWLD - KD,Residential Homes,Small House Homes Limited,17443.68, 25-Jan-2011
,Revenue,CCHD,Frenchay Hospital Purchasing,Nursing Homes,Caring Homes Group Ltd,1390.44, 25-Jan-2011
,Revenue,CCHD,Elderly Purchasing - North,Residential Homes,Brook Lane Residential Home,1155.36, 25-Jan-2011
,Revenue,CCHD,PD Direct Payments North,Commissioned Service (Inc SLA Grants),A4E Management Ltd,767.00, 07-Jan-2011
,Revenue,CCHD,PD Direct Payments North,Commissioned Service (Inc SLA Grants),A4E Management Ltd,767.00, 21-Jan-2011
,Revenue,CCHD,Elderly PWLD - PS,Residential Homes,Edgemont House Ltd,1316.96, 25-Jan-2011
,Revenue,CCHD,Frenchay Hospital Purchasing,Residential Homes,Edgemont House Ltd,1249.64, 25-Jan-2011
,Revenue,CCHD,Frenchay Hospital Purchasing,Residential Homes,Edgemont House Ltd,1260.32, 25-Jan-2011
,Revenue,CCHD,Elderly Purchasing - South,Residential Homes,Edgemont House Ltd,1088.52, 25-Jan-2011
,Revenue,CCHD,Elderly Purchasing - South,Residential Homes,Edgemont House Ltd,1298.56, 25-Jan-2011
,Revenue,CCHD,Elderly Mental Health,Nursing Homes,Edgemont View Nursing Home,646.56, 25-Jan-2011
,Revenue,CCHD,Elderly Purchasing - South,Nursing Homes,Edgemont View Nursing Home,1422.80, 25-Jan-2011
,Revenue,CCHD,Frenchay Hospital Purchasing,Nursing Homes,Edgemont View Nursing Home,1340.24, 25-Jan-2011
,Revenue,CCHD,Elderly Purchasing - North,Nursing Homes,Edgemont View Nursing Home,15699.10, 25-Jan-2011
,Revenue,CCHD,Elderly Purchasing - North,Nursing Homes,Edgemont View Nursing Home,1116.85, 25-Jan-2011
,Revenue,CCHD,Elderly Purchasing - South,Nursing Homes,Edgemont View Nursing Home,1260.32, 25-Jan-2011
,Revenue,CCHD,Frenchay Hospital Purchasing,Nursing Homes,Edgemont View Nursing Home,654.60, 25-Jan-2011
,Revenue,CCHD,Frenchay Hospital Purchasing,Nursing Homes,Edgemont View Nursing Home,1373.96, 25-Jan-2011
,Revenue,CCHD,S28A - Under 65,Residential Homes,Osprey Court,6832.80, 25-Jan-2011
,Revenue,CCHD,Elderly Purchasing - South,Nursing Homes,Southern Cross Healthcare,1308.28, 25-Jan-2011
,Revenue,CCHD,Under 65s PWLD - KH,Residential Homes,Tomlen,6399.24, 25-Jan-2011
,Revenue,CCHD,Frenchay Hospital Purchasing,Residential Homes,Stonebow House Residential Home,1238.84, 25-Jan-2011
,Revenue,CCHD,Section 117 Placements,Residential Homes,Aspects &  Milestones Trust,1304.00, 25-Jan-2011
,Revenue,CCHD,Elderly Mental Health,Residential Homes,Heathwood Rest Home,1561.52, 25-Jan-2011
,Revenue,CCHD,Elderly Mental Health,Residential Homes,Osbourne Court,1406.80, 25-Jan-2011
,Revenue,CCHD,Elderly Mental Health,Residential Homes,Osbourne Court,1205.83, 25-Jan-2011
,Revenue,CCHD,Elderly Purchasing - North,Residential Homes,Osbourne Court,926.52, 25-Jan-2011
,Revenue,CCHD,Elderly Mental Health,Residential Homes,Osbourne Court,1384.52, 25-Jan-2011
,Revenue,CCHD,Frenchay Hospital Purchasing,Residential Homes,Osbourne Court,1055.10, 25-Jan-2011
,Revenue,CCHD,Elderly Purchasing - North,Residential Homes,Osbourne Court,1053.48, 25-Jan-2011
,Revenue,CCHD,Elderly Mental Health,Residential Homes,Osbourne Court,1438.80, 25-Jan-2011
,Revenue,CCHD,Section 117 Placements,Residential Homes,Osbourne Court,1848.00, 25-Jan-2011
,Revenue,CCHD,Under 65s PWLD - KH,Residential Homes,Kisimul Group,11087.32, 25-Jan-2011
,Revenue,CCHD,Under 65s PWLD - KD,Residential Homes,Kisimul Group,9776.25, 25-Jan-2011
,Revenue,CCHD,Elderly Purchasing - North,Residential Homes,Hawkridge House,753.52, 25-Jan-2011
,Revenue,CCHD,Frenchay Hospital Purchasing,Nursing Homes,Bupa Care Services  Bridge House,702.56, 25-Jan-2011
,Revenue,CCHD,Under 65s PWLD - PS,Residential Homes,Hilltop Nursing Home,12415.00, 25-Jan-2011
,Revenue,CCHD,Elderly Mental Health,Residential Homes,Ventura Residential Care Home,1246.80, 25-Jan-2011
,Revenue,CCHD,Elderly Purchasing - North,Residential Homes,Kenver House Residential Home,803.89, 25-Jan-2011
,Revenue,CCHD,Elderly Mental Health,Residential Homes,Kenver House Residential Home,1518.20, 25-Jan-2011
,Revenue,CCHD,Section 117 Placements,Residential Homes,Kenver House Residential Home,1848.00, 25-Jan-2011
,Revenue,CCHD,Southmead Hospital Purchasing,Residential Homes,Kenver House Residential Home,1638.80, 25-Jan-2011
,Revenue,CCHD,Frenchay Hospital Purchasing,Residential Homes,Kenver House Residential Home,1406.80, 25-Jan-2011
,Revenue,CCHD,Frenchay Hospital Purchasing,Residential Homes,Kenver House Residential Home,1638.80, 25-Jan-2011
,Revenue,CCHD,Elderly Mental Health,Residential Homes,Kenver House Residential Home,1568.12, 25-Jan-2011
,Revenue,CCHD,Frenchay Hospital Purchasing,Residential Homes,Kenver House Residential Home,910.30, 25-Jan-2011
,Revenue,CCHD,Elderly Purchasing - South,Residential Homes,Kenver House Residential Home,819.40, 25-Jan-2011
,Revenue,CCHD,Elderly Mental Health,Residential Homes,Kenver House Residential Home,1248.72, 25-Jan-2011
,Revenue,CCHD,Elderly Mental Health,Residential Homes,Kenver House Residential Home,1369.44, 25-Jan-2011
,Revenue,CCHD,Elderly Mental Health,Residential Homes,Kenver House Residential Home,1202.76, 25-Jan-2011
,Revenue,CCHD,Elderly Mental Health,Residential Homes,Kenver House Residential Home,1202.36, 25-Jan-2011
,Revenue,CCHD,Elderly Mental Health,Residential Homes,Kenver House Residential Home,1405.68, 25-Jan-2011
,Revenue,CCHD,Elderly Purchasing - South,Residential Homes,Kenver House Residential Home,1528.12, 25-Jan-2011
,Revenue,CCHD,Frenchay Hospital Purchasing,Residential Homes,Kenver House Residential Home,1568.12, 25-Jan-2011
,Revenue,CCHD,Elderly Mental Health,Residential Homes,Kenver House Residential Home,1406.80, 25-Jan-2011
,Revenue,CCHD,Elderly Mental Health,Residential Homes,Kenver House Residential Home,1128.52, 25-Jan-2011
,Revenue,CCHD,Elderly Purchasing - South,Residential Homes,Kenver House Residential Home,1269.08, 25-Jan-2011
,Revenue,CCHD,Elderly Mental Health,Residential Homes,Kenver House Residential Home,1358.52, 25-Jan-2011
,Revenue,CCHD,Elderly Mental Health,Residential Homes,Kenver House Residential Home,1487.00, 25-Jan-2011
,Revenue,CCHD,Elderly Mental Health,Residential Homes,Kenver House Residential Home,1305.60, 25-Jan-2011
,Revenue,CCHD,Elderly Mental Health,Residential Homes,Kenver House Residential Home,1406.80, 25-Jan-2011
,Revenue,CCHD,Elderly Purchasing - South,Residential Homes,Tracs Group Ltd,6837.48, 25-Jan-2011
,Revenue,CCHD,Section 117 Placements,Nursing Homes,Redholme Memory Care Limited,1912.00, 25-Jan-2011
,Revenue,CCHD,Elderly Purchasing - South,Residential Homes,Four Seasons Health Care,1180.56, 25-Jan-2011
,Revenue,CCHD,Southmead Hospital Purchasing,Residential Homes,Vaughan Lee House,1187.04, 25-Jan-2011
,Revenue,CCHD,Frenchay Hospital Purchasing,Residential Homes,Wisteria House,1246.80, 25-Jan-2011
,Revenue,CCHD,Under 65s PWLD - PS,Residential Homes,Cintre Community,4691.40, 25-Jan-2011
,Revenue,CCHD,Under 65s PWLD - KH,Residential Homes,Voyage Ltd,5103.60, 25-Jan-2011
,Revenue,CCHD,PWLD S 117 Placements,Residential Homes,Unit 2,7341.40, 25-Jan-2011
,Revenue,CCHD,Under 65s PWLD - KH,Residential Homes,.,4915.40, 25-Jan-2011
,Revenue,CCHD,S28A - Under 65,Residential Homes,Craegmoor Healthcare,5715.40, 25-Jan-2011
,Revenue,CCHD,Elderly Purchasing - South,Residential Homes,Cepen Lodge Care Home,4542.86, 25-Jan-2011
,Revenue,CCHD,Elderly Purchasing - South,Residential Homes,Cepen Lodge Care Home,2120.00, 25-Jan-2011
,Revenue,CCHD,Elderly Purchasing - South,Residential Homes,Cepen Lodge Care Home,2120.00, 25-Jan-2011
,,,,,,5066050.66,
,Revenue,CECR,Broad Lane Depot,Prop.Serv. General Repairs,A E Horder (Contracting) Limited,908.39, 21-Jan-2011
,Revenue,CECR,Benefits Administration,Agency Staff (Admin/Support Staff) Pay,Accurate Assessments Ltd,950.00, 06-Jan-2011
,Revenue,CECR,Benefits Administration,Agency Staff (Admin/Support Staff) Pay,Accurate Assessments Ltd,500.00, 11-Jan-2011
,Revenue,CECR,Benefits Administration,Agency Staff (Admin/Support Staff) Pay,Accurate Assessments Ltd,1000.00, 14-Jan-2011
,Revenue,CECR,Benefits Administration,Agency Staff (Admin/Support Staff) Pay,Accurate Assessments Ltd,993.75, 21-Jan-2011
,Revenue,CECR,Benefits Administration,Agency Staff (Admin/Support Staff) Pay,Accurate Assessments Ltd,981.25, 28-Jan-2011
,Revenue,CECR,Service Reviews Prog - ICT Costs,Computer Equipment - Purchase,Aldermore Invoice Finance,7076.88, 07-Jan-2011
,Revenue,CECR,PSD Information Management,Software Support & Maintenance,Asta Development Plc,515.00, 06-Jan-2011
,Revenue,CECR,Members Support,Other Premises Costs,Avon Armour Ltd,987.00, 06-Jan-2011
,Revenue,CECR,Service Reviews Prog - ICT Costs,Consultants Fees,B2Net Ltd,6000.00, 12-Jan-2011
,Revenue,CECR,Service Reviews Prog - ICT Costs,Computer Equipment - Purchase,B2Net Ltd,34169.30, 11-Jan-2011
,Revenue,CECR,Infrastructure - Comm,Computer Equipment - Maintenance,B2Net Ltd,2000.00, 21-Jan-2011
,Revenue,CECR,Pre 1996 Pensions,Annual Pension,Bath & North East Somerset Dist Council,97125.97, 07-Jan-2011
,Revenue,CECR,Pre 1996 Pensions,Annual Pension,Bath & North East Somerset Dist Council,9057.70, 13-Jan-2011
,Revenue,CECR,Pre 1996 Pensions,Annual Pension,Bath & North East Somerset Dist Council,9155.33, 13-Jan-2011
,Revenue,CECR,Pre 1996 Pensions,Annual Pension,Bath & North East Somerset Dist Council,15718.46, 13-Jan-2011
,Revenue,CECR,Pre 1996 Pensions,Annual Pension,Bath & North East Somerset Dist Council,33184.17, 14-Jan-2011
,Revenue,CECR,Total Place Funding,Project Funding,Bath & North East Somerset Dist Council,78250.00, 19-Jan-2011
,Revenue,CECR,Coroners Service,Levies,Bristol City Council,125827.00, 21-Jan-2011
,Revenue,CECR,Members Support,Other Premises Costs,Bristol Sound Systems Limited,201.50, 21-Jan-2011
,Revenue,CECR,Members Support,Other Premises Costs,Bristol Sound Systems Limited,201.50, 21-Jan-2011
,Revenue,CECR,Members Support,Other Premises Costs,Bristol Sound Systems Limited,201.50, 21-Jan-2011
,Revenue,CECR,Members Support,Other Premises Costs,Bristol Sound Systems Limited,201.50, 21-Jan-2011
,Revenue,CECR,Revenues Recovery Division,Other Private Contractors,Bristow & Sutor,498.50, 07-Jan-2011
,Revenue,CECR,Building Maintenance,Uniforms & Clothing,Bunzl Safety and Workwear Solutions,460.11, 07-Jan-2011
,Revenue,CECR,Infrastructure - Comm,Software Support & Maintenance,Capax Discovery Limited,12951.71, 07-Jan-2011
,Revenue,CECR,Service Reviews Prog - ICT Costs,Agency Staff (Admin/Support Staff) Pay,Cash Friday at Lloyds TSB,840.00, 07-Jan-2011
,Revenue,CECR,Service Reviews Prog - ICT Costs,Agency Staff (Admin/Support Staff) Pay,Cash Friday at Lloyds TSB,1400.00, 14-Jan-2011
,Revenue,CECR,Service Reviews Prog - ICT Costs,Agency Staff (Admin/Support Staff) Pay,Cash Friday at Lloyds TSB,1400.00, 21-Jan-2011
,Revenue,CECR,PSD Mech Engineers,Agency Staff (Operational)/PCT Pay,CDI Anders Elite Limited,1050.00, 11-Jan-2011
,Revenue,CECR,PSD Mech Engineers,Agency Staff (Operational)/PCT Pay,CDI Anders Elite Limited,1148.00, 14-Jan-2011
,Revenue,CECR,PSD Mech Engineers,Agency Staff (Operational)/PCT Pay,CDI Anders Elite Limited,1050.00, 19-Jan-2011
,Revenue,CECR,Corporate Communications,Advertising for Recruitment,Chapple Ltd,2500.00, 07-Jan-2011
,Revenue,CECR,Financial Reporting,Books & Publications,CIPFA Business Limited,1196.00, 25-Jan-2011
,Revenue,CECR,Financial Reporting,Books & Publications,CIPFA Business Limited,500.00, 25-Jan-2011
,Revenue,CECR,Registration Services,Printing & Stationery,Civil Ceremonies Limited,780.00, 20-Jan-2011
,Revenue,CECR,Registration Services,Other Supplies & Services,Civil Ceremonies Limited,189.77, 20-Jan-2011
,Revenue,CECR,Service Reviews Prog - ICT Costs,Software Support & Maintenance,Computacenter (UK) Ltd,2064.00, 13-Jan-2011
,Revenue,CECR,Service Reviews Prog - ICT Costs,Software Purchase,Computacenter (UK) Ltd,15187.60, 13-Jan-2011
,Revenue,CECR,Service Reviews Prog - ICT Costs,Software Support & Maintenance,Computacenter (UK) Ltd,30375.50, 13-Jan-2011
,Revenue,CECR,Service Reviews Prog - ICT Costs,Software Purchase,Computacenter (UK) Ltd,13233.00, 13-Jan-2011
,Revenue,CECR,Service Reviews Prog - ICT Costs,Training Expenses,ComputerWorld Training Limited,590.00, 19-Jan-2011
,Revenue,CECR,Corporate Support - Thornbury,Software Support & Maintenance,Condeco Limited,6048.00, 20-Jan-2011
,Revenue,CECR,Badminton Road Offices,Gas,Corona Energy Retail 3 Limited,2798.02, 06-Jan-2011
,Revenue,CECR,Thornbury Council Offices,Gas,Corona Energy Retail 3 Limited,2036.78, 06-Jan-2011
,Revenue,CECR,Broad Lane Depot,Gas,Corona Energy Retail 3 Limited,2390.65, 06-Jan-2011
,Revenue,CECR,Vinney Green Offices,Gas,Corona Energy Retail 3 Limited,468.24, 06-Jan-2011
,Revenue,CECR,Badminton Road Offices,Gas,Corona Energy Retail 3 Limited,5016.19, 17-Jan-2011
,Revenue,CECR,Surplus Property,Electricity,Corona Energy Retail 3 Limited,1129.06, 19-Jan-2011
,Revenue,CECR,Surplus Property,Electricity,Corona Energy Retail 3 Limited,1118.56, 19-Jan-2011
,Revenue,CECR,Thornbury Council Offices,Gas,Corona Energy Retail 3 Limited,2912.70, 17-Jan-2011
,Revenue,CECR,Ridgewood Site,Gas,Corona Energy Retail 3 Limited,519.30, 17-Jan-2011
,Revenue,CECR,Broad Lane Depot,Gas,Corona Energy Retail 3 Limited,3912.91, 17-Jan-2011
,Revenue,CECR,Ridgewood Site,Gas,Corona Energy Retail 3 Limited,1404.13, 17-Jan-2011
,Revenue,CECR,Vinney Green Offices,Gas,Corona Energy Retail 3 Limited,500.24, 17-Jan-2011
,Revenue,CECR,Ridgewood Site,Gas,Corona Energy Retail 3 Limited,875.22, 17-Jan-2011
,Revenue,CECR,C&RS Streetcare Helpdesk,Agency Staff (Admin/Support Staff) Pay,Eden Brown Limited,975.00, 31-Jan-2011
,Revenue,CECR,C&RS Streetcare Helpdesk,Agency Staff (Admin/Support Staff) Pay,Eden Brown Limited,572.00, 13-Jan-2011
,Revenue,CECR,C&RS Streetcare Helpdesk,Agency Staff (Admin/Support Staff) Pay,Eden Brown Limited,910.00, 14-Jan-2011
,Revenue,CECR,C&RS Streetcare Helpdesk,Agency Staff (Admin/Support Staff) Pay,Eden Brown Limited,864.50, 06-Jan-2011
,Revenue,CECR,Benefits Administration,Agency Staff (Admin/Support Staff) Pay,Eden Brown Limited,715.00, 06-Jan-2011
,Revenue,CECR,C&RS Streetcare Helpdesk,Agency Staff (Admin/Support Staff) Pay,Eden Brown Limited,507.00, 12-Jan-2011
,Revenue,CECR,Benefits Administration,Agency Staff (Admin/Support Staff) Pay,Eden Brown Limited,936.00, 12-Jan-2011
,Revenue,CECR,C&RS Streetcare Helpdesk,Agency Staff (Admin/Support Staff) Pay,Eden Brown Limited,689.00, 26-Jan-2011
,Revenue,CECR,Benefits Administration,Agency Staff (Admin/Support Staff) Pay,Eden Brown Limited,1040.00, 26-Jan-2011
,Revenue,CECR,Vinney Green Offices,Electricity,EDF Energy 1 Limited,555.58, 14-Jan-2011
,Revenue,CECR,Vinney Green Offices,Electricity,EDF Energy 1 Limited,591.60, 17-Jan-2011
,Revenue,CECR,Badminton Road Offices,Other Energy Costs,Forest Fuels Ltd,660.00, 14-Jan-2011
,Revenue,CECR,Badminton Road Offices,Other Energy Costs,Forest Fuels Ltd,1320.00, 28-Jan-2011
,Revenue,CECR,Travellers Site - Patchway,Refuse Collection Charges,Frank Bowtell Limited,369.40, 26-Jan-2011
,Revenue,CECR,Travellers Site - Winterbourne,Refuse Collection Charges,Frank Bowtell Limited,369.40, 26-Jan-2011
,Revenue,CECR,Travellers Site - Winterbourne,Prop.Serv. General Repairs,Frank Bowtell Limited,788.60, 26-Jan-2011
,Revenue,CECR,Travellers Site - Winterbourne,Prop.Serv. General Repairs,Frank Bowtell Limited,580.00, 12-Jan-2011
,Revenue,CECR,PSD Architects,Agency Staff (Admin/Support Staff) Pay,Franklyn Recruitment Limited,512.08, 11-Jan-2011
,Revenue,CECR,PSD Clerk of Works,Agency Staff (Admin/Support Staff) Pay,Franklyn Recruitment Limited,548.25, 07-Jan-2011
,Revenue,CECR,PSD Project Management,Agency Staff (Admin/Support Staff) Pay,Franklyn Recruitment Limited,1588.75, 07-Jan-2011
,Revenue,CECR,PSD Architects,Agency Staff (Admin/Support Staff) Pay,Franklyn Recruitment Limited,486.22, 14-Jan-2011
,Revenue,CECR,PSD Project Management,Agency Staff (Admin/Support Staff) Pay,Franklyn Recruitment Limited,1724.38, 14-Jan-2011
,Revenue,CECR,PSD Clerk of Works,Agency Staff (Admin/Support Staff) Pay,Franklyn Recruitment Limited,446.25, 14-Jan-2011
,Revenue,CECR,PSD Project Management,Agency Staff (Admin/Support Staff) Pay,Franklyn Recruitment Limited,1433.75, 21-Jan-2011
,Revenue,CECR,PSD Project Management,Agency Staff (Admin/Support Staff) Pay,Franklyn Recruitment Limited,1433.75, 28-Jan-2011
,Revenue,CECR,PSD Clerk of Works,Agency Staff (Admin/Support Staff) Pay,Franklyn Recruitment Limited,433.50, 28-Jan-2011
,Revenue,CECR,Spending ex - HRA Balances,Grants to Voluntary Bodies,Fromeside Youth Centre,1500.00, 11-Jan-2011
,Revenue,CECR,Benefits Administration,Agency Staff (Admin/Support Staff) Pay,Giant Group Plc,999.00, 11-Jan-2011
,Revenue,CECR,Benefits Administration,Agency Staff (Admin/Support Staff) Pay,Giant Group Plc,999.00, 20-Jan-2011
,Revenue,CECR,Benefits Administration,Agency Staff (Admin/Support Staff) Pay,Giant Group Plc,951.75, 27-Jan-2011
,Revenue,CECR,Pre 1996 Pensions,Annual Pension,Gloucestershire LGPS,1067.85, 27-Jan-2011
,Revenue,CECR,Benefits Fraud,Training Expenses,GovNet Communications,549.00, 25-Jan-2011
,Revenue,CECR,Democratic and Statutory Services,Fees - General,Graham Russell,790.60, 25-Jan-2011
,Revenue,CECR,C&RS Streetcare Helpdesk,Public Transport - Staff,Hanham Taxis,1020.00, 17-Jan-2011
